Workbook

Sheet Main
B10: 2018-04-06
B12: Sheet No. | C12: Template Name | D12: Summary
B13: 1 | C13: Future Intra | D13: For Intraday trading in F&O segment
B14: 2 | C14: Cash Intra | D14: For Intraday trading in cash market segment
B15: 3 | C15: Mid-cap Intra | D15: For Intraday trading in Mid-cap stocks
B16: 4 | C16: Bulk Deals | D16: Reveals Bulk Deals carried on NSE & BSE
B17: 5 | C17: Call Tracker

Sheet Future Intra
M5: Back to Main Page
A6: FOR INTRA DAY TRADING | L6: =Main!B10 -> 2018-04-06
A9: Sr.no | B9: Sector | C9: Scrip | D9: CLOSE RATE | E9: Pivot Point | F9: Supports | I9: Resistances
B10: Sector | D10: Point | E10: Point | F10: S1 | G10: S2 | H10: S3 | I10: R1 | J10: R2 | K10: R3 | L10: HIGH | M10: LOW | N10: OI | O10: % Change in OI
A11: 1 | B11: Index | C11: BANKNIFTY | D11: 24808.90 | E11: 24699.10 | F11: 24519.80 | G11: 24230.70 | H11: 24051.40 | I11: 24988.20 | J11: 25167.50 | K11: 25456.60 | L11: 24878.4 | M11: 24410 | N11: 1703400 | O11: -11.32%
A12: 2 | B12: Index | C12: NIFTY | D12: 10352.20 | E12: 10321.53 | F12: 10283.72 | G12: 10215.23 | H12: 10177.42 | I12: 10390.02 | J12: 10427.83 | K12: 10496.32 | L12: 10359.35 | M12: 10253.05 | N12: 22958550 | O12: -2.44%
A13: 3 | B13: Index | C13: NIFTYCPSE | D13: 2827.05 | E13: 942.35 | F13: 1884.70 | G13: 942.35 | H13: 1884.70 | I13: 1884.70 | J13: 942.35 | K13: 1884.70 | L13: 0 | M13: 0 | N13: 0 | O13: 0.00%
A14: 4 | B14: Index | C14: NIFTYINFRA | D14: 3716.60 | E14: 1238.87 | F14: 2477.73 | G14: 1238.87 | H14: 2477.73 | I14: 2477.73 | J14: 1238.87 | K14: 2477.73 | L14: 0 | M14: 0 | N14: 0 | O14: 0.00%
A15: 5 | B15: Index | C15: NIFTYIT | D15: 12708.00 | E15: 12687.33 | F15: 12645.67 | G15: 12583.33 | H15: 12541.67 | I15: 12749.67 | J15: 12791.33 | K15: 12853.67 | L15: 12729 | M15: 12625 | N15: 39550 | O15: -8.66%
A16: 6 | B16: Index | C16: NIFTYMID50 | D16: 5007.45 | E16: 1669.15 | F16: 3338.30 | G16: 1669.15 | H16: 3338.30 | I16: 3338.30 | J16: 1669.15 | K16: 3338.30 | L16: 0 | M16: 0 | N16: 591400 | O16: 0.00%
A17: 7 | B17: Index | C17: NIFTYPSE | D17: 4380.60 | E17: 1460.20 | F17: 2920.40 | G17: 1460.20 | H17: 2920.40 | I17: 2920.40 | J17: 1460.20 | K17: 2920.40 | L17: 0 | M17: 0 | N17: 0 | O17: 0.00%
A18: 8 | B18: Cement | C18: ACC | D18: 1558.00 | E18: 1555.25 | F18: 1545.55 | G18: 1533.10 | H18: 1523.40 | I18: 1567.70 | J18: 1577.40 | K18: 1589.85 | L18: 1564.95 | M18: 1542.8 | N18: 1482000 | O18: 4.48%
A19: 9 | B19: Others | C19: ADANIENT | D19: 148.55 | E19: 142.17 | F19: 133.98 | G19: 119.42 | H19: 111.23 | I19: 156.73 | J19: 164.92 | K19: 179.48 | L19: 150.35 | M19: 127.6 | N19: 7720000 | O19: -43.37%
A20: 10 | B20: Others | C20: ADANIPORTS | D20: 376.95 | E20: 377.25 | F20: 372.60 | G20: 368.25 | H20: 363.60 | I20: 381.60 | J20: 386.25 | K20: 390.60 | L20: 381.9 | M20: 372.9 | N20: 13675000 | O20: -4.42%
A21: 11 | B21: Power | C21: ADANIPOWER | D21: 25.60 | E21: 25.57 | F21: 25.33 | G21: 25.07 | H21: 24.83 | I21: 25.83 | J21: 26.07 | K21: 26.33 | L21: 25.8 | M21: 25.3 | N21: 95600000 | O21: 0.38%
A22: 12 | B22: Pharma | C22: AJANTPHARM | D22: 1404.10 | E22: 1403.10 | F22: 1391.20 | G22: 1378.30 | H22: 1366.40 | I22: 1416.00 | J22: 1427.90 | K22: 1440.80 | L22: 1415 | M22: 1390.2 | N22: 653500 | O22: 3.98%
A23: 13 | B23: Banking | C23: ALBK | D23: 52.05 | E23: 51.53 | F23: 50.52 | G23: 48.98 | H23: 47.97 | I23: 53.07 | J23: 54.08 | K23: 55.62 | L23: 52.55 | M23: 50 | N23: 14880000 | O23: 4.94%
A24: 14 | B24: Automobile | C24: AMARAJABAT | D24: 808.30 | E24: 807.40 | F24: 802.40 | G24: 796.50 | H24: 791.50 | I24: 813.30 | J24: 818.30 | K24: 824.20 | L24: 812.4 | M24: 801.5 | N24: 1337700 | O24: 2.63%
A25: 15 | B25: Cement | C25: AMBUJACEM | D25: 239.00 | E25: 238.58 | F25: 236.72 | G25: 234.43 | H25: 232.57 | I25: 240.87 | J25: 242.73 | K25: 245.02 | L25: 240.45 | M25: 236.3 | N25: 11625000 | O25: 3.82%
A26: 16 | B26: Banking | C26: ANDHRABANK | D26: 44.65 | E26: 44.28 | F26: 43.37 | G26: 42.08 | H26: 41.17 | I26: 45.57 | J26: 46.48 | K26: 47.77 | L26: 45.2 | M26: 43 | N26: 22450000 | O26: 6.15%
A27: 17 | B27: Others | C27: APOLLOHOSP | D27: 1089.40 | E27: 1087.35 | F27: 1079.70 | G27: 1070.00 | H27: 1062.35 | I27: 1097.05 | J27: 1104.70 | K27: 1114.40 | L27: 1095 | M27: 1077.65 | N27: 581000 | O27: 4.40%
A28: 18 | B28: Automobile | C28: APOLLOTYRE | D28: 293.50 | E28: 291.73 | F28: 287.57 | G28: 281.63 | H28: 277.47 | I28: 297.67 | J28: 301.83 | K28: 307.77 | L28: 295.9 | M28: 285.8 | N28: 11880000 | O28: 8.52%
A29: 19 | B29: Textile | C29: ARVIND | D29: 411.80 | E29: 409.80 | F29: 406.95 | G29: 402.10 | H29: 399.25 | I29: 414.65 | J29: 417.50 | K29: 422.35 | L29: 412.65 | M29: 404.95 | N29: 5072000 | O29: 3.05%
A30: 20 | B30: Automobile | C30: ASHOKLEY | D30: 147.75 | E30: 147.80 | F30: 146.65 | G30: 145.55 | H30: 144.40 | I30: 148.90 | J30: 150.05 | K30: 151.15 | L30: 148.95 | M30: 146.7 | N30: 55608000 | O30: 2.68%
A31: 21 | B31: FMCG | C31: ASIANPAINT | D31: 1149.35 | E31: 1151.53 | F31: 1141.72 | G31: 1134.08 | H31: 1124.27 | I31: 1159.17 | J31: 1168.98 | K31: 1176.62 | L31: 1161.35 | M31: 1143.9 | N31: 4378200 | O31: -0.05%
A32: 22 | B32: Pharma | C32: AUROPHARMA | D32: 602.30 | E32: 599.38 | F32: 595.17 | G32: 588.03 | H32: 583.82 | I32: 606.52 | J32: 610.73 | K32: 617.87 | L32: 603.6 | M32: 592.25 | N32: 22080000 | O32: 0.88%
A33: 23 | B33: Banking | C33: AXISBANK | D33: 505.35 | E33: 502.93 | F33: 498.87 | G33: 492.38 | H33: 488.32 | I33: 509.42 | J33: 513.48 | K33: 519.97 | L33: 507 | M33: 496.45 | N33: 39939600 | O33: -0.71%
A34: 24 | B34: Automobile | C34: BAJAJ-AUTO | D34: 2823.45 | E34: 2817.12 | F34: 2806.23 | G34: 2789.02 | H34: 2778.13 | I34: 2834.33 | J34: 2845.22 | K34: 2862.43 | L34: 2828 | M34: 2799.9 | N34: 2382250 | O34: 2.44%
A35: 25 | B35: Others | C35: BAJAJFINSV | D35: 5475.00 | E35: 5440.48 | F35: 5356.97 | G35: 5238.93 | H35: 5155.42 | I35: 5558.52 | J35: 5642.03 | K35: 5760.07 | L35: 5524 | M35: 5322.45 | N35: 665750 | O35: 5.22%
A36: 26 | B36: Finance | C36: BAJFINANCE | D36: 1919.90 | E36: 1905.60 | F36: 1884.15 | G36: 1848.40 | H36: 1826.95 | I36: 1941.35 | J36: 1962.80 | K36: 1998.55 | L36: 1927.05 | M36: 1869.85 | N36: 4775000 | O36: 2.39%
A37: 27 | B37: Others | C37: BALKRISIND | D37: 1179.75 | E37: 1183.58 | F37: 1161.17 | G37: 1142.58 | H37: 1120.17 | I37: 1202.17 | J37: 1224.58 | K37: 1243.17 | L37: 1206 | M37: 1165 | N37: 942400 | O37: -0.34%
A38: 28 | B38: Others | C38: BALRAMCHIN | D38: 76.60 | E38: 77.53 | F38: 74.32 | G38: 72.03 | H38: 68.82 | I38: 79.82 | J38: 83.03 | K38: 85.32 | L38: 80.75 | M38: 75.25 | N38: 16509500 | O38: 6.65%
A39: 29 | B39: Banking | C39: BANKBARODA | D39: 148.85 | E39: 147.15 | F39: 143.30 | G39: 137.75 | H39: 133.90 | I39: 152.70 | J39: 156.55 | K39: 162.10 | L39: 151 | M39: 141.6 | N39: 54844000 | O39: 3.12%
A40: 30 | B40: Banking | C40: BANKINDIA | D40: 111.85 | E40: 110.35 | F40: 107.25 | G40: 102.65 | H40: 99.55 | I40: 114.95 | J40: 118.05 | K40: 122.65 | L40: 113.45 | M40: 105.75 | N40: 24894000 | O40: 1.20%
A41: 31 | B41: FMCG | C41: BATAINDIA | D41: 769.15 | E41: 764.07 | F41: 756.13 | G41: 743.12 | H41: 735.18 | I41: 777.08 | J41: 785.02 | K41: 798.03 | L41: 772 | M41: 751.05 | N41: 2494800 | O41: 0.71%
A42: 32 | B42: Capital_Goods | C42: BEL | D42: 145.75 | E42: 145.53 | F42: 144.27 | G42: 142.78 | H42: 141.52 | I42: 147.02 | J42: 148.28 | K42: 149.77 | L42: 146.8 | M42: 144.05 | N42: 26388450 | O42: 4.08%
A43: 33 | B43: Infrastructure | C43: BEML | D43: 1125.00 | E43: 1125.77 | F43: 1107.23 | G43: 1089.47 | H43: 1070.93 | I43: 1143.53 | J43: 1162.07 | K43: 1179.83 | L43: 1144.3 | M43: 1108 | N43: 2222100 | O43: 0.53%
A44: 34 | B44: Others | C44: BERGEPAINT | D44: 260.75 | E44: 259.30 | F44: 257.30 | G44: 253.85 | H44: 251.85 | I44: 262.75 | J44: 264.75 | K44: 268.20 | L44: 261.3 | M44: 255.85 | N44: 1579600 | O44: 7.32%
A45: 35 | B45: Finance | C45: BHARATFIN | D45: 1132.25 | E45: 1127.95 | F45: 1120.90 | G45: 1109.55 | H45: 1102.50 | I45: 1139.30 | J45: 1146.35 | K45: 1157.70 | L45: 1135 | M45: 1116.6 | N45: 4881000 | O45: 0.00%
A46: 36 | B46: Automobile | C46: BHARATFORG | D46: 730.85 | E46: 730.48 | F46: 725.97 | G46: 721.08 | H46: 716.57 | I46: 735.37 | J46: 739.88 | K46: 744.77 | L46: 735 | M46: 725.6 | N46: 8286000 | O46: 0.97%
A47: 37 | B47: Telecom | C47: BHARTIARTL | D47: 396.00 | E47: 397.12 | F47: 391.98 | G47: 387.97 | H47: 382.83 | I47: 401.13 | J47: 406.27 | K47: 410.28 | L47: 402.25 | M47: 393.1 | N47: 58225000 | O47: 3.75%
A48: 38 | B48: Capital_Goods | C48: BHEL | D48: 87.45 | E48: 87.22 | F48: 86.63 | G48: 85.82 | H48: 85.23 | I48: 88.03 | J48: 88.62 | K48: 89.43 | L48: 87.8 | M48: 86.4 | N48: 44805000 | O48: 0.03%
A49: 39 | B49: Pharma | C49: BIOCON | D49: 607.85 | E49: 606.65 | F49: 602.90 | G49: 597.95 | H49: 594.20 | I49: 611.60 | J49: 615.35 | K49: 620.30 | L49: 610.4 | M49: 601.7 | N49: 7502400 | O49: -3.79%
A50: 40 | B50: Automobile | C50: BOSCHLTD | D50: 19663.60 | E50: 19688.93 | F50: 19254.62 | G50: 18845.63 | H50: 18411.32 | I50: 20097.92 | J50: 20532.23 | K50: 20941.22 | L50: 20123.25 | M50: 19279.95 | N50: 189050 | O50: 5.87%
A51: 41 | B51: Oil_Gas | C51: BPCL | D51: 424.35 | E51: 423.00 | F51: 420.25 | G51: 416.15 | H51: 413.40 | I51: 427.10 | J51: 429.85 | K51: 433.95 | L51: 425.75 | M51: 418.9 | N51: 11511000 | O51: -1.74%
A52: 42 | B52: FMCG | C52: BRITANNIA | D52: 5075.75 | E52: 5062.23 | F52: 5040.72 | G52: 5005.68 | H52: 4984.17 | I52: 5097.27 | J52: 5118.78 | K52: 5153.82 | L52: 5083.75 | M52: 5027.2 | N52: 849800 | O52: 0.21%
A53: 43 | B53: Pharma | C53: CADILAHC | D53: 396.50 | E53: 398.87 | F53: 392.83 | G53: 389.17 | H53: 383.13 | I53: 402.53 | J53: 408.57 | K53: 412.23 | L53: 404.9 | M53: 395.2 | N53: 6033600 | O53: 2.03%
A54: 44 | B54: Banking | C54: CANBK | D54: 285.60 | E54: 281.37 | F54: 271.33 | G54: 257.07 | H54: 247.03 | I54: 295.63 | J54: 305.67 | K54: 319.93 | L54: 291.4 | M54: 267.1 | N54: 12145600 | O54: 6.59%
A55: 45 | B55: Others | C55: CANFINHOME | D55: 441.85 | E55: 440.03 | F55: 436.17 | G55: 430.48 | H55: 426.62 | I55: 445.72 | J55: 449.58 | K55: 455.27 | L55: 443.9 | M55: 434.35 | N55: 7918750 | O55: 0.62%
A56: 46 | B56: Finance | C56: CAPF | D56: 660.35 | E56: 656.50 | F56: 647.60 | G56: 634.85 | H56: 625.95 | I56: 669.25 | J56: 678.15 | K56: 690.90 | L56: 665.4 | M56: 643.75 | N56: 7565600 | O56: -2.68%
A57: 47 | B57: Oil_Gas | C57: CASTROLIND | D57: 206.70 | E57: 207.00 | F57: 204.75 | G57: 202.80 | H57: 200.55 | I57: 208.95 | J57: 211.20 | K57: 213.15 | L57: 209.25 | M57: 205.05 | N57: 11510800 | O57: 2.62%
A58: 48 | B58: Automobile | C58: CEATLTD | D58: 1647.40 | E58: 1632.40 | F58: 1608.00 | G58: 1568.60 | H58: 1544.20 | I58: 1671.80 | J58: 1696.20 | K58: 1735.60 | L58: 1656.8 | M58: 1593 | N58: 1050350 | O58: -0.60%
A59: 49 | B59: Textile | C59: CENTURYTEX | D59: 1206.95 | E59: 1202.98 | F59: 1190.97 | G59: 1174.98 | H59: 1162.97 | I59: 1218.97 | J59: 1230.98 | K59: 1246.97 | L59: 1215 | M59: 1187 | N59: 6006000 | O59: 0.59%
A60: 50 | B60: Power | C60: CESC | D60: 1003.55 | E60: 1001.52 | F60: 990.03 | G60: 976.52 | H60: 965.03 | I60: 1015.03 | J60: 1026.52 | K60: 1040.03 | L60: 1013 | M60: 988 | N60: 5832200 | O60: 0.20%
A61: 51 | B61: Power | C61: CGPOWER | D61: 80.75 | E61: 80.65 | F61: 80.10 | G61: 79.45 | H61: 78.90 | I61: 81.30 | J61: 81.85 | K61: 82.50 | L61: 81.2 | M61: 80 | N61: 21780000 | O61: -0.66%
A62: 52 | B62: Others | C62: CHENNPETRO | D62: 341.45 | E62: 340.55 | F62: 337.90 | G62: 334.35 | H62: 331.70 | I62: 344.10 | J62: 346.75 | K62: 350.30 | L62: 343.2 | M62: 337 | N62: 2560500 | O62: -1.61%
A63: 53 | B63: Others | C63: CHOLAFIN | D63: 1524.55 | E63: 1516.80 | F63: 1504.75 | G63: 1484.95 | H63: 1472.90 | I63: 1536.60 | J63: 1548.65 | K63: 1568.45 | L63: 1528.85 | M63: 1497 | N63: 465000 | O63: 6.41%
A64: 54 | B64: Pharma | C64: CIPLA | D64: 563.70 | E64: 567.67 | F64: 556.33 | G64: 548.97 | H64: 537.63 | I64: 575.03 | J64: 586.37 | K64: 593.73 | L64: 579 | M64: 560.3 | N64: 8551000 | O64: 6.36%
A65: 55 | B65: Others | C65: COALINDIA | D65: 277.25 | E65: 277.50 | F65: 275.15 | G65: 273.05 | H65: 270.70 | I65: 279.60 | J65: 281.95 | K65: 284.05 | L65: 279.85 | M65: 275.4 | N65: 17754000 | O65: 1.75%
A66: 56 | B66: FMCG | C66: COLPAL | D66: 1092.70 | E66: 1091.25 | F66: 1085.10 | G66: 1077.50 | H66: 1071.35 | I66: 1098.85 | J66: 1105.00 | K66: 1112.60 | L66: 1097.4 | M66: 1083.65 | N66: 1514100 | O66: 1.03%
A67: 57 | B67: Others | C67: CONCOR | D67: 1247.55 | E67: 1251.57 | F67: 1238.63 | G67: 1229.72 | H67: 1216.78 | I67: 1260.48 | J67: 1273.42 | K67: 1282.33 | L67: 1264.5 | M67: 1242.65 | N67: 1005000 | O67: 1.71%
A68: 58 | B68: Capital_Goods | C68: CUMMINSIND | D68: 746.25 | E68: 742.95 | F68: 735.05 | G68: 723.85 | H68: 715.95 | I68: 754.15 | J68: 762.05 | K68: 773.25 | L68: 750.85 | M68: 731.75 | N68: 2016600 | O68: 1.02%
A69: 59 | B69: FMCG | C69: DABUR | D69: 338.55 | E69: 338.45 | F69: 336.85 | G69: 335.15 | H69: 333.55 | I69: 340.15 | J69: 341.75 | K69: 343.45 | L69: 340.05 | M69: 336.75 | N69: 12492500 | O69: -0.62%
A70: 60 | B70: Cement | C70: DALMIABHA | D70: 2933.55 | E70: 2938.97 | F70: 2904.93 | G70: 2876.32 | H70: 2842.28 | I70: 2967.58 | J70: 3001.62 | K70: 3030.23 | L70: 2973 | M70: 2910.35 | N70: 594300 | O70: 1.33%
A71: 61 | B71: Banking | C71: DCBBANK | D71: 171.20 | E71: 170.35 | F71: 168.75 | G71: 166.30 | H71: 164.70 | I71: 172.80 | J71: 174.40 | K71: 176.85 | L71: 171.95 | M71: 167.9 | N71: 4486500 | O71: 2.36%
A72: 62 | B72: Finance | C72: DHFL | D72: 543.40 | E72: 539.58 | F72: 532.17 | G72: 520.93 | H72: 513.52 | I72: 550.82 | J72: 558.23 | K72: 569.47 | L72: 547 | M72: 528.35 | N72: 28285500 | O72: 1.79%
A73: 63 | B73: Media | C73: DISHTV | D73: 72.05 | E73: 71.85 | F73: 71.20 | G73: 70.35 | H73: 69.70 | I73: 72.70 | J73: 73.35 | K73: 74.20 | L73: 72.5 | M73: 71 | N73: 48083000 | O73: -1.86%
A74: 64 | B74: Pharma | C74: DIVISLAB | D74: 1122.60 | E74: 1119.25 | F74: 1109.50 | G74: 1096.40 | H74: 1086.65 | I74: 1132.35 | J74: 1142.10 | K74: 1155.20 | L74: 1129 | M74: 1106.15 | N74: 1995200 | O74: -0.76%
A75: 65 | B75: Realty | C75: DLF | D75: 207.10 | E75: 205.80 | F75: 203.85 | G75: 200.60 | H75: 198.65 | I75: 209.05 | J75: 211.00 | K75: 214.25 | L75: 207.75 | M75: 202.55 | N75: 49535000 | O75: -3.70%
A76: 66 | B76: Pharma | C76: DRREDDY | D76: 2122.40 | E76: 2125.03 | F76: 2102.72 | G76: 2083.03 | H76: 2060.72 | I76: 2144.72 | J76: 2167.03 | K76: 2186.72 | L76: 2147.35 | M76: 2105.35 | N76: 4460250 | O76: 0.01%
A77: 67 | B77: Automobile | C77: EICHERMOT | D77: 29784.95 | E77: 29630.08 | F77: 29410.17 | G77: 29035.38 | H77: 28815.47 | I77: 30004.87 | J77: 30224.78 | K77: 30599.57 | L77: 29850 | M77: 29255.3 | N77: 217175 | O77: 5.78%
A78: 68 | B78: Infrastructure | C78: ENGINERSIN | D78: 166.90 | E78: 165.82 | F78: 163.88 | G78: 160.87 | H78: 158.93 | I78: 168.83 | J78: 170.77 | K78: 173.78 | L78: 167.75 | M78: 162.8 | N78: 6720000 | O78: -1.74%
A79: 69 | B79: Finance | C79: EQUITAS | D79: 150.90 | E79: 150.13 | F79: 148.97 | G79: 147.03 | H79: 145.87 | I79: 152.07 | J79: 153.23 | K79: 155.17 | L79: 151.3 | M79: 148.2 | N79: 17788800 | O79: 0.29%
A80: 70 | B80: Automobile | C80: ESCORTS | D80: 893.40 | E80: 891.18 | F80: 883.57 | G80: 873.73 | H80: 866.12 | I80: 901.02 | J80: 908.63 | K80: 918.47 | L80: 898.8 | M80: 881.35 | N80: 3140500 | O80: 1.53%
A81: 71 | B81: Automobile | C81: EXIDEIND | D81: 237.30 | E81: 237.28 | F81: 233.57 | G81: 229.83 | H81: 226.12 | I81: 241.02 | J81: 244.73 | K81: 248.47 | L81: 241 | M81: 233.55 | N81: 8788000 | O81: 8.33%
A82: 72 | B82: Banking | C82: FEDERALBNK | D82: 94.05 | E82: 93.70 | F82: 92.85 | G82: 91.65 | H82: 90.80 | I82: 94.90 | J82: 95.75 | K82: 96.95 | L82: 94.55 | M82: 92.5 | N82: 59966500 | O82: 6.57%
A83: 73 | B83: Oil_Gas | C83: GAIL | D83: 333.40 | E83: 333.95 | F83: 330.85 | G83: 328.30 | H83: 325.20 | I83: 336.50 | J83: 339.60 | K83: 342.15 | L83: 337.05 | M83: 331.4 | N83: 13631037 | O83: -1.47%
A84: 74 | B84: Pharma | C84: GLENMARK | D84: 556.50 | E84: 558.97 | F84: 549.03 | G84: 541.57 | H84: 531.63 | I84: 566.43 | J84: 576.37 | K84: 583.83 | L84: 568.9 | M84: 551.5 | N84: 5286600 | O84: 2.21%
A85: 75 | B85: Infrastructure | C85: GMRINFRA | D85: 19.00 | E85: 18.97 | F85: 18.73 | G85: 18.47 | H85: 18.23 | I85: 19.23 | J85: 19.47 | K85: 19.73 | L85: 19.2 | M85: 18.7 | N85: 289620000 | O85: 0.63%
A86: 76 | B86: Others | C86: GODFRYPHLP | D86: 861.55 | E86: 858.68 | F86: 849.37 | G86: 837.18 | H86: 827.87 | I86: 870.87 | J86: 880.18 | K86: 892.37 | L86: 868 | M86: 846.5 | N86: 622500 | O86: -1.43%
A87: 77 | B87: FMCG | C87: GODREJCP | D87: 1092.15 | E87: 1093.47 | F87: 1080.88 | G87: 1069.62 | H87: 1057.03 | I87: 1104.73 | J87: 1117.32 | K87: 1128.58 | L87: 1106.05 | M87: 1082.2 | N87: 2509600 | O87: 5.20%
A88: 78 | B88: FMCG | C88: GODREJIND | D88: 557.80 | E88: 552.77 | F88: 545.83 | G88: 533.87 | H88: 526.93 | I88: 564.73 | J88: 571.67 | K88: 583.63 | L88: 559.7 | M88: 540.8 | N88: 2583000 | O88: 6.89%
A89: 79 | B89: Pharma | C89: GRANULES | D89: 107.35 | E89: 107.53 | F89: 106.52 | G89: 105.68 | H89: 104.67 | I89: 108.37 | J89: 109.38 | K89: 110.22 | L89: 108.55 | M89: 106.7 | N89: 15350000 | O89: -0.84%
A90: 80 | B90: Cement | C90: GRASIM | D90: 1100.00 | E90: 1091.57 | F90: 1079.43 | G90: 1058.87 | H90: 1046.73 | I90: 1112.13 | J90: 1124.27 | K90: 1144.83 | L90: 1103.7 | M90: 1071 | N90: 5148000 | O90: -3.62%
A91: 81 | B91: Others | C91: GSFC | D91: 125.70 | E91: 125.10 | F91: 123.70 | G91: 121.70 | H91: 120.30 | I91: 127.10 | J91: 128.50 | K91: 130.50 | L91: 126.5 | M91: 123.1 | N91: 18081000 | O91: -1.13%
A92: 82 | B92: Others | C92: HAVELLS | D92: 513.65 | E92: 513.70 | F92: 509.95 | G92: 506.25 | H92: 502.50 | I92: 517.40 | J92: 521.15 | K92: 524.85 | L92: 517.45 | M92: 510 | N92: 5430000 | O92: 2.07%
A93: 83 | B93: Others | C93: HCC | D93: 25.00 | E93: 24.95 | F93: 24.65 | G93: 24.30 | H93: 24.00 | I93: 25.30 | J93: 25.60 | K93: 25.95 | L93: 25.25 | M93: 24.6 | N93: 46290000 | O93: 1.15%
A94: 84 | B94: Technology | C94: HCLTECH | D94: 967.30 | E94: 972.33 | F94: 956.97 | G94: 946.63 | H94: 931.27 | I94: 982.67 | J94: 998.03 | K94: 1008.37 | L94: 987.7 | M94: 962 | N94: 9960300 | O94: 1.61%
A95: 85 | B95: Finance | C95: HDFC | D95: 1833.75 | E95: 1830.10 | F95: 1821.20 | G95: 1808.65 | H95: 1799.75 | I95: 1842.65 | J95: 1851.55 | K95: 1864.10 | L95: 1839 | M95: 1817.55 | N95: 16571500 | O95: -0.55%
A96: 86 | B96: Banking | C96: HDFCBANK | D96: 1915.85 | E96: 1910.47 | F96: 1901.93 | G96: 1888.02 | H96: 1879.48 | I96: 1924.38 | J96: 1932.92 | K96: 1946.83 | L96: 1919 | M96: 1896.55 | N96: 16664000 | O96: -2.92%
A97: 87 | B97: Realty | C97: HDIL | D97: 41.75 | E97: 41.67 | F97: 41.08 | G97: 40.42 | H97: 39.83 | I97: 42.33 | J97: 42.92 | K97: 43.58 | L97: 42.25 | M97: 41 | N97: 28584000 | O97: 2.35%
A98: 88 | B98: Automobile | C98: HEROMOTOCO | D98: 3781.60 | E98: 3757.85 | F98: 3723.80 | G98: 3666.00 | H98: 3631.95 | I98: 3815.65 | J98: 3849.70 | K98: 3907.50 | L98: 3791.9 | M98: 3700.05 | N98: 1606800 | O98: 7.48%
A99: 89 | B99: Technology | C99: HEXAWARE | D99: 398.95 | E99: 399.03 | F99: 396.02 | G99: 393.08 | H99: 390.07 | I99: 401.97 | J99: 404.98 | K99: 407.92 | L99: 402.05 | M99: 396.1 | N99: 4779000 | O99: 1.92%
A100: 90 | B100: Metals | C100: HINDALCO | D100: 214.40 | E100: 211.83 | F100: 208.67 | G100: 202.93 | H100: 199.77 | I100: 217.57 | J100: 220.73 | K100: 226.47 | L100: 215 | M100: 206.1 | N100: 51075500 | O100: -3.44%
A101: 91 | B101: Oil_Gas | C101: HINDPETRO | D101: 350.20 | E101: 349.52 | F101: 347.23 | G101: 344.27 | H101: 341.98 | I101: 352.48 | J101: 354.77 | K101: 357.73 | L101: 351.8 | M101: 346.55 | N101: 25022025 | O101: 0.78%
A102: 92 | B102: FMCG | C102: HINDUNILVR | D102: 1383.70 | E102: 1379.10 | F102: 1373.25 | G102: 1362.80 | H102: 1356.95 | I102: 1389.55 | J102: 1395.40 | K102: 1405.85 | L102: 1384.95 | M102: 1368.65 | N102: 8671800 | O102: 0.06%
A103: 93 | B103: Metals | C103: HINDZINC | D103: 313.65 | E103: 313.38 | F103: 309.82 | G103: 305.98 | H103: 302.42 | I103: 317.22 | J103: 320.78 | K103: 324.62 | L103: 316.95 | M103: 309.55 | N103: 12931200 | O103: -12.98%
A104: 94 | B104: Finance | C104: IBULHSGFIN | D104: 1342.00 | E104: 1333.00 | F104: 1318.00 | G104: 1294.00 | H104: 1279.00 | I104: 1357.00 | J104: 1372.00 | K104: 1396.00 | L104: 1348 | M104: 1309 | N104: 13551600 | O104: -3.41%
A105: 95 | B105: Banking | C105: ICICIBANK | D105: 279.15 | E105: 275.95 | F105: 271.50 | G105: 263.85 | H105: 259.40 | I105: 283.60 | J105: 288.05 | K105: 295.70 | L105: 280.4 | M105: 268.3 | N105: 97600250 | O105: -4.85%
A106: 96 | B106: Others | C106: ICICIPRULI | D106: 396.10 | E106: 395.85 | F106: 392.95 | G106: 389.80 | H106: 386.90 | I106: 399.00 | J106: 401.90 | K106: 405.05 | L106: 398.75 | M106: 392.7 | N106: 4277000 | O106: 4.21%
A107: 97 | B107: Banking | C107: IDBI | D107: 72.75 | E107: 72.50 | F107: 71.65 | G107: 70.55 | H107: 69.70 | I107: 73.60 | J107: 74.45 | K107: 75.55 | L107: 73.35 | M107: 71.4 | N107: 47900000 | O107: 6.30%
A108: 98 | B108: Telecom | C108: IDEA | D108: 77.35 | E108: 77.22 | F108: 76.43 | G108: 75.52 | H108: 74.73 | I108: 78.13 | J108: 78.92 | K108: 79.83 | L108: 78 | M108: 76.3 | N108: 103950000 | O108: 0.36%
A109: 99 | B109: Finance | C109: IDFC | D109: 52.70 | E109: 52.32 | F109: 51.63 | G109: 50.57 | H109: 49.88 | I109: 53.38 | J109: 54.07 | K109: 55.13 | L109: 53 | M109: 51.25 | N109: 157568400 | O109: 0.24%
A110: 100 | B110: Banking | C110: IDFCBANK | D110: 49.85 | E110: 49.52 | F110: 48.88 | G110: 47.92 | H110: 47.28 | I110: 50.48 | J110: 51.12 | K110: 52.08 | L110: 50.15 | M110: 48.55 | N110: 184104000 | O110: -0.18%
A111: 101 | B111: Finance | C111: IFCI | D111: 21.15 | E111: 21.03 | F111: 20.82 | G111: 20.48 | H111: 20.27 | I111: 21.37 | J111: 21.58 | K111: 21.92 | L111: 21.25 | M111: 20.7 | N111: 76230000 | O111: 2.21%
A112: 102 | B112: Oil_Gas | C112: IGL | D112: 290.45 | E112: 288.40 | F112: 284.85 | G112: 279.25 | H112: 275.70 | I112: 294.00 | J112: 297.55 | K112: 303.15 | L112: 291.95 | M112: 282.8 | N112: 5409250 | O112: -7.22%
A113: 103 | B113: Cement | C113: INDIACEM | D113: 156.30 | E113: 154.95 | F113: 153.15 | G113: 150.00 | H113: 148.20 | I113: 158.10 | J113: 159.90 | K113: 163.05 | L113: 156.75 | M113: 151.8 | N113: 23891000 | O113: 3.22%
A114: 104 | B114: Banking | C114: INDIANB | D114: 318.95 | E114: 315.52 | F114: 309.63 | G114: 300.32 | H114: 294.43 | I114: 324.83 | J114: 330.72 | K114: 340.03 | L114: 321.4 | M114: 306.2 | N114: 3674000 | O114: 4.85%
A115: 105 | B115: Others | C115: INDIGO | D115: 1446.60 | E115: 1430.53 | F115: 1407.07 | G115: 1367.53 | H115: 1344.07 | I115: 1470.07 | J115: 1493.53 | K115: 1533.07 | L115: 1454 | M115: 1391 | N115: 3268800 | O115: -0.51%
A116: 106 | B116: Banking | C116: INDUSINDBK | D116: 1830.70 | E116: 1824.48 | F116: 1813.97 | G116: 1797.23 | H116: 1786.72 | I116: 1841.22 | J116: 1851.73 | K116: 1868.47 | L116: 1835 | M116: 1807.75 | N116: 5986500 | O116: -0.15%
A117: 107 | B117: Technology | C117: INFIBEAM | D117: 164.55 | E117: 163.63 | F117: 161.67 | G117: 158.78 | H117: 156.82 | I117: 166.52 | J117: 168.48 | K117: 171.37 | L117: 165.6 | M117: 160.75 | N117: 38792000 | O117: -0.81%
A118: 108 | B118: Telecom | C118: INFRATEL | D118: 331.75 | E118: 331.47 | F118: 328.28 | G118: 324.82 | H118: 321.63 | I118: 334.93 | J118: 338.12 | K118: 341.58 | L118: 334.65 | M118: 328 | N118: 5844600 | O118: 0.70%
A119: 109 | B119: Technology | C119: INFY | D119: 1150.65 | E119: 1146.20 | F119: 1138.45 | G119: 1126.25 | H119: 1118.50 | I119: 1158.40 | J119: 1166.15 | K119: 1178.35 | L119: 1153.95 | M119: 1134 | N119: 36312600 | O119: -1.38%
A120: 110 | B120: Oil_Gas | C120: IOC | D120: 174.05 | E120: 173.67 | F120: 172.93 | G120: 171.82 | H120: 171.08 | I120: 174.78 | J120: 175.52 | K120: 176.63 | L120: 174.4 | M120: 172.55 | N120: 38820000 | O120: -0.29%
A121: 111 | B121: Infrastructure | C121: IRB | D121: 242.50 | E121: 242.02 | F121: 239.63 | G121: 236.77 | H121: 234.38 | I121: 244.88 | J121: 247.27 | K121: 250.13 | L121: 244.4 | M121: 239.15 | N121: 14655000 | O121: 0.03%
A122: 112 | B122: FMCG | C122: ITC | D122: 260.75 | E122: 259.98 | F122: 258.97 | G122: 257.18 | H122: 256.17 | I122: 261.77 | J122: 262.78 | K122: 264.57 | L122: 261 | M122: 258.2 | N122: 93033600 | O122: 1.38%
A123: 113 | B123: Others | C123: JETAIRWAYS | D123: 628.35 | E123: 626.80 | F123: 621.35 | G123: 614.35 | H123: 608.90 | I123: 633.80 | J123: 639.25 | K123: 646.25 | L123: 632.25 | M123: 619.8 | N123: 8244000 | O123: 1.58%
A124: 114 | B124: Metals | C124: JINDALSTEL | D124: 236.90 | E124: 233.72 | F124: 228.93 | G124: 220.97 | H124: 216.18 | I124: 241.68 | J124: 246.47 | K124: 254.43 | L124: 238.5 | M124: 225.75 | N124: 35838000 | O124: 2.85%
A125: 115 | B125: Others | C125: JISLJALEQS | D125: 115.05 | E125: 114.40 | F125: 113.15 | G125: 111.25 | H125: 110.00 | I125: 116.30 | J125: 117.55 | K125: 119.45 | L125: 115.65 | M125: 112.5 | N125: 39501000 | O125: 3.59%
A126: 116 | B126: Realty | C126: JPASSOCIAT | D126: 19.95 | E126: 19.97 | F126: 19.53 | G126: 19.12 | H126: 18.68 | I126: 20.38 | J126: 20.82 | K126: 21.23 | L126: 20.4 | M126: 19.55 | N126: 215730000 | O126: 1.49%
A127: 117 | B127: Metals | C127: JSWSTEEL | D127: 309.50 | E127: 307.07 | F127: 303.33 | G127: 297.17 | H127: 293.43 | I127: 313.23 | J127: 316.97 | K127: 323.13 | L127: 310.8 | M127: 300.9 | N127: 66096000 | O127: 0.58%
A128: 118 | B128: Others | C128: JUBLFOOD | D128: 2348.30 | E128: 2342.87 | F128: 2332.73 | G128: 2317.17 | H128: 2307.03 | I128: 2358.43 | J128: 2368.57 | K128: 2384.13 | L128: 2353 | M128: 2327.3 | N128: 1822000 | O128: 0.66%
A129: 119 | B129: Others | C129: JUSTDIAL | D129: 467.70 | E129: 468.93 | F129: 462.17 | G129: 456.63 | H129: 449.87 | I129: 474.47 | J129: 481.23 | K129: 486.77 | L129: 475.7 | M129: 463.4 | N129: 4081000 | O129: -0.44%
A130: 120 | B130: Others | C130: KAJARIACER | D130: 574.25 | E130: 574.07 | F130: 569.18 | G130: 564.12 | H130: 559.23 | I130: 579.13 | J130: 584.02 | K130: 589.08 | L130: 578.95 | M130: 569 | N130: 1382400 | O130: -0.35%
A131: 121 | B131: Banking | C131: KOTAKBANK | D131: 1120.20 | E131: 1110.43 | F131: 1097.87 | G131: 1075.53 | H131: 1062.97 | I131: 1132.77 | J131: 1145.33 | K131: 1167.67 | L131: 1123 | M131: 1088.1 | N131: 10115200 | O131: -1.06%
A132: 122 | B132: Technology | C132: KPIT | D132: 222.45 | E132: 222.28 | F132: 220.87 | G132: 219.28 | H132: 217.87 | I132: 223.87 | J132: 225.28 | K132: 226.87 | L132: 223.7 | M132: 220.7 | N132: 9724500 | O132: 5.41%
A133: 123 | B133: Others | C133: KSCL | D133: 505.25 | E133: 504.38 | F133: 500.87 | G133: 496.48 | H133: 492.97 | I133: 508.77 | J133: 512.28 | K133: 516.67 | L133: 507.9 | M133: 500 | N133: 2340000 | O133: 2.56%
A134: 124 | B134: Banking | C134: KTKBANK | D134: 123.50 | E134: 122.98 | F134: 121.97 | G134: 120.43 | H134: 119.42 | I134: 124.52 | J134: 125.53 | K134: 127.07 | L134: 124 | M134: 121.45 | N134: 24521400 | O134: -1.47%
A135: 125 | B135: Finance | C135: L&TFH | D135: 172.60 | E135: 169.85 | F135: 166.30 | G135: 160.00 | H135: 156.45 | I135: 176.15 | J135: 179.70 | K135: 186.00 | L135: 173.4 | M135: 163.55 | N135: 31504500 | O135: 7.56%
A136: 126 | B136: Finance | C136: LICHSGFIN | D136: 566.30 | E136: 558.75 | F136: 548.80 | G136: 531.30 | H136: 521.35 | I136: 576.25 | J136: 586.20 | K136: 603.70 | L136: 568.7 | M136: 541.25 | N136: 12465200 | O136: 1.32%
A137: 127 | B137: Capital_Goods | C137: LT | D137: 1333.10 | E137: 1328.25 | F137: 1316.75 | G137: 1300.40 | H137: 1288.90 | I137: 1344.60 | J137: 1356.10 | K137: 1372.45 | L137: 1339.75 | M137: 1311.9 | N137: 12551250 | O137: 2.04%
A138: 128 | B138: Pharma | C138: LUPIN | D138: 789.05 | E138: 788.63 | F138: 783.32 | G138: 777.58 | H138: 772.27 | I138: 794.37 | J138: 799.68 | K138: 805.42 | L138: 793.95 | M138: 782.9 | N138: 13470600 | O138: -0.15%
A139: 129 | B139: Automobile | C139: M&M | D139: 775.55 | E139: 776.55 | F139: 770.10 | G139: 764.65 | H139: 758.20 | I139: 782.00 | J139: 788.45 | K139: 793.90 | L139: 783 | M139: 771.1 | N139: 13962000 | O139: -0.35%
A140: 130 | B140: Finance | C140: M&MFIN | D140: 490.20 | E140: 484.52 | F140: 476.58 | G140: 462.97 | H140: 455.03 | I140: 498.13 | J140: 506.07 | K140: 519.68 | L140: 492.45 | M140: 470.9 | N140: 7460000 | O140: 3.72%
A141: 131 | B141: Others | C141: MANAPPURAM | D141: 119.05 | E141: 118.32 | F141: 117.13 | G141: 115.22 | H141: 114.03 | I141: 120.23 | J141: 121.42 | K141: 123.33 | L141: 119.5 | M141: 116.4 | N141: 18912000 | O141: 1.48%
A142: 132 | B142: FMCG | C142: MARICO | D142: 324.85 | E142: 325.65 | F142: 320.30 | G142: 315.75 | H142: 310.40 | I142: 330.20 | J142: 335.55 | K142: 340.10 | L142: 331 | M142: 321.1 | N142: 4768400 | O142: 12.65%
A143: 133 | B143: Automobile | C143: MARUTI | D143: 9170.25 | E143: 9147.67 | F143: 9111.63 | G143: 9053.02 | H143: 9016.98 | I143: 9206.28 | J143: 9242.32 | K143: 9300.93 | L143: 9183.7 | M143: 9089.05 | N143: 2227200 | O143: -0.60%
A144: 134 | B144: FMCG | C144: MCDOWELL-N | D144: 3268.20 | E144: 3247.45 | F144: 3221.40 | G144: 3174.60 | H144: 3148.55 | I144: 3294.25 | J144: 3320.30 | K144: 3367.10 | L144: 3273.5 | M144: 3200.65 | N144: 2232750 | O144: 1.08%
A145: 135 | B145: Others | C145: MCX | D145: 745.40 | E145: 743.10 | F145: 737.30 | G145: 729.20 | H145: 723.40 | I145: 751.20 | J145: 757.00 | K145: 765.10 | L145: 748.9 | M145: 735 | N145: 3252500 | O145: 0.09%
A146: 136 | B146: Finance | C146: MFSL | D146: 461.20 | E146: 460.00 | F146: 455.50 | G146: 449.80 | H146: 445.30 | I146: 465.70 | J146: 470.20 | K146: 475.90 | L146: 464.5 | M146: 454.3 | N146: 2732000 | O146: 0.18%
A147: 137 | B147: Others | C147: MGL | D147: 1018.05 | E147: 1016.57 | F147: 1000.13 | G147: 982.22 | H147: 965.78 | I147: 1034.48 | J147: 1050.92 | K147: 1068.83 | L147: 1033 | M147: 998.65 | N147: 907200 | O147: 2.65%
A148: 138 | B148: Technology | C148: MINDTREE | D148: 802.95 | E148: 799.57 | F148: 792.73 | G148: 782.52 | H148: 775.68 | I148: 809.78 | J148: 816.62 | K148: 826.83 | L148: 806.4 | M148: 789.35 | N148: 1758000 | O148: 1.60%
A149: 139 | B149: Automobile | C149: MOTHERSUMI | D149: 340.60 | E149: 340.55 | F149: 337.70 | G149: 334.80 | H149: 331.95 | I149: 343.45 | J149: 346.30 | K149: 349.20 | L149: 343.4 | M149: 337.65 | N149: 14371200 | O149: 0.46%
A150: 140 | B150: Automobile | C150: MRF | D150: 77191.75 | E150: 76910.40 | F150: 76370.80 | G150: 75549.85 | H150: 75010.25 | I150: 77731.35 | J150: 78270.95 | K150: 79091.90 | L150: 77450 | M150: 76089.45 | N150: 44580 | O150: 4.87%
A151: 141 | B151: Others | C151: MRPL | D151: 112.25 | E151: 112.28 | F151: 111.47 | G151: 110.68 | H151: 109.87 | I151: 113.07 | J151: 113.88 | K151: 114.67 | L151: 113.1 | M151: 111.5 | N151: 5004000 | O151: 1.92%
A152: 142 | B152: Finance | C152: MUTHOOTFIN | D152: 435.00 | E152: 430.85 | F152: 425.35 | G152: 415.70 | H152: 410.20 | I152: 440.50 | J152: 446.00 | K152: 455.65 | L152: 436.35 | M152: 421.2 | N152: 1996500 | O152: 8.04%
A153: 143 | B153: Others | C153: NATIONALUM | D153: 72.45 | E153: 72.42 | F153: 71.68 | G153: 70.92 | H153: 70.18 | I153: 73.18 | J153: 73.92 | K153: 74.68 | L153: 73.15 | M153: 71.65 | N153: 36368000 | O153: 1.65%
A154: 144 | B154: Others | C154: NBCC | D154: 207.95 | E154: 207.68 | F154: 206.77 | G154: 205.58 | H154: 204.67 | I154: 208.87 | J154: 209.78 | K154: 210.97 | L154: 208.6 | M154: 206.5 | N154: 10377000 | O154: 0.67%
A155: 145 | B155: Infrastructure | C155: NCC | D155: 130.25 | E155: 130.12 | F155: 128.58 | G155: 126.92 | H155: 125.38 | I155: 131.78 | J155: 133.32 | K155: 134.98 | L155: 131.65 | M155: 128.45 | N155: 25384000 | O155: 6.91%
A156: 146 | B156: Others | C156: NESTLEIND | D156: 8428.55 | E156: 8419.33 | F156: 8391.67 | G156: 8354.78 | H156: 8327.12 | I156: 8456.22 | J156: 8483.88 | K156: 8520.77 | L156: 8447 | M156: 8382.45 | N156: 258000 | O156: 3.20%
A157: 147 | B157: Power | C157: NHPC | D157: 28.85 | E157: 28.78 | F157: 28.52 | G157: 28.18 | H157: 27.92 | I157: 29.12 | J157: 29.38 | K157: 29.72 | L157: 29.05 | M157: 28.45 | N157: 29970000 | O157: -0.98%
A158: 148 | B158: Technology | C158: NIITTECH | D158: 883.45 | E158: 883.10 | F158: 876.25 | G158: 869.05 | H158: 862.20 | I158: 890.30 | J158: 897.15 | K158: 904.35 | L158: 889.95 | M158: 875.9 | N158: 1575000 | O158: 2.24%
A159: 149 | B159: Metals | C159: NMDC | D159: 118.45 | E159: 118.28 | F159: 117.67 | G159: 116.88 | H159: 116.27 | I159: 119.07 | J159: 119.68 | K159: 120.47 | L159: 118.9 | M159: 117.5 | N159: 32238000 | O159: 0.17%
A160: 150 | B160: Power | C160: NTPC | D160: 169.05 | E160: 168.52 | F160: 167.38 | G160: 165.72 | H160: 164.58 | I160: 170.18 | J160: 171.32 | K160: 172.98 | L160: 169.65 | M160: 166.85 | N160: 33340000 | O160: -0.92%
A161: 151 | B161: Technology | C161: OFSS | D161: 3930.75 | E161: 3946.22 | F161: 3884.68 | G161: 3838.62 | H161: 3777.08 | I161: 3992.28 | J161: 4053.82 | K161: 4099.88 | L161: 4007.75 | M161: 3900.15 | N161: 67350 | O161: 8.45%
A162: 152 | B162: Oil_Gas | C162: OIL | D162: 218.30 | E162: 218.03 | F162: 216.92 | G162: 215.53 | H162: 214.42 | I162: 219.42 | J162: 220.53 | K162: 221.92 | L162: 219.15 | M162: 216.65 | N162: 3589344 | O162: 0.19%
A163: 153 | B163: Oil_Gas | C163: ONGC | D163: 178.25 | E163: 177.68 | F163: 176.87 | G163: 175.48 | H163: 174.67 | I163: 179.07 | J163: 179.88 | K163: 181.27 | L163: 178.5 | M163: 176.3 | N163: 33412500 | O163: -0.04%
A164: 154 | B164: Banking | C164: ORIENTBANK | D164: 97.90 | E164: 97.12 | F164: 95.03 | G164: 92.17 | H164: 90.08 | I164: 99.98 | J164: 102.07 | K164: 104.93 | L164: 99.2 | M164: 94.25 | N164: 14562000 | O164: 5.84%
A165: 155 | B165: Textile | C165: PAGEIND | D165: 24045.40 | E165: 23726.82 | F165: 23218.63 | G165: 22391.87 | H165: 21883.68 | I165: 24553.58 | J165: 25061.77 | K165: 25888.53 | L165: 24235 | M165: 22900.05 | N165: 36550 | O165: 30.54%
A166: 156 | B166: Others | C166: PCJEWELLER | D166: 297.90 | E166: 300.60 | F166: 292.30 | G166: 286.70 | H166: 278.40 | I166: 306.20 | J166: 314.50 | K166: 320.10 | L166: 308.9 | M166: 295 | N166: 8884500 | O166: 7.09%
A167: 157 | B167: Pharma | C167: PEL | D167: 2547.85 | E167: 2537.62 | F167: 2509.58 | G167: 2471.32 | H167: 2443.28 | I167: 2575.88 | J167: 2603.92 | K167: 2642.18 | L167: 2565.65 | M167: 2499.35 | N167: 1788444 | O167: -0.17%
A168: 158 | B168: Oil_Gas | C168: PETRONET | D168: 233.60 | E168: 233.18 | F168: 232.17 | G168: 230.73 | H168: 229.72 | I168: 234.62 | J168: 235.63 | K168: 237.07 | L168: 234.2 | M168: 231.75 | N168: 16377000 | O168: 0.42%
A169: 159 | B169: Finance | C169: PFC | D169: 88.65 | E169: 88.28 | F169: 87.47 | G169: 86.28 | H169: 85.47 | I169: 89.47 | J169: 90.28 | K169: 91.47 | L169: 89.1 | M169: 87.1 | N169: 70314000 | O169: -0.80%
A170: 160 | B170: FMCG | C170: PIDILITIND | D170: 970.85 | E170: 972.42 | F170: 964.83 | G170: 958.82 | H170: 951.23 | I170: 978.43 | J170: 986.02 | K170: 992.03 | L170: 980 | M170: 966.4 | N170: 1682000 | O170: -1.29%
A171: 161 | B171: Banking | C171: PNB | D171: 97.80 | E171: 97.35 | F171: 96.05 | G171: 94.30 | H171: 93.00 | I171: 99.10 | J171: 100.40 | K171: 102.15 | L171: 98.65 | M171: 95.6 | N171: 74080000 | O171: 4.57%
A172: 162 | B172: Power | C172: POWERGRID | D172: 197.35 | E172: 197.83 | F172: 196.52 | G172: 195.68 | H172: 194.37 | I172: 198.67 | J172: 199.98 | K172: 200.82 | L172: 199.15 | M172: 197 | N172: 25492000 | O172: 4.56%
A173: 163 | B173: Power | C173: PTC | D173: 94.65 | E173: 93.87 | F173: 92.78 | G173: 90.92 | H173: 89.83 | I173: 95.73 | J173: 96.82 | K173: 98.68 | L173: 94.95 | M173: 92 | N173: 21168000 | O173: 2.16%
A174: 164 | B174: Others | C174: PVR | D174: 1262.55 | E174: 1259.73 | F174: 1240.07 | G174: 1217.58 | H174: 1197.92 | I174: 1282.22 | J174: 1301.88 | K174: 1324.37 | L174: 1279.4 | M174: 1237.25 | N174: 752400 | O174: 18.98%
A175: 165 | B175: Cement | C175: RAMCOCEM | D175: 791.30 | E175: 789.60 | F175: 768.70 | G175: 746.10 | H175: 725.20 | I175: 812.20 | J175: 833.10 | K175: 855.70 | L175: 810.5 | M175: 767 | N175: 1062400 | O175: 10.76%
A176: 166 | B176: Others | C176: RAYMOND | D176: 967.50 | E176: 963.28 | F176: 954.57 | G176: 941.63 | H176: 932.92 | I176: 976.22 | J176: 984.93 | K176: 997.87 | L176: 972 | M176: 950.35 | N176: 4804000 | O176: 1.73%
A177: 167 | B177: Banking | C177: RBLBANK | D177: 499.10 | E177: 497.27 | F177: 493.98 | G177: 488.87 | H177: 485.58 | I177: 502.38 | J177: 505.67 | K177: 510.78 | L177: 500.55 | M177: 492.15 | N177: 4284000 | O177: 0.99%
A178: 168 | B178: Telecom | C178: RCOM | D178: 23.40 | E178: 23.22 | F178: 22.08 | G178: 20.77 | H178: 19.63 | I178: 24.53 | J178: 25.67 | K178: 26.98 | L178: 24.35 | M178: 21.9 | N178: 130480000 | O178: 32.12%
A179: 169 | B179: Capital_Goods | C179: RNAVAL | D179: 30.65 | E179: 30.98 | F179: 30.07 | G179: 29.48 | H179: 28.57 | I179: 31.57 | J179: 32.48 | K179: 33.07 | L179: 31.9 | M179: 30.4 | N179: 41220000 | O179: -9.85%
A180: 170 | B180: Power | C180: RECLTD | D180: 131.00 | E180: 130.47 | F180: 129.18 | G180: 127.37 | H180: 126.08 | I180: 132.28 | J180: 133.57 | K180: 135.38 | L180: 131.75 | M180: 128.65 | N180: 33948000 | O180: 2.07%
A181: 171 | B181: Finance | C181: RELCAPITAL | D181: 453.10 | E181: 451.60 | F181: 443.90 | G181: 434.70 | H181: 427.00 | I181: 460.80 | J181: 468.50 | K181: 477.70 | L181: 459.3 | M181: 442.4 | N181: 12113250 | O181: -2.16%
A182: 172 | B182: Oil_Gas | C182: RELIANCE | D182: 910.70 | E182: 909.07 | F182: 906.18 | G182: 901.67 | H182: 898.78 | I182: 913.58 | J182: 916.47 | K182: 920.98 | L182: 911.95 | M182: 904.55 | N182: 53469000 | O182: 2.21%
A183: 173 | B183: Power | C183: RELINFRA | D183: 454.05 | E183: 452.42 | F183: 445.63 | G183: 437.22 | H183: 430.43 | I183: 460.83 | J183: 467.62 | K183: 476.03 | L183: 459.2 | M183: 444 | N183: 10055500 | O183: -2.46%
A184: 174 | B184: Others | C184: REPCOHOME | D184: 607.85 | E184: 610.85 | F184: 602.00 | G184: 596.15 | H184: 587.30 | I184: 616.70 | J184: 625.55 | K184: 631.40 | L184: 619.7 | M184: 605 | N184: 890100 | O184: 1.62%
A185: 175 | B185: Power | C185: RPOWER | D185: 42.95 | E185: 42.85 | F185: 42.05 | G185: 41.15 | H185: 40.35 | I185: 43.75 | J185: 44.55 | K185: 45.45 | L185: 43.65 | M185: 41.95 | N185: 63817000 | O185: 1.97%
A186: 176 | B186: Metals | C186: SAIL | D186: 75.65 | E186: 75.20 | F186: 74.55 | G186: 73.45 | H186: 72.80 | I186: 76.30 | J186: 76.95 | K186: 78.05 | L186: 75.85 | M186: 74.1 | N186: 88560000 | O186: -5.42%
A187: 177 | B187: Banking | C187: SBIN | D187: 259.65 | E187: 257.48 | F187: 253.02 | G187: 246.38 | H187: 241.92 | I187: 264.12 | J187: 268.58 | K187: 275.22 | L187: 261.95 | M187: 250.85 | N187: 77337000 | O187: -0.95%
A188: 178 | B188: Cement | C188: SHREECEM | D188: 16765.10 | E188: 16660.03 | F188: 16490.07 | G188: 16215.03 | H188: 16045.07 | I188: 16935.07 | J188: 17105.03 | K188: 17380.07 | L188: 16830 | M188: 16385 | N188: 56550 | O188: -1.39%
A189: 179 | B189: Capital_Goods | C189: SIEMENS | D189: 1130.55 | E189: 1133.65 | F189: 1124.40 | G189: 1118.25 | H189: 1109.00 | I189: 1139.80 | J189: 1149.05 | K189: 1155.20 | L189: 1142.9 | M189: 1127.5 | N189: 836500 | O189: 6.56%
A190: 180 | B190: Banking | C190: SOUTHBANK | D190: 24.70 | E190: 24.58 | F190: 24.27 | G190: 23.83 | H190: 23.52 | I190: 25.02 | J190: 25.33 | K190: 25.77 | L190: 24.9 | M190: 24.15 | N190: 156458661 | O190: 1.92%
A191: 181 | B191: Others | C191: SREINFRA | D191: 82.05 | E191: 81.23 | F191: 79.77 | G191: 77.48 | H191: 76.02 | I191: 83.52 | J191: 84.98 | K191: 87.27 | L191: 82.7 | M191: 78.95 | N191: 13705000 | O191: 2.43%
A192: 182 | B192: Textile | C192: SRF | D192: 2040.95 | E192: 2039.63 | F192: 2016.47 | G192: 1991.98 | H192: 1968.82 | I192: 2064.12 | J192: 2087.28 | K192: 2111.77 | L192: 2062.8 | M192: 2015.15 | N192: 513500 | O192: 3.74%
A193: 183 | B193: Finance | C193: SRTRANSFIN | D193: 1543.80 | E193: 1521.25 | F193: 1490.50 | G193: 1437.20 | H193: 1406.45 | I193: 1574.55 | J193: 1605.30 | K193: 1658.60 | L193: 1552 | M193: 1467.95 | N193: 2970600 | O193: 10.74%
A194: 184 | B194: Pharma | C194: STAR | D194: 654.20 | E194: 669.98 | F194: 631.62 | G194: 609.03 | H194: 570.67 | I194: 692.57 | J194: 730.93 | K194: 753.52 | L194: 708.35 | M194: 647.4 | N194: 2098800 | O194: -15.41%
A195: 185 | B195: Pharma | C195: SUNPHARMA | D195: 510.05 | E195: 511.02 | F195: 506.13 | G195: 502.22 | H195: 497.33 | I195: 514.93 | J195: 519.82 | K195: 523.73 | L195: 515.9 | M195: 507.1 | N195: 55121000 | O195: -0.47%
A196: 186 | B196: Media | C196: SUNTV | D196: 877.20 | E196: 877.20 | F196: 869.90 | G196: 862.60 | H196: 855.30 | I196: 884.50 | J196: 891.80 | K196: 899.10 | L196: 884.5 | M196: 869.9 | N196: 4625000 | O196: 2.41%
A197: 187 | B197: Power | C197: SUZLON | D197: 11.75 | E197: 11.75 | F197: 11.60 | G197: 11.45 | H197: 11.30 | I197: 11.90 | J197: 12.05 | K197: 12.20 | L197: 11.9 | M197: 11.6 | N197: 343840000 | O197: 1.00%
A198: 188 | B198: Banking | C198: SYNDIBANK | D198: 60.35 | E198: 59.72 | F198: 58.33 | G198: 56.32 | H198: 54.93 | I198: 61.73 | J198: 63.12 | K198: 65.13 | L198: 61.1 | M198: 57.7 | N198: 32922000 | O198: 9.00%
A199: 189 | B199: Fertilisers | C199: TATACHEM | D199: 719.55 | E199: 722.25 | F199: 713.20 | G199: 706.85 | H199: 697.80 | I199: 728.60 | J199: 737.65 | K199: 744.00 | L199: 731.3 | M199: 715.9 | N199: 5748000 | O199: 5.48%
A200: 190 | B200: Telecom | C200: TATACOMM | D200: 657.10 | E200: 656.05 | F200: 650.10 | G200: 643.10 | H200: 637.15 | I200: 663.05 | J200: 669.00 | K200: 676.00 | L200: 662 | M200: 649.05 | N200: 5819200 | O200: 0.92%
A201: 191 | B201: Technology | C201: TATAELXSI | D201: 1025.35 | E201: 1025.32 | F201: 1017.13 | G201: 1008.92 | H201: 1000.73 | I201: 1033.53 | J201: 1041.72 | K201: 1049.93 | L201: 1033.5 | M201: 1017.1 | N201: 1735200 | O201: 0.60%
A202: 192 | B202: FMCG | C202: TATAGLOBAL | D202: 274.50 | E202: 275.10 | F202: 272.40 | G202: 270.30 | H202: 267.60 | I202: 277.20 | J202: 279.90 | K202: 282.00 | L202: 277.8 | M202: 273 | N202: 23692500 | O202: 4.40%
A203: 193 | B203: Automobile | C203: TATAMOTORS | D203: 364.50 | E203: 366.58 | F203: 359.92 | G203: 355.33 | H203: 348.67 | I203: 371.17 | J203: 377.83 | K203: 382.42 | L203: 373.25 | M203: 362 | N203: 69637500 | O203: -0.13%
A204: 194 | B204: Automobile | C204: TATAMTRDVR | D204: 206.10 | E204: 206.25 | F204: 203.55 | G204: 201.00 | H204: 198.30 | I204: 208.80 | J204: 211.50 | K204: 214.05 | L204: 208.95 | M204: 203.7 | N204: 26310000 | O204: -4.99%
A205: 195 | B205: Power | C205: TATAPOWER | D205: 84.00 | E205: 84.28 | F205: 83.47 | G205: 82.93 | H205: 82.12 | I205: 84.82 | J205: 85.63 | K205: 86.17 | L205: 85.1 | M205: 83.75 | N205: 54324000 | O205: 1.33%
A206: 196 | B206: Metals | C206: TATASTEEL | D206: 583.45 | E206: 580.62 | F206: 575.23 | G206: 567.02 | H206: 561.63 | I206: 588.83 | J206: 594.22 | K206: 602.43 | L206: 586 | M206: 572.4 | N206: 22125033 | O206: -1.13%
... 36 more rows

Sheet Cash Intra
M5: Back to Main Page
A6: FOR INTRA DAY TRADING | K6: =Main!B10 -> 2018-04-06
A8: Sr.no | B8: Scrip | C8: CLOSE RATE | D8: Pivot Point | E8: Supports | H8: Resistances
C9: Point | E9: S1 | F9: S2 | G9: S3 | H9: R1 | I9: R2 | J9: R3 | K9: HIGH | L9: LOW | M9: Total Trade Quanity in Lakhs
A10: 1 | B10: Nifty 50 | C10: 10325.15 | D10: 10294.80 | E10: 10257.80 | F10: 10190.45 | G10: 10153.45 | H10: 10362.15 | I10: 10399.15 | J10: 10466.50 | K10: 10331.8 | L10: 10227.45
A11: 2 | B11: Nifty Bank | C11: 24759.8 | D11: 24655.18 | E11: 24485.47 | F11: 24211.13 | G11: 24041.42 | H11: 24929.52 | I11: 25099.23 | J11: 25373.57 | K11: 24824.9 | L11: 24380.85
A12: 3 | B12: Nifty CPSE | C12: 2420.25 | D12: 2417.72 | E12: 2411.48 | F12: 2402.72 | G12: 2396.48 | H12: 2426.48 | I12: 2432.72 | J12: 2441.48 | K12: 2423.95 | L12: 2408.95
A13: 4 | B13: Nifty Infra | C13: 3404.3 | D13: 3398.40 | E13: 3386.60 | F13: 3368.90 | G13: 3357.10 | H13: 3416.10 | I13: 3427.90 | J13: 3445.60 | K13: 3410.2 | L13: 3380.7
A14: 5 | B14: Nifty IT | C14: 12682.55 | D14: 12652.43 | E14: 12609.07 | F14: 12535.58 | G14: 12492.22 | H14: 12725.92 | I14: 12769.28 | J14: 12842.77 | K14: 12695.8 | L14: 12578.95
A15: 6 | B15: Nifty PSE | C15: 3867.8 | D15: 3863.53 | E15: 3854.12 | F15: 3840.43 | G15: 3831.02 | H15: 3877.22 | I15: 3886.63 | J15: 3900.32 | K15: 3872.95 | L15: 3849.85
A16: 7 | B16: Nifty Midcap 50 | C16: 5210.4 | D16: 5191.32 | E16: 5166.53 | F16: 5122.67 | G16: 5097.88 | H16: 5235.18 | I16: 5259.97 | J16: 5303.83 | K16: 5216.1 | L16: 5147.45
A17: 8 | B17: ABB | C17: 1278.6 | D17: 1284.53 | E17: 1269.07 | F17: 1259.53 | G17: 1244.07 | H17: 1294.07 | I17: 1309.53 | J17: 1319.07 | K17: 1300 | L17: 1275 | M17: 1.00475
A18: 9 | B18: ACC | C18: 1552.35 | D18: 1549.65 | E18: 1539.60 | F18: 1526.85 | G18: 1516.80 | H18: 1562.40 | I18: 1572.45 | J18: 1585.20 | K18: 1559.7 | L18: 1536.9 | M18: 1.98303
A19: 10 | B19: AIAENG | C19: 1450 | D19: 1446.50 | E19: 1433.10 | F19: 1416.20 | G19: 1402.80 | H19: 1463.40 | I19: 1476.80 | J19: 1493.70 | K19: 1459.9 | L19: 1429.6 | M19: 0.1477
A20: 11 | B20: AUBANK | C20: 652.85 | D20: 649.10 | E20: 641.75 | F20: 630.65 | G20: 623.30 | H20: 660.20 | I20: 667.55 | J20: 678.65 | K20: 656.45 | L20: 638 | M20: 2.03016
A21: 12 | B21: ADANIENT | C21: 147.85 | D21: 142.35 | E21: 131.75 | F21: 115.65 | G21: 105.05 | H21: 158.45 | I21: 169.05 | J21: 185.15 | K21: 152.95 | L21: 126.25 | M21: 274.97507
A22: 13 | B22: ADANIPORTS | C22: 375.95 | D22: 375.75 | E22: 371.70 | F22: 367.45 | G22: 363.40 | H22: 380.00 | I22: 384.05 | J22: 388.30 | K22: 379.8 | L22: 371.5 | M22: 36.48555
A23: 14 | B23: ADANIPOWER | C23: 25.5 | D23: 25.53 | E23: 25.22 | F23: 24.93 | G23: 24.62 | H23: 25.82 | I23: 26.13 | J23: 26.42 | K23: 25.85 | L23: 25.25 | M23: 145.16075
A24: 15 | B24: ABFRL | C24: 149.95 | D24: 151.68 | E24: 147.52 | F24: 145.08 | G24: 140.92 | H24: 154.12 | I24: 158.28 | J24: 160.72 | K24: 155.85 | L24: 149.25 | M24: 2.24163
A25: 16 | B25: AJANTPHARM | C25: 1395.4 | D25: 1395.77 | E25: 1383.23 | F25: 1371.07 | G25: 1358.53 | H25: 1407.93 | I25: 1420.47 | J25: 1432.63 | K25: 1408.3 | L25: 1383.6 | M25: 1.63826
A26: 17 | B26: ALKEM | C26: 1854.1 | D26: 1872.72 | E26: 1831.48 | F26: 1808.87 | G26: 1767.63 | H26: 1895.33 | I26: 1936.57 | J26: 1959.18 | K26: 1913.95 | L26: 1850.1 | M26: 0.50574
A27: 18 | B27: AMARAJABAT | C27: 803.5 | D27: 804.63 | E27: 799.87 | F27: 796.23 | G27: 791.47 | H27: 808.27 | I27: 813.03 | J27: 816.67 | K27: 809.4 | L27: 801 | M27: 2.16748
A28: 19 | B28: AMBUJACEM | C28: 238 | D28: 237.80 | E28: 235.75 | F28: 233.50 | G28: 231.45 | H28: 240.05 | I28: 242.10 | J28: 244.35 | K28: 239.85 | L28: 235.55 | M28: 21.10899
A29: 20 | B29: APOLLOHOSP | C29: 1083.7 | D29: 1083.43 | E29: 1075.27 | F29: 1066.83 | G29: 1058.67 | H29: 1091.87 | I29: 1100.03 | J29: 1108.47 | K29: 1091.6 | L29: 1075 | M29: 2.31441
A30: 21 | B30: APOLLOTYRE | C30: 292.5 | D30: 290.73 | E30: 286.12 | F30: 279.73 | G30: 275.12 | H30: 297.12 | I30: 301.73 | J30: 308.12 | K30: 295.35 | L30: 284.35 | M30: 46.4268
A31: 22 | B31: ARVIND | C31: 409.6 | D31: 407.97 | E31: 404.83 | F31: 400.07 | G31: 396.93 | H31: 412.73 | I31: 415.87 | J31: 420.63 | K31: 411.1 | L31: 403.2 | M31: 8.07042
A32: 23 | B32: ASHOKLEY | C32: 147 | D32: 147.22 | E32: 145.78 | F32: 144.57 | G32: 143.13 | H32: 148.43 | I32: 149.87 | J32: 151.08 | K32: 148.65 | L32: 146 | M32: 116.04724
A33: 24 | B33: ASIANPAINT | C33: 1142.9 | D33: 1145.75 | E33: 1134.70 | F33: 1126.50 | G33: 1115.45 | H33: 1153.95 | I33: 1165.00 | J33: 1173.20 | K33: 1156.8 | L33: 1137.55 | M33: 5.49137
A34: 25 | B34: AUROPHARMA | C34: 599.15 | D34: 596.62 | E34: 592.28 | F34: 585.42 | G34: 581.08 | H34: 603.48 | I34: 607.82 | J34: 614.68 | K34: 600.95 | L34: 589.75 | M34: 14.82861
A35: 26 | B35: DMART | C35: 1401.3 | D35: 1394.20 | E35: 1378.40 | F35: 1355.50 | G35: 1339.70 | H35: 1417.10 | I35: 1432.90 | J35: 1455.80 | K35: 1410 | L35: 1371.3 | M35: 12.61502
A36: 27 | B36: AXISBANK | C36: 503.1 | D36: 500.98 | E36: 497.32 | F36: 491.53 | G36: 487.87 | H36: 506.77 | I36: 510.43 | J36: 516.22 | K36: 504.65 | L36: 495.2 | M36: 66.82587
A37: 28 | B37: BAJAJ-AUTO | C37: 2808.15 | D37: 2802.17 | E37: 2788.38 | F37: 2768.62 | G37: 2754.83 | H37: 2821.93 | I37: 2835.72 | J37: 2855.48 | K37: 2815.95 | L37: 2782.4 | M37: 3.41534
A38: 29 | B38: BAJFINANCE | C38: 1915.6 | D38: 1901.23 | E38: 1880.37 | F38: 1845.13 | G38: 1824.27 | H38: 1936.47 | I38: 1957.33 | J38: 1992.57 | K38: 1922.1 | L38: 1866 | M38: 13.85959
A39: 30 | B39: BAJAJFINSV | C39: 5443.85 | D39: 5419.62 | E39: 5339.23 | F39: 5234.62 | G39: 5154.23 | H39: 5524.23 | I39: 5604.62 | J39: 5709.23 | K39: 5500 | L39: 5315 | M39: 2.05387
A40: 31 | B40: BALKRISIND | C40: 1177.95 | D40: 1181.48 | E40: 1158.67 | F40: 1139.38 | G40: 1116.57 | H40: 1200.77 | I40: 1223.58 | J40: 1242.87 | K40: 1204.3 | L40: 1162.2 | M40: 8.44692
A41: 32 | B41: BANKBARODA | C41: 147.8 | D41: 146.30 | E41: 142.30 | F41: 136.80 | G41: 132.80 | H41: 151.80 | I41: 155.80 | J41: 161.30 | K41: 150.3 | L41: 140.8 | M41: 189.12455
A42: 33 | B42: BANKINDIA | C42: 111.1 | D42: 109.72 | E42: 106.53 | F42: 101.97 | G42: 98.78 | H42: 114.28 | I42: 117.47 | J42: 122.03 | K42: 112.9 | L42: 105.15 | M42: 131.93553
A43: 34 | B43: BATAINDIA | C43: 767.35 | D43: 761.78 | E43: 753.57 | F43: 739.78 | G43: 731.57 | H43: 775.57 | I43: 783.78 | J43: 797.57 | K43: 770 | L43: 748 | M43: 9.04857
A44: 35 | B44: BERGEPAINT | C44: 260.9 | D44: 260.22 | E44: 258.78 | F44: 256.67 | G44: 255.23 | H44: 262.33 | I44: 263.77 | J44: 265.88 | K44: 261.65 | L44: 258.1 | M44: 2.09701
A45: 36 | B45: BEL | C45: 145.05 | D45: 144.97 | E45: 143.73 | F45: 142.42 | G45: 141.18 | H45: 146.28 | I45: 147.52 | J45: 148.83 | K45: 146.2 | L45: 143.65 | M45: 34.85433
A46: 37 | B46: BHARATFIN | C46: 1127.8 | D46: 1123.68 | E46: 1114.97 | F46: 1102.13 | G46: 1093.42 | H46: 1136.52 | I46: 1145.23 | J46: 1158.07 | K46: 1132.4 | L46: 1110.85 | M46: 3.80392
A47: 38 | B47: BHARATFORG | C47: 726.9 | D47: 727.40 | E47: 721.55 | F47: 716.20 | G47: 710.35 | H47: 732.75 | I47: 738.60 | J47: 743.95 | K47: 733.25 | L47: 722.05 | M47: 13.57694
A48: 39 | B48: BHEL | C48: 87.2 | D48: 87.03 | E48: 86.47 | F48: 85.73 | G48: 85.17 | H48: 87.77 | I48: 88.33 | J48: 89.07 | K48: 87.6 | L48: 86.3 | M48: 53.68585
A49: 40 | B49: BPCL | C49: 422.45 | D49: 420.87 | E49: 418.13 | F49: 413.82 | G49: 411.08 | H49: 425.18 | I49: 427.92 | J49: 432.23 | K49: 423.6 | L49: 416.55 | M49: 18.36525
A50: 41 | B50: BHARTIARTL | C50: 393.9 | D50: 395.32 | E50: 389.73 | F50: 385.57 | G50: 379.98 | H50: 399.48 | I50: 405.07 | J50: 409.23 | K50: 400.9 | L50: 391.15 | M50: 87.8468
A51: 42 | B51: INFRATEL | C51: 338.05 | D51: 336.27 | E51: 332.03 | F51: 326.02 | G51: 321.78 | H51: 342.28 | I51: 346.52 | J51: 352.53 | K51: 340.5 | L51: 330.25 | M51: 38.07792
A52: 43 | B52: BIOCON | C52: 607.65 | D52: 606.37 | E52: 602.83 | F52: 598.02 | G52: 594.48 | H52: 611.18 | I52: 614.72 | J52: 619.53 | K52: 609.9 | L52: 601.55 | M52: 10.16285
A53: 44 | B53: BOSCHLTD | C53: 19538.9 | D53: 19576.68 | E53: 19153.37 | F53: 18767.83 | G53: 18344.52 | H53: 19962.22 | I53: 20385.53 | J53: 20771.07 | K53: 20000 | L53: 19191.15 | M53: 0.35426
A54: 45 | B54: BRITANNIA | C54: 5067.85 | D54: 5051.18 | E54: 5027.67 | F54: 4987.48 | G54: 4963.97 | H54: 5091.37 | I54: 5114.88 | J54: 5155.07 | K54: 5074.7 | L54: 5011 | M54: 1.02027
A55: 46 | B55: CRISIL | C55: 1905.2 | D55: 1897.07 | E55: 1878.13 | F55: 1851.07 | G55: 1832.13 | H55: 1924.13 | I55: 1943.07 | J55: 1970.13 | K55: 1916 | L55: 1870 | M55: 0.11238
A56: 47 | B56: CADILAHC | C56: 394.35 | D56: 396.93 | E56: 390.42 | F56: 386.48 | G56: 379.97 | H56: 400.87 | I56: 407.38 | J56: 411.32 | K56: 403.45 | L56: 393 | M56: 11.33101
A57: 48 | B57: CANBK | C57: 283.1 | D57: 279.85 | E57: 269.25 | F57: 255.40 | G57: 244.80 | H57: 293.70 | I57: 304.30 | J57: 318.15 | K57: 290.45 | L57: 266 | M57: 99.03456
A58: 49 | B58: CASTROLIND | C58: 207.95 | D58: 208.63 | E58: 205.87 | F58: 203.78 | G58: 201.02 | H58: 210.72 | I58: 213.48 | J58: 215.57 | K58: 211.4 | L58: 206.55 | M58: 10.55919
A59: 50 | B59: CENTRALBK | C59: 70.5 | D59: 70.53 | E59: 70.07 | F59: 69.63 | G59: 69.17 | H59: 70.97 | I59: 71.43 | J59: 71.87 | K59: 71 | L59: 70.1 | M59: 15.7213
A60: 51 | B60: CENTURYTEX | C60: 1201.3 | D60: 1197.42 | E60: 1183.83 | F60: 1166.37 | G60: 1152.78 | H60: 1214.88 | I60: 1228.47 | J60: 1245.93 | K60: 1211 | L60: 1179.95 | M60: 4.10178
A61: 52 | B61: CHOLAFIN | C61: 1524.75 | D61: 1520.28 | E61: 1505.57 | F61: 1486.38 | G61: 1471.67 | H61: 1539.47 | I61: 1554.18 | J61: 1573.37 | K61: 1535 | L61: 1501.1 | M61: 2.13125
A62: 53 | B62: CIPLA | C62: 560.35 | D62: 565.75 | E62: 552.95 | F62: 545.55 | G62: 532.75 | H62: 573.15 | I62: 585.95 | J62: 593.35 | K62: 578.55 | L62: 558.35 | M62: 23.96864
A63: 54 | B63: COALINDIA | C63: 277.8 | D63: 277.58 | E63: 275.67 | F63: 273.53 | G63: 271.62 | H63: 279.72 | I63: 281.63 | J63: 283.77 | K63: 279.5 | L63: 275.45 | M63: 15.27043
A64: 55 | B64: COLPAL | C64: 1091.35 | D64: 1090.48 | E64: 1081.02 | F64: 1070.68 | G64: 1061.22 | H64: 1100.82 | I64: 1110.28 | J64: 1120.62 | K64: 1099.95 | L64: 1080.15 | M64: 1.88886
A65: 56 | B65: CONCOR | C65: 1239.8 | D65: 1244.17 | E65: 1227.43 | F65: 1215.07 | G65: 1198.33 | H65: 1256.53 | I65: 1273.27 | J65: 1285.63 | K65: 1260.9 | L65: 1231.8 | M65: 2.54572
A66: 57 | B66: COROMANDEL | C66: 533.4 | D66: 535.47 | E66: 528.93 | F66: 524.47 | G66: 517.93 | H66: 539.93 | I66: 546.47 | J66: 550.93 | K66: 542 | L66: 531 | M66: 0.61754
A67: 58 | B67: CROMPTON | C67: 234.05 | D67: 232.40 | E67: 229.80 | F67: 225.55 | G67: 222.95 | H67: 236.65 | I67: 239.25 | J67: 243.50 | K67: 235 | L67: 228.15 | M67: 4.76687
A68: 59 | B68: CUMMINSIND | C68: 744.05 | D68: 741.25 | E68: 732.80 | F68: 721.55 | G68: 713.10 | H68: 752.50 | I68: 760.95 | J68: 772.20 | K68: 749.7 | L68: 730 | M68: 3.72017
A69: 60 | B69: DLF | C69: 206.25 | D69: 205.03 | E69: 203.22 | F69: 200.18 | G69: 198.37 | H69: 208.07 | I69: 209.88 | J69: 212.92 | K69: 206.85 | L69: 202 | M69: 51.41982
A70: 61 | B70: DABUR | C70: 336.9 | D70: 337.17 | E70: 335.18 | F70: 333.47 | G70: 331.48 | H70: 338.88 | I70: 340.87 | J70: 342.58 | K70: 339.15 | L70: 335.45 | M70: 5.60831
A71: 62 | B71: DALMIABHA | C71: 2925.95 | D71: 2937.82 | E71: 2898.23 | F71: 2870.52 | G71: 2830.93 | H71: 2965.53 | I71: 3005.12 | J71: 3032.83 | K71: 2977.4 | L71: 2910.1 | M71: 0.66533
A72: 63 | B72: DHFL | C72: 540.3 | D72: 537.87 | E72: 531.43 | F72: 522.57 | G72: 516.13 | H72: 546.73 | I72: 553.17 | J72: 562.03 | K72: 544.3 | L72: 529 | M72: 52.82826
A73: 64 | B73: DISHTV | C73: 71.6 | D73: 71.45 | E73: 70.80 | F73: 70.00 | G73: 69.35 | H73: 72.25 | I73: 72.90 | J73: 73.70 | K73: 72.1 | L73: 70.65 | M73: 17.89142
A74: 65 | B74: DIVISLAB | C74: 1118.7 | D74: 1115.53 | E74: 1104.37 | F74: 1090.03 | G74: 1078.87 | H74: 1129.87 | I74: 1141.03 | J74: 1155.37 | K74: 1126.7 | L74: 1101.2 | M74: 7.83319
A75: 66 | B75: LALPATHLAB | C75: 876.65 | D75: 869.82 | E75: 859.83 | F75: 843.02 | G75: 833.03 | H75: 886.63 | I75: 896.62 | J75: 913.43 | K75: 879.8 | L75: 853 | M75: 0.15513
A76: 67 | B76: DRREDDY | C76: 2111.1 | D76: 2114.57 | E76: 2093.53 | F76: 2075.97 | G76: 2054.93 | H76: 2132.13 | I76: 2153.17 | J76: 2170.73 | K76: 2135.6 | L76: 2097 | M76: 3.7511
A77: 68 | B77: EDELWEISS | C77: 249.8 | D77: 249.73 | E77: 244.67 | F77: 239.53 | G77: 234.47 | H77: 254.87 | I77: 259.93 | J77: 265.07 | K77: 254.8 | L77: 244.6 | M77: 37.88987
A78: 69 | B78: EICHERMOT | C78: 29677.75 | D78: 29508.93 | E78: 29268.87 | F78: 28859.98 | G78: 28619.92 | H78: 29917.82 | I78: 30157.88 | J78: 30566.77 | K78: 29749 | L78: 29100.05 | M78: 0.51075
A79: 70 | B79: EMAMILTD | C79: 1110.3 | D79: 1106.05 | E79: 1097.35 | F79: 1084.40 | G79: 1075.70 | H79: 1119.00 | I79: 1127.70 | J79: 1140.65 | K79: 1114.75 | L79: 1093.1 | M79: 2.02947
A80: 71 | B80: ENDURANCE | C80: 1292.2 | D80: 1286.08 | E80: 1276.12 | F80: 1260.03 | G80: 1250.07 | H80: 1302.17 | I80: 1312.13 | J80: 1328.22 | K80: 1296.05 | L80: 1270 | M80: 0.25824
A81: 72 | B81: ENGINERSIN | C81: 166.6 | D81: 165.35 | E81: 163.30 | F81: 160.00 | G81: 157.95 | H81: 168.65 | I81: 170.70 | J81: 174.00 | K81: 167.4 | L81: 162.05 | M81: 17.22924
A82: 73 | B82: EXIDEIND | C82: 236.15 | D82: 236.20 | E82: 231.90 | F82: 227.65 | G82: 223.35 | H82: 240.45 | I82: 244.75 | J82: 249.00 | K82: 240.5 | L82: 231.95 | M82: 30.61163
A83: 74 | B83: FEDERALBNK | C83: 93.5 | D83: 93.23 | E83: 92.42 | F83: 91.33 | G83: 90.52 | H83: 94.32 | I83: 95.13 | J83: 96.22 | K83: 94.05 | L83: 92.15 | M83: 93.12599
A84: 75 | B84: GAIL | C84: 332.4 | D84: 332.80 | E84: 329.60 | F84: 326.80 | G84: 323.60 | H84: 335.60 | I84: 338.80 | J84: 341.60 | K84: 336 | L84: 330 | M84: 27.34385
A85: 76 | B85: GMRINFRA | C85: 18.85 | D85: 18.87 | E85: 18.63 | F85: 18.42 | G85: 18.18 | H85: 19.08 | I85: 19.32 | J85: 19.53 | K85: 19.1 | L85: 18.65 | M85: 290.43547
A86: 77 | B86: GSKCONS | C86: 6106.7 | D86: 6106.23 | E86: 6062.47 | F86: 6018.23 | G86: 5974.47 | H86: 6150.47 | I86: 6194.23 | J86: 6238.47 | K86: 6150 | L86: 6062 | M86: 0.0761
A87: 78 | B87: GLAXO | C87: 2234.5 | D87: 2228.20 | E87: 2182.45 | F87: 2130.40 | G87: 2084.65 | H87: 2280.25 | I87: 2326.00 | J87: 2378.05 | K87: 2273.95 | L87: 2176.15 | M87: 0.15097
A88: 79 | B88: GLENMARK | C88: 556.55 | D88: 558.13 | E88: 548.67 | F88: 540.78 | G88: 531.32 | H88: 566.02 | I88: 575.48 | J88: 583.37 | K88: 567.6 | L88: 550.25 | M88: 7.84364
A89: 80 | B89: GODREJCP | C89: 1085.8 | D89: 1088.42 | E89: 1076.88 | F89: 1067.97 | G89: 1056.43 | H89: 1097.33 | I89: 1108.87 | J89: 1117.78 | K89: 1099.95 | L89: 1079.5 | M89: 9.07356
A90: 81 | B90: GODREJIND | C90: 555.25 | D90: 549.75 | E90: 542.50 | F90: 529.75 | G90: 522.50 | H90: 562.50 | I90: 569.75 | J90: 582.50 | K90: 557 | L90: 537 | M90: 3.93035
A91: 82 | B91: GRUH | C91: 597 | D91: 598.52 | E91: 590.08 | F91: 583.17 | G91: 574.73 | H91: 605.43 | I91: 613.87 | J91: 620.78 | K91: 606.95 | L91: 591.6 | M91: 3.24885
A92: 83 | B92: GPPL | C92: 140.7 | D92: 140.20 | E92: 137.50 | F92: 134.30 | G92: 131.60 | H92: 143.40 | I92: 146.10 | J92: 149.30 | K92: 142.9 | L92: 137 | M92: 5.52569
A93: 84 | B93: GSPL | C93: 188.5 | D93: 188.43 | E93: 184.87 | F93: 181.23 | G93: 177.67 | H93: 192.07 | I93: 195.63 | J93: 199.27 | K93: 192 | L93: 184.8 | M93: 2.45217
A94: 85 | B94: HCLTECH | C94: 962.05 | D94: 967.60 | E94: 951.00 | F94: 939.95 | G94: 923.35 | H94: 978.65 | I94: 995.25 | J94: 1006.30 | K94: 984.2 | L94: 956.55 | M94: 14.02552
A95: 86 | B95: HDFCBANK | C95: 1908.9 | D95: 1904.37 | E95: 1894.73 | F95: 1880.57 | G95: 1870.93 | H95: 1918.53 | I95: 1928.17 | J95: 1942.33 | K95: 1914 | L95: 1890.2 | M95: 12.14723
A96: 87 | B96: HAVELLS | C96: 512.65 | D96: 512.57 | E96: 508.93 | F96: 505.22 | G96: 501.58 | H96: 516.28 | I96: 519.92 | J96: 523.63 | K96: 516.2 | L96: 508.85 | M96: 19.57447
A97: 88 | B97: HEROMOTOCO | C97: 3782.15 | D97: 3759.37 | E97: 3722.73 | F97: 3663.32 | G97: 3626.68 | H97: 3818.78 | I97: 3855.42 | J97: 3914.83 | K97: 3796 | L97: 3699.95 | M97: 4.40824
A98: 89 | B98: HEXAWARE | C98: 400.8 | D98: 401.60 | E98: 397.45 | F98: 394.10 | G98: 389.95 | H98: 404.95 | I98: 409.10 | J98: 412.45 | K98: 405.75 | L98: 398.25 | M98: 9.52005
A99: 90 | B99: HINDALCO | C99: 214.15 | D99: 211.75 | E99: 208.55 | F99: 202.95 | G99: 199.75 | H99: 217.35 | I99: 220.55 | J99: 226.15 | K99: 214.95 | L99: 206.15 | M99: 242.01909
A100: 91 | B100: HINDPETRO | C100: 348.35 | D100: 347.78 | E100: 345.57 | F100: 342.78 | G100: 340.57 | H100: 350.57 | I100: 352.78 | J100: 355.57 | K100: 350 | L100: 345 | M100: 18.35451
A101: 92 | B101: HINDUNILVR | C101: 1382.2 | D101: 1376.23 | E101: 1368.67 | F101: 1355.13 | G101: 1347.57 | H101: 1389.77 | I101: 1397.33 | J101: 1410.87 | K101: 1383.8 | L101: 1362.7 | M101: 5.88716
A102: 93 | B102: HINDZINC | C102: 313.5 | D102: 313.03 | E102: 309.57 | F102: 305.63 | G102: 302.17 | H102: 316.97 | I102: 320.43 | J102: 324.37 | K102: 316.5 | L102: 309.1 | M102: 39.71835
A103: 94 | B103: HUDCO | C103: 70.95 | D103: 70.87 | E103: 70.33 | F103: 69.72 | G103: 69.18 | H103: 71.48 | I103: 72.02 | J103: 72.63 | K103: 71.4 | L103: 70.25 | M103: 10.90551
A104: 95 | B104: HDFC | C104: 1824.45 | D104: 1822.22 | E104: 1814.43 | F104: 1804.42 | G104: 1796.63 | H104: 1832.23 | I104: 1840.02 | J104: 1850.03 | K104: 1830 | L104: 1812.2 | M104: 35.49233
A105: 96 | B105: ITC | C105: 259.65 | D105: 258.38 | E105: 256.77 | F105: 253.88 | G105: 252.27 | H105: 261.27 | I105: 262.88 | J105: 265.77 | K105: 260 | L105: 255.5 | M105: 91.1361
A106: 97 | B106: ICICIBANK | C106: 278.65 | D106: 275.45 | E106: 270.90 | F106: 263.15 | G106: 258.60 | H106: 283.20 | I106: 287.75 | J106: 295.50 | K106: 280 | L106: 267.7 | M106: 267.59108
A107: 98 | B107: ICICIPRULI | C107: 393.75 | D107: 393.70 | E107: 390.40 | F107: 387.05 | G107: 383.75 | H107: 397.05 | I107: 400.35 | J107: 403.70 | K107: 397 | L107: 390.35 | M107: 6.51583
A108: 99 | B108: IDBI | C108: 72.3 | D108: 72.13 | E108: 71.32 | F108: 70.33 | G108: 69.52 | H108: 73.12 | I108: 73.93 | J108: 74.92 | K108: 72.95 | L108: 71.15 | M108: 435.40989
A109: 100 | B109: IDFCBANK | C109: 49.5 | D109: 49.35 | E109: 48.75 | F109: 48.00 | G109: 47.40 | H109: 50.10 | I109: 50.70 | J109: 51.45 | K109: 49.95 | L109: 48.6 | M109: 68.00298
A110: 101 | B110: IDFC | C110: 52.4 | D110: 52.12 | E110: 51.48 | F110: 50.57 | G110: 49.93 | H110: 53.03 | I110: 53.67 | J110: 54.58 | K110: 52.75 | L110: 51.2 | M110: 28.06868
A111: 102 | B111: IRB | C111: 241.15 | D111: 240.53 | E111: 237.62 | F111: 234.08 | G111: 231.17 | H111: 244.07 | I111: 246.98 | J111: 250.52 | K111: 243.45 | L111: 237 | M111: 15.65229
A112: 103 | B112: IDEA | C112: 76.9 | D112: 76.87 | E112: 76.03 | F112: 75.17 | G112: 74.33 | H112: 77.73 | I112: 78.57 | J112: 79.43 | K112: 77.7 | L112: 76 | M112: 92.20944
A113: 104 | B113: IBULHSGFIN | C113: 1340.15 | D113: 1331.93 | E113: 1313.97 | F113: 1287.78 | G113: 1269.82 | H113: 1358.12 | I113: 1376.08 | J113: 1402.27 | K113: 1349.9 | L113: 1305.75 | M113: 18.57989
A114: 105 | B114: INDIANB | C114: 317.3 | D114: 314.07 | E114: 308.53 | F114: 299.77 | G114: 294.23 | H114: 322.83 | I114: 328.37 | J114: 337.13 | K114: 319.6 | L114: 305.3 | M114: 17.04321
A115: 106 | B115: INDHOTEL | C115: 136.45 | D115: 138.02 | E115: 134.53 | F115: 132.62 | G115: 129.13 | H115: 139.93 | I115: 143.42 | J115: 145.33 | K115: 141.5 | L115: 136.1 | M115: 9.12618
A116: 107 | B116: IOC | C116: 173.55 | D116: 173.13 | E116: 172.12 | F116: 170.68 | G116: 169.67 | H116: 174.57 | I116: 175.58 | J116: 177.02 | K116: 174.15 | L116: 171.7 | M116: 40.94041
A117: 108 | B117: IGL | C117: 289.85 | D117: 288.12 | E117: 283.38 | F117: 276.92 | G117: 272.18 | H117: 294.58 | I117: 299.32 | J117: 305.78 | K117: 292.85 | L117: 281.65 | M117: 21.95459
A118: 109 | B118: INDUSINDBK | C118: 1836.95 | D118: 1830.18 | E118: 1818.77 | F118: 1800.58 | G118: 1789.17 | H118: 1848.37 | I118: 1859.78 | J118: 1877.97 | K118: 1841.6 | L118: 1812 | M118: 6.13812
A119: 110 | B119: NAUKRI | C119: 1202.35 | D119: 1209.87 | E119: 1177.48 | F119: 1152.62 | G119: 1120.23 | H119: 1234.73 | I119: 1267.12 | J119: 1291.98 | K119: 1242.25 | L119: 1185 | M119: 0.26373
A120: 111 | B120: INFY | C120: 1147.55 | D120: 1142.65 | E120: 1134.00 | F120: 1120.45 | G120: 1111.80 | H120: 1156.20 | I120: 1164.85 | J120: 1178.40 | K120: 1151.3 | L120: 1129.1 | M120: 38.81772
A121: 112 | B121: INDIGO | C121: 1448.85 | D121: 1435.28 | E121: 1411.57 | F121: 1374.28 | G121: 1350.57 | H121: 1472.57 | I121: 1496.28 | J121: 1533.57 | K121: 1459 | L121: 1398 | M121: 21.50967
A122: 113 | B122: IPCALAB | C122: 669.55 | D122: 670.85 | E122: 662.20 | F122: 654.85 | G122: 646.20 | H122: 678.20 | I122: 686.85 | J122: 694.20 | K122: 679.5 | L122: 663.5 | M122: 0.82551
A123: 114 | B123: JSWENERGY | C123: 83 | D123: 82.65 | E123: 81.90 | F123: 80.80 | G123: 80.05 | H123: 83.75 | I123: 84.50 | J123: 85.60 | K123: 83.4 | L123: 81.55 | M123: 16.2843
A124: 115 | B124: JSWSTEEL | C124: 308.4 | D124: 306.12 | E124: 302.88 | F124: 297.37 | G124: 294.13 | H124: 311.63 | I124: 314.87 | J124: 320.38 | K124: 309.35 | L124: 300.6 | M124: 42.10195
A125: 116 | B125: JINDALSTEL | C125: 235.9 | D125: 232.70 | E125: 228.05 | F125: 220.20 | G125: 215.55 | H125: 240.55 | I125: 245.20 | J125: 253.05 | K125: 237.35 | L125: 224.85 | M125: 167.50562
A126: 117 | B126: JUBLFOOD | C126: 2335.35 | D126: 2331.40 | E126: 2318.95 | F126: 2302.55 | G126: 2290.10 | H126: 2347.80 | I126: 2360.25 | J126: 2376.65 | K126: 2343.85 | L126: 2315 | M126: 3.15803
A127: 118 | B127: JUBILANT | C127: 825.1 | D127: 827.22 | E127: 815.08 | F127: 805.07 | G127: 792.93 | H127: 837.23 | I127: 849.37 | J127: 859.38 | K127: 839.35 | L127: 817.2 | M127: 3.69301
A128: 119 | B128: KARURVYSYA | C128: 102.75 | D128: 103.00 | E128: 101.75 | F128: 100.75 | G128: 99.50 | H128: 104.00 | I128: 105.25 | J128: 106.25 | K128: 104.25 | L128: 102 | M128: 6.17166
A129: 120 | B129: KOTAKBANK | C129: 1118.3 | D129: 1107.93 | E129: 1094.87 | F129: 1071.43 | G129: 1058.37 | H129: 1131.37 | I129: 1144.43 | J129: 1167.87 | K129: 1121 | L129: 1084.5 | M129: 19.87694
A130: 121 | B130: L&TFH | C130: 171.5 | D130: 168.93 | E130: 165.27 | F130: 159.03 | G130: 155.37 | H130: 175.17 | I130: 178.83 | J130: 185.07 | K130: 172.6 | L130: 162.7 | M130: 66.02791
A131: 122 | B131: LICHSGFIN | C131: 563.35 | D131: 556.97 | E131: 548.38 | F131: 533.42 | G131: 524.83 | H131: 571.93 | I131: 580.52 | J131: 595.48 | K131: 565.55 | L131: 542 | M131: 13.77978
A132: 123 | B132: LT | C132: 1328.8 | D132: 1324.95 | E132: 1314.85 | F132: 1300.90 | G132: 1290.80 | H132: 1338.90 | I132: 1349.00 | J132: 1362.95 | K132: 1335.05 | L132: 1311 | M132: 17.58313
A133: 124 | B133: LUPIN | C133: 786.7 | D133: 785.42 | E133: 780.83 | F133: 774.97 | G133: 770.38 | H133: 791.28 | I133: 795.87 | J133: 801.73 | K133: 790 | L133: 779.55 | M133: 6.60905
A134: 125 | B134: MRF | C134: 77012.55 | D134: 76570.55 | E134: 75942.10 | F134: 74871.65 | G134: 74243.20 | H134: 77641.00 | I134: 78269.45 | J134: 79339.90 | K134: 77199 | L134: 75500.1 | M134: 0.165
A135: 126 | B135: MGL | C135: 1012.15 | D135: 1012.32 | E135: 995.83 | F135: 979.52 | G135: 963.03 | H135: 1028.63 | I135: 1045.12 | J135: 1061.43 | K135: 1028.8 | L135: 996 | M135: 2.76284
A136: 127 | B136: M&MFIN | C136: 486.65 | D136: 482.10 | E136: 473.70 | F136: 460.75 | G136: 452.35 | H136: 495.05 | I136: 503.45 | J136: 516.40 | K136: 490.5 | L136: 469.15 | M136: 15.01297
A137: 128 | B137: M&M | C137: 774.6 | D137: 774.07 | E137: 767.13 | F137: 759.67 | G137: 752.73 | H137: 781.53 | I137: 788.47 | J137: 795.93 | K137: 781 | L137: 766.6 | M137: 22.24647
A138: 129 | B138: MANAPPURAM | C138: 118.4 | D138: 117.57 | E138: 116.23 | F138: 114.07 | G138: 112.73 | H138: 119.73 | I138: 121.07 | J138: 123.23 | K138: 118.9 | L138: 115.4 | M138: 34.30033
A139: 130 | B139: MRPL | C139: 111.5 | D139: 111.67 | E139: 110.83 | F139: 110.17 | G139: 109.33 | H139: 112.33 | I139: 113.17 | J139: 113.83 | K139: 112.5 | L139: 111 | M139: 4.33073
A140: 131 | B140: MARICO | C140: 323.75 | D140: 324.53 | E140: 319.27 | F140: 314.78 | G140: 309.52 | H140: 329.02 | I140: 334.28 | J140: 338.77 | K140: 329.8 | L140: 320.05 | M140: 12.63348
A141: 132 | B141: MARUTI | C141: 9132.6 | D141: 9113.42 | E141: 9069.18 | F141: 9005.77 | G141: 8961.53 | H141: 9176.83 | I141: 9221.07 | J141: 9284.48 | K141: 9157.65 | L141: 9050 | M141: 2.36956
A142: 133 | B142: MFSL | C142: 458.95 | D142: 457.97 | E142: 452.43 | F142: 445.92 | G142: 440.38 | H142: 464.48 | I142: 470.02 | J142: 476.53 | K142: 463.5 | L142: 451.45 | M142: 3.73812
A143: 134 | B143: MINDTREE | C143: 805.95 | D143: 801.22 | E143: 794.73 | F143: 783.52 | G143: 777.03 | H143: 812.43 | I143: 818.92 | J143: 830.13 | K143: 807.7 | L143: 790 | M143: 17.7213
A144: 135 | B144: MOTHERSUMI | C144: 338.85 | D144: 339.77 | E144: 335.63 | F144: 332.42 | G144: 328.28 | H144: 342.98 | I144: 347.12 | J144: 350.33 | K144: 343.9 | L144: 336.55 | M144: 31.83701
A145: 136 | B145: MPHASIS | C145: 869.7 | D145: 871.97 | E145: 859.93 | F145: 850.17 | G145: 838.13 | H145: 881.73 | I145: 893.77 | J145: 903.53 | K145: 884 | L145: 862.2 | M145: 1.15422
A146: 137 | B146: MUTHOOTFIN | C146: 432.75 | D146: 428.55 | E146: 423.15 | F146: 413.55 | G146: 408.15 | H146: 438.15 | I146: 443.55 | J146: 453.15 | K146: 433.95 | L146: 418.95 | M146: 5.21511
A147: 138 | B147: NATCOPHARM | C147: 770.8 | D147: 775.97 | E147: 761.93 | F147: 753.07 | G147: 739.03 | H147: 784.83 | I147: 798.87 | J147: 807.73 | K147: 790 | L147: 767.1 | M147: 2.19219
A148: 139 | B148: NBCC | C148: 207.45 | D148: 207.30 | E148: 206.40 | F148: 205.35 | G148: 204.45 | H148: 208.35 | I148: 209.25 | J148: 210.30 | K148: 208.2 | L148: 206.25 | M148: 14.16125
A149: 140 | B149: NHPC | C149: 28.75 | D149: 28.73 | E149: 28.37 | F149: 27.98 | G149: 27.62 | H149: 29.12 | I149: 29.48 | J149: 29.87 | K149: 29.1 | L149: 28.35 | M149: 46.31436
A150: 141 | B150: NMDC | C150: 117.85 | D150: 117.70 | E150: 117.10 | F150: 116.35 | G150: 115.75 | H150: 118.45 | I150: 119.05 | J150: 119.80 | K150: 118.3 | L150: 116.95 | M150: 24.59077
A151: 142 | B151: NTPC | C151: 168.95 | D151: 168.50 | E151: 167.25 | F151: 165.55 | G151: 164.30 | H151: 170.20 | I151: 171.45 | J151: 173.15 | K151: 169.75 | L151: 166.8 | M151: 32.63955
A152: 143 | B152: NATIONALUM | C152: 72.05 | D152: 72.08 | E152: 71.27 | F152: 70.48 | G152: 69.67 | H152: 72.87 | I152: 73.68 | J152: 74.47 | K152: 72.9 | L152: 71.3 | M152: 63.45973
A153: 144 | B153: OBEROIRLTY | C153: 498.9 | D153: 502.30 | E153: 492.60 | F153: 486.30 | G153: 476.60 | H153: 508.60 | I153: 518.30 | J153: 524.60 | K153: 512 | L153: 496 | M153: 2.00163
A154: 145 | B154: ONGC | C154: 177.45 | D154: 176.93 | E154: 175.97 | F154: 174.48 | G154: 173.52 | H154: 178.42 | I154: 179.38 | J154: 180.87 | K154: 177.9 | L154: 175.45 | M154: 53.75271
A155: 146 | B155: OIL | C155: 217.5 | D155: 217.37 | E155: 216.23 | F155: 214.97 | G155: 213.83 | H155: 218.63 | I155: 219.77 | J155: 221.03 | K155: 218.5 | L155: 216.1 | M155: 9.83714
A156: 147 | B156: OFSS | C156: 3918.8 | D156: 3930.97 | E156: 3863.93 | F156: 3809.07 | G156: 3742.03 | H156: 3985.83 | I156: 4052.87 | J156: 4107.73 | K156: 3998 | L156: 3876.1 | M156: 0.2718
A157: 148 | B157: PCJEWELLER | C157: 296.15 | D157: 298.82 | E157: 290.63 | F157: 285.12 | G157: 276.93 | H157: 304.33 | I157: 312.52 | J157: 318.03 | K157: 307 | L157: 293.3 | M157: 56.30416
A158: 149 | B158: PIIND | C158: 886.4 | D158: 887.80 | E158: 876.60 | F158: 866.80 | G158: 855.60 | H158: 897.60 | I158: 908.80 | J158: 918.60 | K158: 899 | L158: 878 | M158: 0.18
A159: 150 | B159: PNBHOUSING | C159: 1288.3 | D159: 1295.75 | E159: 1267.55 | F159: 1246.80 | G159: 1218.60 | H159: 1316.50 | I159: 1344.70 | J159: 1365.45 | K159: 1323.95 | L159: 1275 | M159: 0.68311
A160: 151 | B160: PAGEIND | C160: 24055.2 | D160: 23731.65 | E160: 23271.80 | F160: 22488.40 | G160: 22028.55 | H160: 24515.05 | I160: 24974.90 | J160: 25758.30 | K160: 24191.5 | L160: 22948.25 | M160: 0.33555
A161: 152 | B161: PETRONET | C161: 232.45 | D161: 232.02 | E161: 231.08 | F161: 229.72 | G161: 228.78 | H161: 233.38 | I161: 234.32 | J161: 235.68 | K161: 232.95 | L161: 230.65 | M161: 12.63716
A162: 153 | B162: PIDILITIND | C162: 966.35 | D162: 967.38 | E162: 958.17 | F162: 949.98 | G162: 940.77 | H162: 975.57 | I162: 984.78 | J162: 992.97 | K162: 976.6 | L162: 959.2 | M162: 3.794
A163: 154 | B163: PEL | C163: 2540.4 | D163: 2523.02 | E163: 2488.08 | F163: 2435.77 | G163: 2400.83 | H163: 2575.33 | I163: 2610.27 | J163: 2662.58 | K163: 2557.95 | L163: 2470.7 | M163: 1.63302
A164: 155 | B164: PFC | C164: 88.1 | D164: 87.82 | E164: 87.03 | F164: 85.97 | G164: 85.18 | H164: 88.88 | I164: 89.67 | J164: 90.73 | K164: 88.6 | L164: 86.75 | M164: 47.62849
A165: 156 | B165: POWERGRID | C165: 196.25 | D165: 196.90 | E165: 195.35 | F165: 194.45 | G165: 192.90 | H165: 197.80 | I165: 199.35 | J165: 200.25 | K165: 198.45 | L165: 196 | M165: 48.78846
A166: 157 | B166: PRESTIGE | C166: 301.7 | D166: 300.00 | E166: 295.00 | F166: 288.30 | G166: 283.30 | H166: 306.70 | I166: 311.70 | J166: 318.40 | K166: 305 | L166: 293.3 | M166: 0.78154
A167: 158 | B167: PGHH | C167: 9709.45 | D167: 9692.15 | E167: 9657.30 | F167: 9605.15 | G167: 9570.30 | H167: 9744.30 | I167: 9779.15 | J167: 9831.30 | K167: 9727 | L167: 9640 | M167: 0.03148
A168: 159 | B168: PNB | C168: 97 | D168: 96.75 | E168: 95.40 | F168: 93.80 | G168: 92.45 | H168: 98.35 | I168: 99.70 | J168: 101.30 | K168: 98.1 | L168: 95.15 | M168: 258.94057
A169: 160 | B169: RBLBANK | C169: 496.5 | D169: 495.77 | E169: 492.73 | F169: 488.97 | G169: 485.93 | H169: 499.53 | I169: 502.57 | J169: 506.33 | K169: 498.8 | L169: 492 | M169: 12.57116
A170: 161 | B170: RAJESHEXPO | C170: 704.3 | D170: 706.77 | E170: 696.58 | F170: 688.87 | G170: 678.68 | H170: 714.48 | I170: 724.67 | J170: 732.38 | K170: 716.95 | L170: 699.05 | M170: 2.22311
A171: 162 | B171: RELCAPITAL | C171: 451.35 | D171: 450.02 | E171: 443.33 | F171: 435.32 | G171: 428.63 | H171: 458.03 | I171: 464.72 | J171: 472.73 | K171: 456.7 | L171: 442 | M171: 50.9345
A172: 163 | B172: RCOM | C172: 23.3 | D172: 23.07 | E172: 21.93 | F172: 20.57 | G172: 19.43 | H172: 24.43 | I172: 25.57 | J172: 26.93 | K172: 24.2 | L172: 21.7 | M172: 2267.43188
A173: 164 | B173: RELIANCE | C173: 908.2 | D173: 907.23 | E173: 904.47 | F173: 900.73 | G173: 897.97 | H173: 910.97 | I173: 913.73 | J173: 917.47 | K173: 910 | L173: 903.5 | M173: 38.98676
A174: 165 | B174: RELINFRA | C174: 452.2 | D174: 450.57 | E174: 444.63 | F174: 437.07 | G174: 431.13 | H174: 458.13 | I174: 464.07 | J174: 471.63 | K174: 456.5 | L174: 443 | M174: 22.39428
A175: 166 | B175: RPOWER | C175: 42.65 | D175: 42.62 | E175: 41.83 | F175: 41.02 | G175: 40.23 | H175: 43.43 | I175: 44.22 | J175: 45.03 | K175: 43.4 | L175: 41.8 | M175: 183.70975
A176: 167 | B176: RECLTD | C176: 130.25 | D176: 129.82 | E176: 128.53 | F176: 126.82 | G176: 125.53 | H176: 131.53 | I176: 132.82 | J176: 134.53 | K176: 131.1 | L176: 128.1 | M176: 34.12295
A177: 168 | B177: SRF | C177: 2029.35 | D177: 2030.78 | E177: 2004.57 | F177: 1979.78 | G177: 1953.57 | H177: 2055.57 | I177: 2081.78 | J177: 2106.57 | K177: 2057 | L177: 2006 | M177: 1.90591
A178: 169 | B178: SHREECEM | C178: 16689.3 | D178: 16597.45 | E178: 16416.95 | F178: 16144.60 | G178: 15964.10 | H178: 16869.80 | I178: 17050.30 | J178: 17322.65 | K178: 16777.95 | L178: 16325.1 | M178: 0.18397
A179: 170 | B179: SRTRANSFIN | C179: 1538.15 | D179: 1514.32 | E179: 1481.63 | F179: 1425.12 | G179: 1392.43 | H179: 1570.83 | I179: 1603.52 | J179: 1660.03 | K179: 1547 | L179: 1457.8 | M179: 14.24857
A180: 171 | B180: SIEMENS | C180: 1124.85 | D180: 1126.95 | E180: 1118.90 | F180: 1112.95 | G180: 1104.90 | H180: 1132.90 | I180: 1140.95 | J180: 1146.90 | K180: 1135 | L180: 1121 | M180: 1.42231
A181: 172 | B181: SBIN | C181: 259.3 | D181: 257.07 | E181: 252.23 | F181: 245.17 | G181: 240.33 | H181: 264.13 | I181: 268.97 | J181: 276.03 | K181: 261.9 | L181: 250 | M181: 228.80821
A182: 173 | B182: SAIL | C182: 75.25 | D182: 74.88 | E182: 74.17 | F182: 73.08 | G182: 72.37 | H182: 75.97 | I182: 76.68 | J182: 77.77 | K182: 75.6 | L182: 73.8 | M182: 126.8326
A183: 174 | B183: SPARC | C183: 388.35 | D183: 388.27 | E183: 383.18 | F183: 378.02 | G183: 372.93 | H183: 393.43 | I183: 398.52 | J183: 403.68 | K183: 393.35 | L183: 383.1 | M183: 0.97904
A184: 175 | B184: SUNPHARMA | C184: 507.55 | D184: 508.55 | E184: 504.10 | F184: 500.65 | G184: 496.20 | H184: 512.00 | I184: 516.45 | J184: 519.90 | K184: 513 | L184: 505.1 | M184: 24.09577
A185: 176 | B185: SUNTV | C185: 873.05 | D185: 873.30 | E185: 866.80 | F185: 860.55 | G185: 854.05 | H185: 879.55 | I185: 886.05 | J185: 892.30 | K185: 879.8 | L185: 867.05 | M185: 12.84847
A186: 177 | B186: SUZLON | C186: 11.65 | D186: 11.68 | E186: 11.52 | F186: 11.38 | G186: 11.22 | H186: 11.82 | I186: 11.98 | J186: 12.12 | K186: 11.85 | L186: 11.55 | M186: 237.21465
A187: 178 | B187: SYNDIBANK | C187: 59.85 | D187: 59.33 | E187: 58.07 | F187: 56.28 | G187: 55.02 | H187: 61.12 | I187: 62.38 | J187: 64.17 | K187: 60.6 | L187: 57.55 | M187: 65.95362
A188: 179 | B188: SYNGENE | C188: 591.35 | D188: 591.10 | E188: 586.20 | F188: 581.05 | G188: 576.15 | H188: 596.25 | I188: 601.15 | J188: 606.30 | K188: 596 | L188: 585.95 | M188: 0.31629
A189: 180 | B189: TV18BRDCST | C189: 68.75 | D189: 68.90 | E189: 68.10 | F189: 67.45 | G189: 66.65 | H189: 69.55 | I189: 70.35 | J189: 71.00 | K189: 69.7 | L189: 68.25 | M189: 58.44934
A190: 181 | B190: TVSMOTOR | C190: 649.1 | D190: 649.78 | E190: 643.07 | F190: 637.03 | G190: 630.32 | H190: 655.82 | I190: 662.53 | J190: 668.57 | K190: 656.5 | L190: 643.75 | M190: 7.37235
A191: 182 | B191: TATACHEM | C191: 715.6 | D191: 718.67 | E191: 708.88 | F191: 702.17 | G191: 692.38 | H191: 725.38 | I191: 735.17 | J191: 741.88 | K191: 728.45 | L191: 711.95 | M191: 8.93018
A192: 183 | B192: TATACOMM | C192: 654.95 | D192: 654.23 | E192: 647.37 | F192: 639.78 | G192: 632.92 | H192: 661.82 | I192: 668.68 | J192: 676.27 | K192: 661.1 | L192: 646.65 | M192: 2.97746
A193: 184 | B193: TCS | C193: 2957.95 | D193: 2947.35 | E193: 2930.95 | F193: 2903.95 | G193: 2887.55 | H193: 2974.35 | I193: 2990.75 | J193: 3017.75 | K193: 2963.75 | L193: 2920.35 | M193: 9.04712
A194: 185 | B194: TATAGLOBAL | C194: 273 | D194: 273.83 | E194: 270.67 | F194: 268.33 | G194: 265.17 | H194: 276.17 | I194: 279.33 | J194: 281.67 | K194: 277 | L194: 271.5 | M194: 26.58707
A195: 186 | B195: TATAMTRDVR | C195: 205.8 | D195: 205.62 | E195: 202.98 | F195: 200.17 | G195: 197.53 | H195: 208.43 | I195: 211.07 | J195: 213.88 | K195: 208.25 | L195: 202.8 | M195: 36.57279
A196: 187 | B196: TATAMOTORS | C196: 362.2 | D196: 364.78 | E196: 357.22 | F196: 352.23 | G196: 344.67 | H196: 369.77 | I196: 377.33 | J196: 382.32 | K196: 372.35 | L196: 359.8 | M196: 288.8607
A197: 188 | B197: TATAPOWER | C197: 83.5 | D197: 83.85 | E197: 82.95 | F197: 82.40 | G197: 81.50 | H197: 84.40 | I197: 85.30 | J197: 85.85 | K197: 84.75 | L197: 83.3 | M197: 29.56519
A198: 189 | B198: TATASTEEL | C198: 580.45 | D198: 577.85 | E198: 572.10 | F198: 563.75 | G198: 558.00 | H198: 586.20 | I198: 591.95 | J198: 600.30 | K198: 583.6 | L198: 569.5 | M198: 132.62168
A199: 190 | B199: TECHM | C199: 617.35 | D199: 614.22 | E199: 607.68 | F199: 598.02 | G199: 591.48 | H199: 623.88 | I199: 630.42 | J199: 640.08 | K199: 620.75 | L199: 604.55 | M199: 28.0948
A200: 191 | B200: RAMCOCEM | C200: 794.8 | D200: 789.28 | E200: 767.57 | F200: 740.33 | G200: 718.62 | H200: 816.52 | I200: 838.23 | J200: 865.47 | K200: 811 | L200: 762.05 | M200: 7.8754
A201: 192 | B201: TITAN | C201: 920.05 | D201: 915.57 | E201: 907.13 | F201: 894.22 | G201: 885.78 | H201: 928.48 | I201: 936.92 | J201: 949.83 | K201: 924 | L201: 902.65 | M201: 41.48653
A202: 193 | B202: TORNTPHARM | C202: 1327.2 | D202: 1317.88 | E202: 1301.77 | F202: 1276.33 | G202: 1260.22 | H202: 1343.32 | I202: 1359.43 | J202: 1384.87 | K202: 1334 | L202: 1292.45 | M202: 1.34037
A203: 194 | B203: TORNTPOWER | C203: 242.5 | D203: 241.38 | E203: 238.57 | F203: 234.63 | G203: 231.82 | H203: 245.32 | I203: 248.13 | J203: 252.07 | K203: 244.2 | L203: 237.45 | M203: 6.97257
A204: 195 | B204: UPL | C204: 756.95 | D204: 753.55 | E204: 748.55 | F204: 740.15 | G204: 735.15 | H204: 761.95 | I204: 766.95 | J204: 775.35 | K204: 758.55 | L204: 745.15 | M204: 10.81941
A205: 196 | B205: ULTRACEMCO | C205: 3966.6 | D205: 3953.82 | E205: 3927.78 | F205: 3888.97 | G205: 3862.93 | H205: 3992.63 | I205: 4018.67 | J205: 4057.48 | K205: 3979.85 | L205: 3915 | M205: 1.24669
... 30 more rows

Sheet MidCap Intra
L5: Back To Main Page
A6: FOR INTRA DAY TRADING | K6: =Main!B10 -> 2018-04-06
A9: Sr.no | B9: Scrip | C9: CLOSE RATE | D9: Pivot Point | E9: Supports | H9: Resistances
C10: Point | E10: S1 | F10: S2 | G10: S3 | H10: R1 | I10: R2 | J10: R3 | K10: HIGH | L10: LOW | M10: Total Trade Quanity in Lakhs
A11: 1 | B11: 3MINDIA | C11: 20638.7 | D11: 20566.23 | E11: 20412.47 | F11: 20186.23 | G11: 20032.47 | H11: 20792.47 | I11: 20946.23 | J11: 21172.47 | K11: 20720 | L11: 20340 | M11: 0.00874
A12: 2 | B12: 8KMILES | C12: 694.45 | D12: 697.42 | E12: 688.03 | F12: 681.62 | G12: 672.23 | H12: 703.83 | I12: 713.22 | J12: 719.63 | K12: 706.8 | L12: 691 | M12: 1.4363
A13: 3 | B13: ABB | C13: 1278.6 | D13: 1284.53 | E13: 1269.07 | F13: 1259.53 | G13: 1244.07 | H13: 1294.07 | I13: 1309.53 | J13: 1319.07 | K13: 1300 | L13: 1275 | M13: 1.00475
A14: 4 | B14: ACC | C14: 1552.35 | D14: 1549.65 | E14: 1539.60 | F14: 1526.85 | G14: 1516.80 | H14: 1562.40 | I14: 1572.45 | J14: 1585.20 | K14: 1559.7 | L14: 1536.9 | M14: 1.98303
A15: 5 | B15: AIAENG | C15: 1450 | D15: 1446.50 | E15: 1433.10 | F15: 1416.20 | G15: 1402.80 | H15: 1463.40 | I15: 1476.80 | J15: 1493.70 | K15: 1459.9 | L15: 1429.6 | M15: 0.1477
A16: 6 | B16: APLAPOLLO | C16: 2116.85 | D16: 2108.92 | E16: 2067.93 | F16: 2019.02 | G16: 1978.03 | H16: 2157.83 | I16: 2198.82 | J16: 2247.73 | K16: 2149.9 | L16: 2060 | M16: 0.9261
A17: 7 | B17: AUBANK | C17: 652.85 | D17: 649.10 | E17: 641.75 | F17: 630.65 | G17: 623.30 | H17: 660.20 | I17: 667.55 | J17: 678.65 | K17: 656.45 | L17: 638 | M17: 2.03016
A18: 8 | B18: AARTIIND | C18: 1186.6 | D18: 1178.18 | E18: 1163.42 | F18: 1140.23 | G18: 1125.47 | H18: 1201.37 | I18: 1216.13 | J18: 1239.32 | K18: 1192.95 | L18: 1155 | M18: 0.50692
A19: 9 | B19: ABAN | C19: 162.15 | D19: 162.12 | E19: 160.83 | F19: 159.52 | G19: 158.23 | H19: 163.43 | I19: 164.72 | J19: 166.03 | K19: 163.4 | L19: 160.8 | M19: 4.83386
A20: 10 | B20: ADANIENT | C20: 147.85 | D20: 142.35 | E20: 131.75 | F20: 115.65 | G20: 105.05 | H20: 158.45 | I20: 169.05 | J20: 185.15 | K20: 152.95 | L20: 126.25 | M20: 274.97507
A21: 11 | B21: ADANIPORTS | C21: 375.95 | D21: 375.75 | E21: 371.70 | F21: 367.45 | G21: 363.40 | H21: 380.00 | I21: 384.05 | J21: 388.30 | K21: 379.8 | L21: 371.5 | M21: 36.48555
A22: 12 | B22: ADANIPOWER | C22: 25.5 | D22: 25.53 | E22: 25.22 | F22: 24.93 | G22: 24.62 | H22: 25.82 | I22: 26.13 | J22: 26.42 | K22: 25.85 | L22: 25.25 | M22: 145.16075
A23: 13 | B23: ADANITRANS | C23: 183.4 | D23: 183.48 | E23: 178.77 | F23: 174.13 | G23: 169.42 | H23: 188.12 | I23: 192.83 | J23: 197.47 | K23: 188.2 | L23: 178.85 | M23: 38.5533
A24: 14 | B24: ABFRL | C24: 149.95 | D24: 151.68 | E24: 147.52 | F24: 145.08 | G24: 140.92 | H24: 154.12 | I24: 158.28 | J24: 160.72 | K24: 155.85 | L24: 149.25 | M24: 2.24163
A25: 15 | B25: ADVENZYMES | C25: 235.05 | D25: 236.18 | E25: 232.87 | F25: 230.68 | G25: 227.37 | H25: 238.37 | I25: 241.68 | J25: 243.87 | K25: 239.5 | L25: 234 | M25: 0.90142
A26: 16 | B26: AEGISCHEM | C26: 271.3 | D26: 267.38 | E26: 262.82 | F26: 254.33 | G26: 249.77 | H26: 275.87 | I26: 280.43 | J26: 288.92 | K26: 271.95 | L26: 258.9 | M26: 2.10047
A27: 17 | B27: AHLUCONT | C27: 396.45 | D27: 395.23 | E27: 392.47 | F27: 388.48 | G27: 385.72 | H27: 399.22 | I27: 401.98 | J27: 405.97 | K27: 398 | L27: 391.25 | M27: 0.10246
A28: 18 | B28: AJANTPHARM | C28: 1395.4 | D28: 1395.77 | E28: 1383.23 | F28: 1371.07 | G28: 1358.53 | H28: 1407.93 | I28: 1420.47 | J28: 1432.63 | K28: 1408.3 | L28: 1383.6 | M28: 1.63826
A29: 19 | B29: AKZOINDIA | C29: 1937.35 | D29: 1934.58 | E29: 1894.17 | F29: 1850.98 | G29: 1810.57 | H29: 1977.77 | I29: 2018.18 | J29: 2061.37 | K29: 1975 | L29: 1891.4 | M29: 0.42418
A30: 20 | B30: APLLTD | C30: 550.55 | D30: 551.25 | E30: 546.60 | F30: 542.65 | G30: 538.00 | H30: 555.20 | I30: 559.85 | J30: 563.80 | K30: 555.9 | L30: 547.3 | M30: 2.0871
A31: 21 | B31: ALKEM | C31: 1854.1 | D31: 1872.72 | E31: 1831.48 | F31: 1808.87 | G31: 1767.63 | H31: 1895.33 | I31: 1936.57 | J31: 1959.18 | K31: 1913.95 | L31: 1850.1 | M31: 0.50574
A32: 22 | B32: ALBK | C32: 51.7 | D32: 51.28 | E32: 50.27 | F32: 48.83 | G32: 47.82 | H32: 52.72 | I32: 53.73 | J32: 55.17 | K32: 52.3 | L32: 49.85 | M32: 46.74461
A33: 23 | B33: ALLCARGO | C33: 151.25 | D33: 151.57 | E33: 150.63 | F33: 150.02 | G33: 149.08 | H33: 152.18 | I33: 153.12 | J33: 153.73 | K33: 152.5 | L33: 150.95 | M33: 1.89434
A34: 24 | B34: AMARAJABAT | C34: 803.5 | D34: 804.63 | E34: 799.87 | F34: 796.23 | G34: 791.47 | H34: 808.27 | I34: 813.03 | J34: 816.67 | K34: 809.4 | L34: 801 | M34: 2.16748
A35: 25 | B35: AMBUJACEM | C35: 238 | D35: 237.80 | E35: 235.75 | F35: 233.50 | G35: 231.45 | H35: 240.05 | I35: 242.10 | J35: 244.35 | K35: 239.85 | L35: 235.55 | M35: 21.10899
A36: 26 | B36: ANDHRABANK | C36: 44.2 | D36: 44.02 | E36: 43.03 | F36: 41.87 | G36: 40.88 | H36: 45.18 | I36: 46.17 | J36: 47.33 | K36: 45 | L36: 42.85 | M36: 56.6306
A37: 27 | B37: APARINDS | C37: 772.85 | D37: 769.20 | E37: 763.65 | F37: 754.45 | G37: 748.90 | H37: 778.40 | I37: 783.95 | J37: 793.15 | K37: 774.75 | L37: 760 | M37: 0.0504
A38: 28 | B38: APOLLOHOSP | C38: 1083.7 | D38: 1083.43 | E38: 1075.27 | F38: 1066.83 | G38: 1058.67 | H38: 1091.87 | I38: 1100.03 | J38: 1108.47 | K38: 1091.6 | L38: 1075 | M38: 2.31441
A39: 29 | B39: APOLLOTYRE | C39: 292.5 | D39: 290.73 | E39: 286.12 | F39: 279.73 | G39: 275.12 | H39: 297.12 | I39: 301.73 | J39: 308.12 | K39: 295.35 | L39: 284.35 | M39: 46.4268
A40: 30 | B40: ARVIND | C40: 409.6 | D40: 407.97 | E40: 404.83 | F40: 400.07 | G40: 396.93 | H40: 412.73 | I40: 415.87 | J40: 420.63 | K40: 411.1 | L40: 403.2 | M40: 8.07042
A41: 31 | B41: ASHOKLEY | C41: 147 | D41: 147.22 | E41: 145.78 | F41: 144.57 | G41: 143.13 | H41: 148.43 | I41: 149.87 | J41: 151.08 | K41: 148.65 | L41: 146 | M41: 116.04724
A42: 32 | B42: ASHOKA | C42: 262.15 | D42: 262.37 | E42: 259.78 | F42: 257.42 | G42: 254.83 | H42: 264.73 | I42: 267.32 | J42: 269.68 | K42: 264.95 | L42: 260 | M42: 3.4734
A43: 33 | B43: ASIANPAINT | C43: 1142.9 | D43: 1145.75 | E43: 1134.70 | F43: 1126.50 | G43: 1115.45 | H43: 1153.95 | I43: 1165.00 | J43: 1173.20 | K43: 1156.8 | L43: 1137.55 | M43: 5.49137
A44: 34 | B44: ASTRAZEN | C44: 957.3 | D44: 957.35 | E44: 949.70 | F44: 942.10 | G44: 934.45 | H44: 964.95 | I44: 972.60 | J44: 980.20 | K44: 965 | L44: 949.75 | M44: 0.01449
A45: 35 | B45: ASTRAL | C45: 913.85 | D45: 911.65 | E45: 903.30 | F45: 892.75 | G45: 884.40 | H45: 922.20 | I45: 930.55 | J45: 941.10 | K45: 920 | L45: 901.1 | M45: 0.5742
A46: 36 | B46: ATUL | C46: 2796.4 | D46: 2780.13 | E46: 2743.72 | F46: 2691.03 | G46: 2654.62 | H46: 2832.82 | I46: 2869.23 | J46: 2921.92 | K46: 2816.55 | L46: 2727.45 | M46: 0.06437
A47: 37 | B47: AUROPHARMA | C47: 599.15 | D47: 596.62 | E47: 592.28 | F47: 585.42 | G47: 581.08 | H47: 603.48 | I47: 607.82 | J47: 614.68 | K47: 600.95 | L47: 589.75 | M47: 14.82861
A48: 38 | B48: AVANTIFEED | C48: 2290.35 | D48: 2301.73 | E48: 2268.62 | F48: 2246.88 | G48: 2213.77 | H48: 2323.47 | I48: 2356.58 | J48: 2378.32 | K48: 2334.85 | L48: 2280 | M48: 0.57594
A49: 39 | B49: DMART | C49: 1401.3 | D49: 1394.20 | E49: 1378.40 | F49: 1355.50 | G49: 1339.70 | H49: 1417.10 | I49: 1432.90 | J49: 1455.80 | K49: 1410 | L49: 1371.3 | M49: 12.61502
A50: 40 | B50: AXISBANK | C50: 503.1 | D50: 500.98 | E50: 497.32 | F50: 491.53 | G50: 487.87 | H50: 506.77 | I50: 510.43 | J50: 516.22 | K50: 504.65 | L50: 495.2 | M50: 66.82587
A51: 41 | B51: BASF | C51: 2022.4 | D51: 2021.80 | E51: 1988.60 | F51: 1954.80 | G51: 1921.60 | H51: 2055.60 | I51: 2088.80 | J51: 2122.60 | K51: 2055 | L51: 1988 | M51: 0.14445
A52: 42 | B52: BEML | C52: 1116.85 | D52: 1114.07 | E52: 1103.13 | F52: 1089.42 | G52: 1078.48 | H52: 1127.78 | I52: 1138.72 | J52: 1152.43 | K52: 1125 | L52: 1100.35 | M52: 4.70283
A53: 43 | B53: BFUTILITIE | C53: 404.5 | D53: 403.33 | E53: 399.17 | F53: 393.83 | G53: 389.67 | H53: 408.67 | I53: 412.83 | J53: 418.17 | K53: 407.5 | L53: 398 | M53: 3.01893
A54: 44 | B54: BGRENERGY | C54: 106.45 | D54: 106.72 | E54: 105.53 | F54: 104.62 | G54: 103.43 | H54: 107.63 | I54: 108.82 | J54: 109.73 | K54: 107.9 | L54: 105.8 | M54: 0.41179
A55: 45 | B55: BSE | C55: 808.95 | D55: 809.70 | E55: 804.40 | F55: 799.85 | G55: 794.55 | H55: 814.25 | I55: 819.55 | J55: 824.10 | K55: 815 | L55: 805.15 | M55: 1.13736
A56: 46 | B56: BAJAJ-AUTO | C56: 2808.15 | D56: 2802.17 | E56: 2788.38 | F56: 2768.62 | G56: 2754.83 | H56: 2821.93 | I56: 2835.72 | J56: 2855.48 | K56: 2815.95 | L56: 2782.4 | M56: 3.41534
A57: 47 | B57: BAJAJCORP | C57: 463.1 | D57: 463.68 | E57: 459.47 | F57: 455.83 | G57: 451.62 | H57: 467.32 | I57: 471.53 | J57: 475.17 | K57: 467.9 | L57: 460.05 | M57: 0.09647
A58: 48 | B58: BAJAJELEC | C58: 618.15 | D58: 621.52 | E58: 608.73 | F58: 599.32 | G58: 586.53 | H58: 630.93 | I58: 643.72 | J58: 653.13 | K58: 634.3 | L58: 612.1 | M58: 7.64069
A59: 49 | B59: BAJFINANCE | C59: 1915.6 | D59: 1901.23 | E59: 1880.37 | F59: 1845.13 | G59: 1824.27 | H59: 1936.47 | I59: 1957.33 | J59: 1992.57 | K59: 1922.1 | L59: 1866 | M59: 13.85959
A60: 50 | B60: BAJAJFINSV | C60: 5443.85 | D60: 5419.62 | E60: 5339.23 | F60: 5234.62 | G60: 5154.23 | H60: 5524.23 | I60: 5604.62 | J60: 5709.23 | K60: 5500 | L60: 5315 | M60: 2.05387
A61: 51 | B61: BAJAJHIND | C61: 9.5 | D61: 9.52 | E61: 9.33 | F61: 9.17 | G61: 8.98 | H61: 9.68 | I61: 9.87 | J61: 10.03 | K61: 9.7 | L61: 9.35 | M61: 51.38095
A62: 52 | B62: BAJAJHLDNG | C62: 2624.5 | D62: 2624.20 | E62: 2612.40 | F62: 2600.30 | G62: 2588.50 | H62: 2636.30 | I62: 2648.10 | J62: 2660.20 | K62: 2636 | L62: 2612.1 | M62: 0.30267
A63: 53 | B63: BALKRISIND | C63: 1177.95 | D63: 1181.48 | E63: 1158.67 | F63: 1139.38 | G63: 1116.57 | H63: 1200.77 | I63: 1223.58 | J63: 1242.87 | K63: 1204.3 | L63: 1162.2 | M63: 8.44692
A64: 54 | B64: BALLARPUR | C64: 13.95 | D64: 13.75 | E64: 13.40 | F64: 12.85 | G64: 12.50 | H64: 14.30 | I64: 14.65 | J64: 15.20 | K64: 14.1 | L64: 13.2 | M64: 15.06933
A65: 55 | B65: BALMLAWRIE | C65: 223.85 | D65: 223.47 | E65: 222.28 | F65: 220.72 | G65: 219.53 | H65: 225.03 | I65: 226.22 | J65: 227.78 | K65: 224.65 | L65: 221.9 | M65: 0.56983
A66: 56 | B66: BALRAMCHIN | C66: 76.05 | D66: 77.17 | E66: 73.93 | F66: 71.82 | G66: 68.58 | H66: 79.28 | I66: 82.52 | J66: 84.63 | K66: 80.4 | L66: 75.05 | M66: 54.42369
A67: 57 | B67: BANKBARODA | C67: 147.8 | D67: 146.30 | E67: 142.30 | F67: 136.80 | G67: 132.80 | H67: 151.80 | I67: 155.80 | J67: 161.30 | K67: 150.3 | L67: 140.8 | M67: 189.12455
A68: 58 | B68: BANKINDIA | C68: 111.1 | D68: 109.72 | E68: 106.53 | F68: 101.97 | G68: 98.78 | H68: 114.28 | I68: 117.47 | J68: 122.03 | K68: 112.9 | L68: 105.15 | M68: 131.93553
A69: 59 | B69: BATAINDIA | C69: 767.35 | D69: 761.78 | E69: 753.57 | F69: 739.78 | G69: 731.57 | H69: 775.57 | I69: 783.78 | J69: 797.57 | K69: 770 | L69: 748 | M69: 9.04857
A70: 60 | B70: BERGEPAINT | C70: 260.9 | D70: 260.22 | E70: 258.78 | F70: 256.67 | G70: 255.23 | H70: 262.33 | I70: 263.77 | J70: 265.88 | K70: 261.65 | L70: 258.1 | M70: 2.09701
A71: 61 | B71: BEL | C71: 145.05 | D71: 144.97 | E71: 143.73 | F71: 142.42 | G71: 141.18 | H71: 146.28 | I71: 147.52 | J71: 148.83 | K71: 146.2 | L71: 143.65 | M71: 34.85433
A72: 62 | B72: BHARATFIN | C72: 1127.8 | D72: 1123.68 | E72: 1114.97 | F72: 1102.13 | G72: 1093.42 | H72: 1136.52 | I72: 1145.23 | J72: 1158.07 | K72: 1132.4 | L72: 1110.85 | M72: 3.80392
A73: 63 | B73: BHARATFORG | C73: 726.9 | D73: 727.40 | E73: 721.55 | F73: 716.20 | G73: 710.35 | H73: 732.75 | I73: 738.60 | J73: 743.95 | K73: 733.25 | L73: 722.05 | M73: 13.57694
A74: 64 | B74: BHEL | C74: 87.2 | D74: 87.03 | E74: 86.47 | F74: 85.73 | G74: 85.17 | H74: 87.77 | I74: 88.33 | J74: 89.07 | K74: 87.6 | L74: 86.3 | M74: 53.68585
A75: 65 | B75: BPCL | C75: 422.45 | D75: 420.87 | E75: 418.13 | F75: 413.82 | G75: 411.08 | H75: 425.18 | I75: 427.92 | J75: 432.23 | K75: 423.6 | L75: 416.55 | M75: 18.36525
A76: 66 | B76: BHARTIARTL | C76: 393.9 | D76: 395.32 | E76: 389.73 | F76: 385.57 | G76: 379.98 | H76: 399.48 | I76: 405.07 | J76: 409.23 | K76: 400.9 | L76: 391.15 | M76: 87.8468
A77: 67 | B77: INFRATEL | C77: 338.05 | D77: 336.27 | E77: 332.03 | F77: 326.02 | G77: 321.78 | H77: 342.28 | I77: 346.52 | J77: 352.53 | K77: 340.5 | L77: 330.25 | M77: 38.07792
A78: 68 | B78: BHUSANSTL | C78: 45.05 | D78: 44.92 | E78: 44.23 | F78: 43.42 | G78: 42.73 | H78: 45.73 | I78: 46.42 | J78: 47.23 | K78: 45.6 | L78: 44.1 | M78: 28.11156
A79: 69 | B79: BIOCON | C79: 607.65 | D79: 606.37 | E79: 602.83 | F79: 598.02 | G79: 594.48 | H79: 611.18 | I79: 614.72 | J79: 619.53 | K79: 609.9 | L79: 601.55 | M79: 10.16285
A80: 70 | B80: BIRLACORPN | C80: 790.35 | D80: 786.12 | E80: 774.23 | F80: 758.12 | G80: 746.23 | H80: 802.23 | I80: 814.12 | J80: 830.23 | K80: 798 | L80: 770 | M80: 0.56728
A81: 71 | B81: BLISSGVS | C81: 202.25 | D81: 202.82 | E81: 200.93 | F81: 199.62 | G81: 197.73 | H81: 204.13 | I81: 206.02 | J81: 207.33 | K81: 204.7 | L81: 201.5 | M81: 1.85911
A82: 72 | B82: BLUEDART | C82: 3755.85 | D82: 3759.62 | E82: 3719.23 | F82: 3682.62 | G82: 3642.23 | H82: 3796.23 | I82: 3836.62 | J82: 3873.23 | K82: 3800 | L82: 3723 | M82: 0.14158
A83: 73 | B83: BLUESTARCO | C83: 798.1 | D83: 793.82 | E83: 786.83 | F83: 775.57 | G83: 768.58 | H83: 805.08 | I83: 812.07 | J83: 823.33 | K83: 800.8 | L83: 782.55 | M83: 0.44447
A84: 74 | B84: BBTC | C84: 1257.6 | D84: 1255.63 | E84: 1243.47 | F84: 1229.33 | G84: 1217.17 | H84: 1269.77 | I84: 1281.93 | J84: 1296.07 | K84: 1267.8 | L84: 1241.5 | M84: 1.51629
A85: 75 | B85: BOMDYEING | C85: 251.55 | D85: 251.37 | E85: 248.38 | F85: 245.22 | G85: 242.23 | H85: 254.53 | I85: 257.52 | J85: 260.68 | K85: 254.35 | L85: 248.2 | M85: 18.01239
A86: 76 | B86: BRFL | C86: 38.15 | D86: 38.30 | E86: 37.35 | F86: 36.55 | G86: 35.60 | H86: 39.10 | I86: 40.05 | J86: 40.85 | K86: 39.25 | L86: 37.5 | M86: 2.52742
A87: 77 | B87: BOSCHLTD | C87: 19538.9 | D87: 19576.68 | E87: 19153.37 | F87: 18767.83 | G87: 18344.52 | H87: 19962.22 | I87: 20385.53 | J87: 20771.07 | K87: 20000 | L87: 19191.15 | M87: 0.35426
A88: 78 | B88: BRIGADE | C88: 259.25 | D88: 262.02 | E88: 255.03 | F88: 250.82 | G88: 243.83 | H88: 266.23 | I88: 273.22 | J88: 277.43 | K88: 269 | L88: 257.8 | M88: 0.72746
A89: 79 | B89: BRITANNIA | C89: 5067.85 | D89: 5051.18 | E89: 5027.67 | F89: 4987.48 | G89: 4963.97 | H89: 5091.37 | I89: 5114.88 | J89: 5155.07 | K89: 5074.7 | L89: 5011 | M89: 1.02027
A90: 80 | B90: CARERATING | C90: 1306.3 | D90: 1282.52 | E90: 1236.03 | F90: 1165.77 | G90: 1119.28 | H90: 1352.78 | I90: 1399.27 | J90: 1469.53 | K90: 1329 | L90: 1212.25 | M90: 4.12855
A91: 81 | B91: CCL | C91: 289.9 | D91: 288.60 | E91: 283.30 | F91: 276.70 | G91: 271.40 | H91: 295.20 | I91: 300.50 | J91: 307.10 | K91: 293.9 | L91: 282 | M91: 0.38381
A92: 82 | B92: CGPOWER | C92: 80.3 | D92: 80.25 | E92: 79.65 | F92: 79.00 | G92: 78.40 | H92: 80.90 | I92: 81.50 | J92: 82.15 | K92: 80.85 | L92: 79.6 | M92: 4.23202
A93: 83 | B93: CRISIL | C93: 1905.2 | D93: 1897.07 | E93: 1878.13 | F93: 1851.07 | G93: 1832.13 | H93: 1924.13 | I93: 1943.07 | J93: 1970.13 | K93: 1916 | L93: 1870 | M93: 0.11238
A94: 84 | B94: CADILAHC | C94: 394.35 | D94: 396.93 | E94: 390.42 | F94: 386.48 | G94: 379.97 | H94: 400.87 | I94: 407.38 | J94: 411.32 | K94: 403.45 | L94: 393 | M94: 11.33101
A95: 85 | B95: CANFINHOME | C95: 439.3 | D95: 437.42 | E95: 433.38 | F95: 427.47 | G95: 423.43 | H95: 443.33 | I95: 447.37 | J95: 453.28 | K95: 441.45 | L95: 431.5 | M95: 12.55931
A96: 86 | B96: CANBK | C96: 283.1 | D96: 279.85 | E96: 269.25 | F96: 255.40 | G96: 244.80 | H96: 293.70 | I96: 304.30 | J96: 318.15 | K96: 290.45 | L96: 266 | M96: 99.03456
A97: 87 | B97: CAPF | C97: 656.1 | D97: 653.48 | E97: 644.62 | F97: 633.13 | G97: 624.27 | H97: 664.97 | I97: 673.83 | J97: 685.32 | K97: 662.35 | L97: 642 | M97: 10.28619
A98: 88 | B98: CAPLIPOINT | C98: 604.9 | D98: 606.30 | E98: 599.60 | F98: 594.30 | G98: 587.60 | H98: 611.60 | I98: 618.30 | J98: 623.60 | K98: 613 | L98: 601 | M98: 0.12143
A99: 89 | B99: CARBORUNIV | C99: 372.2 | D99: 372.07 | E99: 368.13 | F99: 364.07 | G99: 360.13 | H99: 376.13 | I99: 380.07 | J99: 384.13 | K99: 376 | L99: 368 | M99: 0.95526
A100: 90 | B100: CASTROLIND | C100: 207.95 | D100: 208.63 | E100: 205.87 | F100: 203.78 | G100: 201.02 | H100: 210.72 | I100: 213.48 | J100: 215.57 | K100: 211.4 | L100: 206.55 | M100: 10.55919
A101: 91 | B101: CEATLTD | C101: 1645.75 | D101: 1628.58 | E101: 1605.17 | F101: 1564.58 | G101: 1541.17 | H101: 1669.17 | I101: 1692.58 | J101: 1733.17 | K101: 1652 | L101: 1588 | M101: 11.93626
A102: 92 | B102: CENTRALBK | C102: 70.5 | D102: 70.53 | E102: 70.07 | F102: 69.63 | G102: 69.17 | H102: 70.97 | I102: 71.43 | J102: 71.87 | K102: 71 | L102: 70.1 | M102: 15.7213
A103: 93 | B103: CENTURYPLY | C103: 349.25 | D103: 346.08 | E103: 341.17 | F103: 333.08 | G103: 328.17 | H103: 354.17 | I103: 359.08 | J103: 367.17 | K103: 351 | L103: 338 | M103: 6.33428
A104: 94 | B104: CENTURYTEX | C104: 1201.3 | D104: 1197.42 | E104: 1183.83 | F104: 1166.37 | G104: 1152.78 | H104: 1214.88 | I104: 1228.47 | J104: 1245.93 | K104: 1211 | L104: 1179.95 | M104: 4.10178
A105: 95 | B105: CERA | C105: 3369.95 | D105: 3391.02 | E105: 3335.08 | F105: 3300.22 | G105: 3244.28 | H105: 3425.88 | I105: 3481.82 | J105: 3516.68 | K105: 3446.95 | L105: 3356.15 | M105: 0.02069
A106: 96 | B106: CHAMBLFERT | C106: 165.05 | D106: 165.10 | E106: 164.00 | F106: 162.95 | G106: 161.85 | H106: 166.15 | I106: 167.25 | J106: 168.30 | K106: 166.2 | L106: 164.05 | M106: 2.48193
A107: 97 | B107: CHENNPETRO | C107: 339.8 | D107: 338.93 | E107: 335.42 | F107: 331.03 | G107: 327.52 | H107: 343.32 | I107: 346.83 | J107: 351.22 | K107: 342.45 | L107: 334.55 | M107: 2.19479
A108: 98 | B108: CHOLAFIN | C108: 1524.75 | D108: 1520.28 | E108: 1505.57 | F108: 1486.38 | G108: 1471.67 | H108: 1539.47 | I108: 1554.18 | J108: 1573.37 | K108: 1535 | L108: 1501.1 | M108: 2.13125
A109: 99 | B109: CIPLA | C109: 560.35 | D109: 565.75 | E109: 552.95 | F109: 545.55 | G109: 532.75 | H109: 573.15 | I109: 585.95 | J109: 593.35 | K109: 578.55 | L109: 558.35 | M109: 23.96864
A110: 100 | B110: CUB | C110: 177.4 | D110: 177.60 | E110: 175.00 | F110: 172.60 | G110: 170.00 | H110: 180.00 | I110: 182.60 | J110: 185.00 | K110: 180.2 | L110: 175.2 | M110: 5.52272
A111: 101 | B111: COALINDIA | C111: 277.8 | D111: 277.58 | E111: 275.67 | F111: 273.53 | G111: 271.62 | H111: 279.72 | I111: 281.63 | J111: 283.77 | K111: 279.5 | L111: 275.45 | M111: 15.27043
A112: 102 | B112: COCHINSHIP | C112: 517.45 | D112: 517.30 | E112: 513.65 | F112: 509.85 | G112: 506.20 | H112: 521.10 | I112: 524.75 | J112: 528.55 | K112: 520.95 | L112: 513.5 | M112: 0.77993
A113: 103 | B113: COFFEEDAY | C113: 306 | D113: 306.25 | E113: 303.25 | F113: 300.50 | G113: 297.50 | H113: 309.00 | I113: 312.00 | J113: 314.75 | K113: 309.25 | L113: 303.5 | M113: 0.50127
A114: 104 | B114: COLPAL | C114: 1091.35 | D114: 1090.48 | E114: 1081.02 | F114: 1070.68 | G114: 1061.22 | H114: 1100.82 | I114: 1110.28 | J114: 1120.62 | K114: 1099.95 | L114: 1080.15 | M114: 1.88886
A115: 105 | B115: CONCOR | C115: 1239.8 | D115: 1244.17 | E115: 1227.43 | F115: 1215.07 | G115: 1198.33 | H115: 1256.53 | I115: 1273.27 | J115: 1285.63 | K115: 1260.9 | L115: 1231.8 | M115: 2.54572
A116: 106 | B116: COROMANDEL | C116: 533.4 | D116: 535.47 | E116: 528.93 | F116: 524.47 | G116: 517.93 | H116: 539.93 | I116: 546.47 | J116: 550.93 | K116: 542 | L116: 531 | M116: 0.61754
A117: 107 | B117: CORPBANK | C117: 31.9 | D117: 31.67 | E117: 31.18 | F117: 30.47 | G117: 29.98 | H117: 32.38 | I117: 32.87 | J117: 33.58 | K117: 32.15 | L117: 30.95 | M117: 5.25074
A118: 108 | B118: COX&KINGS | C118: 236.65 | D118: 236.62 | E118: 235.23 | F118: 233.82 | G118: 232.43 | H118: 238.03 | I118: 239.42 | J118: 240.83 | K118: 238 | L118: 235.2 | M118: 0.34505
A119: 109 | B119: CROMPTON | C119: 234.05 | D119: 232.40 | E119: 229.80 | F119: 225.55 | G119: 222.95 | H119: 236.65 | I119: 239.25 | J119: 243.50 | K119: 235 | L119: 228.15 | M119: 4.76687
A120: 110 | B120: CUMMINSIND | C120: 744.05 | D120: 741.25 | E120: 732.80 | F120: 721.55 | G120: 713.10 | H120: 752.50 | I120: 760.95 | J120: 772.20 | K120: 749.7 | L120: 730 | M120: 3.72017
A121: 111 | B121: CYIENT | C121: 639.1 | D121: 646.22 | E121: 625.88 | F121: 612.67 | G121: 592.33 | H121: 659.43 | I121: 679.77 | J121: 692.98 | K121: 666.55 | L121: 633 | M121: 2.48012
A122: 112 | B122: DBREALTY | C122: 55.1 | D122: 54.52 | E122: 53.93 | F122: 52.77 | G122: 52.18 | H122: 55.68 | I122: 56.27 | J122: 57.43 | K122: 55.1 | L122: 53.35 | M122: 6.69566
A123: 113 | B123: DBCORP | C123: 311.25 | D123: 313.58 | E123: 307.17 | F123: 303.08 | G123: 296.67 | H123: 317.67 | I123: 324.08 | J123: 328.17 | K123: 320 | L123: 309.5 | M123: 0.20178
A124: 114 | B124: DCBBANK | C124: 170.3 | D124: 169.63 | E124: 168.27 | F124: 166.23 | G124: 164.87 | H124: 171.67 | I124: 173.03 | J124: 175.07 | K124: 171 | L124: 167.6 | M124: 10.3823
A125: 115 | B125: DCMSHRIRAM | C125: 466.65 | D125: 465.65 | E125: 458.30 | F125: 449.95 | G125: 442.60 | H125: 474.00 | I125: 481.35 | J125: 489.70 | K125: 473 | L125: 457.3 | M125: 1.05879
A126: 116 | B126: DLF | C126: 206.25 | D126: 205.03 | E126: 203.22 | F126: 200.18 | G126: 198.37 | H126: 208.07 | I126: 209.88 | J126: 212.92 | K126: 206.85 | L126: 202 | M126: 51.41982
A127: 117 | B127: DABUR | C127: 336.9 | D127: 337.17 | E127: 335.18 | F127: 333.47 | G127: 331.48 | H127: 338.88 | I127: 340.87 | J127: 342.58 | K127: 339.15 | L127: 335.45 | M127: 5.60831
A128: 118 | B128: DALMIABHA | C128: 2925.95 | D128: 2937.82 | E128: 2898.23 | F128: 2870.52 | G128: 2830.93 | H128: 2965.53 | I128: 3005.12 | J128: 3032.83 | K128: 2977.4 | L128: 2910.1 | M128: 0.66533
A129: 119 | B129: DEEPAKFERT | C129: 323.5 | D129: 320.17 | E129: 313.33 | F129: 303.17 | G129: 296.33 | H129: 330.33 | I129: 337.17 | J129: 347.33 | K129: 327 | L129: 310 | M129: 4.80886
A130: 120 | B130: DELTACORP | C130: 284.35 | D130: 283.73 | E130: 280.82 | F130: 277.28 | G130: 274.37 | H130: 287.27 | I130: 290.18 | J130: 293.72 | K130: 286.65 | L130: 280.2 | M130: 27.44527
A131: 121 | B131: DEN | C131: 105.4 | D131: 105.73 | E131: 103.47 | F131: 101.53 | G131: 99.27 | H131: 107.67 | I131: 109.93 | J131: 111.87 | K131: 108 | L131: 103.8 | M131: 11.33631
A132: 122 | B132: DENABANK | C132: 19.9 | D132: 19.85 | E132: 19.60 | F132: 19.30 | G132: 19.05 | H132: 20.15 | I132: 20.40 | J132: 20.70 | K132: 20.1 | L132: 19.55 | M132: 10.68606
A133: 123 | B133: DHFL | C133: 540.3 | D133: 537.87 | E133: 531.43 | F133: 522.57 | G133: 516.13 | H133: 546.73 | I133: 553.17 | J133: 562.03 | K133: 544.3 | L133: 529 | M133: 52.82826
A134: 124 | B134: DHANUKA | C134: 587.3 | D134: 591.80 | E134: 579.60 | F134: 571.90 | G134: 559.70 | H134: 599.50 | I134: 611.70 | J134: 619.40 | K134: 604 | L134: 584.1 | M134: 0.1253
A135: 125 | B135: DBL | C135: 1158.05 | D135: 1159.35 | E135: 1140.70 | F135: 1123.35 | G135: 1104.70 | H135: 1176.70 | I135: 1195.35 | J135: 1212.70 | K135: 1178 | L135: 1142 | M135: 4.43146
A136: 126 | B136: DISHTV | C136: 71.6 | D136: 71.45 | E136: 70.80 | F136: 70.00 | G136: 69.35 | H136: 72.25 | I136: 72.90 | J136: 73.70 | K136: 72.1 | L136: 70.65 | M136: 17.89142
A137: 127 | B137: DIVISLAB | C137: 1118.7 | D137: 1115.53 | E137: 1104.37 | F137: 1090.03 | G137: 1078.87 | H137: 1129.87 | I137: 1141.03 | J137: 1155.37 | K137: 1126.7 | L137: 1101.2 | M137: 7.83319
A138: 128 | B138: LALPATHLAB | C138: 876.65 | D138: 869.82 | E138: 859.83 | F138: 843.02 | G138: 833.03 | H138: 886.63 | I138: 896.62 | J138: 913.43 | K138: 879.8 | L138: 853 | M138: 0.15513
A139: 129 | B139: DRREDDY | C139: 2111.1 | D139: 2114.57 | E139: 2093.53 | F139: 2075.97 | G139: 2054.93 | H139: 2132.13 | I139: 2153.17 | J139: 2170.73 | K139: 2135.6 | L139: 2097 | M139: 3.7511
A140: 130 | B140: DREDGECORP | C140: 617.25 | D140: 619.92 | E140: 610.33 | F140: 603.42 | G140: 593.83 | H140: 626.83 | I140: 636.42 | J140: 643.33 | K140: 629.5 | L140: 613 | M140: 1.47437
A141: 131 | B141: EIDPARRY | C141: 277.1 | D141: 279.80 | E141: 272.60 | F141: 268.10 | G141: 260.90 | H141: 284.30 | I141: 291.50 | J141: 296.00 | K141: 287 | L141: 275.3 | M141: 1.91339
A142: 132 | B142: EIHOTEL | C142: 166.65 | D142: 166.92 | E142: 162.38 | F142: 158.12 | G142: 153.58 | H142: 171.18 | I142: 175.72 | J142: 179.98 | K142: 171.45 | L142: 162.65 | M142: 10.94303
A143: 133 | B143: EDELWEISS | C143: 249.8 | D143: 249.73 | E143: 244.67 | F143: 239.53 | G143: 234.47 | H143: 254.87 | I143: 259.93 | J143: 265.07 | K143: 254.8 | L143: 244.6 | M143: 37.88987
A144: 134 | B144: EICHERMOT | C144: 29677.75 | D144: 29508.93 | E144: 29268.87 | F144: 28859.98 | G144: 28619.92 | H144: 29917.82 | I144: 30157.88 | J144: 30566.77 | K144: 29749 | L144: 29100.05 | M144: 0.51075
A145: 135 | B145: EMAMILTD | C145: 1110.3 | D145: 1106.05 | E145: 1097.35 | F145: 1084.40 | G145: 1075.70 | H145: 1119.00 | I145: 1127.70 | J145: 1140.65 | K145: 1114.75 | L145: 1093.1 | M145: 2.02947
A146: 136 | B146: ENDURANCE | C146: 1292.2 | D146: 1286.08 | E146: 1276.12 | F146: 1260.03 | G146: 1250.07 | H146: 1302.17 | I146: 1312.13 | J146: 1328.22 | K146: 1296.05 | L146: 1270 | M146: 0.25824
A147: 137 | B147: ENGINERSIN | C147: 166.6 | D147: 165.35 | E147: 163.30 | F147: 160.00 | G147: 157.95 | H147: 168.65 | I147: 170.70 | J147: 174.00 | K147: 167.4 | L147: 162.05 | M147: 17.22924
A148: 138 | B148: EQUITAS | C148: 150 | D148: 149.38 | E148: 148.17 | F148: 146.33 | G148: 145.12 | H148: 151.22 | I148: 152.43 | J148: 154.27 | K148: 150.6 | L148: 147.55 | M148: 8.40395
A149: 139 | B149: EROSMEDIA | C149: 175.95 | D149: 175.67 | E149: 174.33 | F149: 172.72 | G149: 171.38 | H149: 177.28 | I149: 178.62 | J149: 180.23 | K149: 177 | L149: 174.05 | M149: 2.70845
A150: 140 | B150: ESCORTS | C150: 891.95 | D150: 890.90 | E150: 884.50 | F150: 877.05 | G150: 870.65 | H150: 898.35 | I150: 904.75 | J150: 912.20 | K150: 897.3 | L150: 883.45 | M150: 8.07856
A151: 141 | B151: ESSELPACK | C151: 251.65 | D151: 251.42 | E151: 247.48 | F151: 243.32 | G151: 239.38 | H151: 255.58 | I151: 259.52 | J151: 263.68 | K151: 255.35 | L151: 247.25 | M151: 0.52801
A152: 142 | B152: EVEREADY | C152: 383.25 | D152: 383.63 | E152: 380.27 | F152: 377.28 | G152: 373.92 | H152: 386.62 | I152: 389.98 | J152: 392.97 | K152: 387 | L152: 380.65 | M152: 0.35177
A153: 143 | B153: EXIDEIND | C153: 236.15 | D153: 236.20 | E153: 231.90 | F153: 227.65 | G153: 223.35 | H153: 240.45 | I153: 244.75 | J153: 249.00 | K153: 240.5 | L153: 231.95 | M153: 30.61163
A154: 144 | B154: FEDERALBNK | C154: 93.5 | D154: 93.23 | E154: 92.42 | F154: 91.33 | G154: 90.52 | H154: 94.32 | I154: 95.13 | J154: 96.22 | K154: 94.05 | L154: 92.15 | M154: 93.12599
A155: 145 | B155: FINCABLES | C155: 703.15 | D155: 704.72 | E155: 694.43 | F155: 685.72 | G155: 675.43 | H155: 713.43 | I155: 723.72 | J155: 732.43 | K155: 715 | L155: 696 | M155: 0.42728
A156: 146 | B156: FINPIPE | C156: 659 | D156: 659.67 | E156: 654.33 | F156: 649.67 | G156: 644.33 | H156: 664.33 | I156: 669.67 | J156: 674.33 | K156: 665 | L156: 655 | M156: 0.29953
A157: 147 | B157: FSL | C157: 56.5 | D157: 56.13 | E157: 55.52 | F157: 54.53 | G157: 53.92 | H157: 57.12 | I157: 57.73 | J157: 58.72 | K157: 56.75 | L157: 55.15 | M157: 62.7198
A158: 148 | B158: FCONSUMER | C158: 55.55 | D158: 55.62 | E158: 54.58 | F158: 53.62 | G158: 52.58 | H158: 56.58 | I158: 57.62 | J158: 58.58 | K158: 56.65 | L158: 54.65 | M158: 54.66345
A159: 149 | B159: FLFL | C159: 436 | D159: 431.32 | E159: 403.63 | F159: 371.27 | G159: 343.58 | H159: 463.68 | I159: 491.37 | J159: 523.73 | K159: 459 | L159: 398.95 | M159: 5.81076
A160: 150 | B160: GAIL | C160: 332.4 | D160: 332.80 | E160: 329.60 | F160: 326.80 | G160: 323.60 | H160: 335.60 | I160: 338.80 | J160: 341.60 | K160: 336 | L160: 330 | M160: 27.34385
A161: 151 | B161: GEPIL | C161: 885.65 | D161: 895.38 | E161: 870.77 | F161: 855.88 | G161: 831.27 | H161: 910.27 | I161: 934.88 | J161: 949.77 | K161: 920 | L161: 880.5 | M161: 0.50571
A162: 152 | B162: GET&D | C162: 395.75 | D162: 396.63 | E162: 389.32 | F162: 382.88 | G162: 375.57 | H162: 403.07 | I162: 410.38 | J162: 416.82 | K162: 403.95 | L162: 390.2 | M162: 0.37085
A163: 153 | B163: GHCL | C163: 275.25 | D163: 274.03 | E163: 271.32 | F163: 267.38 | G163: 264.67 | H163: 277.97 | I163: 280.68 | J163: 284.62 | K163: 276.75 | L163: 270.1 | M163: 1.48667
A164: 154 | B164: GMRINFRA | C164: 18.85 | D164: 18.87 | E164: 18.63 | F164: 18.42 | G164: 18.18 | H164: 19.08 | I164: 19.32 | J164: 19.53 | K164: 19.1 | L164: 18.65 | M164: 290.43547
A165: 155 | B165: GVKPIL | C165: 15.1 | D165: 15.05 | E165: 14.90 | F165: 14.70 | G165: 14.55 | H165: 15.25 | I165: 15.40 | J165: 15.60 | K165: 15.2 | L165: 14.85 | M165: 35.55976
A166: 156 | B166: GDL | C166: 182.2 | D166: 183.12 | E166: 180.23 | F166: 178.27 | G166: 175.38 | H166: 185.08 | I166: 187.97 | J166: 189.93 | K166: 186 | L166: 181.15 | M166: 0.49169
A167: 157 | B167: GATI | C167: 98.1 | D167: 98.32 | E167: 95.98 | F167: 93.87 | G167: 91.53 | H167: 100.43 | I167: 102.77 | J167: 104.88 | K167: 100.65 | L167: 96.2 | M167: 8.94195
A168: 158 | B168: GILLETTE | C168: 6575.05 | D168: 6570.45 | E168: 6526.90 | F168: 6478.75 | G168: 6435.20 | H168: 6618.60 | I168: 6662.15 | J168: 6710.30 | K168: 6614 | L168: 6522.3 | M168: 0.04326
A169: 159 | B169: GSKCONS | C169: 6106.7 | D169: 6106.23 | E169: 6062.47 | F169: 6018.23 | G169: 5974.47 | H169: 6150.47 | I169: 6194.23 | J169: 6238.47 | K169: 6150 | L169: 6062 | M169: 0.0761
A170: 160 | B170: GLAXO | C170: 2234.5 | D170: 2228.20 | E170: 2182.45 | F170: 2130.40 | G170: 2084.65 | H170: 2280.25 | I170: 2326.00 | J170: 2378.05 | K170: 2273.95 | L170: 2176.15 | M170: 0.15097
A171: 161 | B171: GLENMARK | C171: 556.55 | D171: 558.13 | E171: 548.67 | F171: 540.78 | G171: 531.32 | H171: 566.02 | I171: 575.48 | J171: 583.37 | K171: 567.6 | L171: 550.25 | M171: 7.84364
A172: 162 | B172: GODFRYPHLP | C172: 856.45 | D172: 853.32 | E172: 842.13 | F172: 827.82 | G172: 816.63 | H172: 867.63 | I172: 878.82 | J172: 893.13 | K172: 864.5 | L172: 839 | M172: 1.59227
A173: 163 | B173: GODREJCP | C173: 1085.8 | D173: 1088.42 | E173: 1076.88 | F173: 1067.97 | G173: 1056.43 | H173: 1097.33 | I173: 1108.87 | J173: 1117.78 | K173: 1099.95 | L173: 1079.5 | M173: 9.07356
A174: 164 | B174: GODREJIND | C174: 555.25 | D174: 549.75 | E174: 542.50 | F174: 529.75 | G174: 522.50 | H174: 562.50 | I174: 569.75 | J174: 582.50 | K174: 557 | L174: 537 | M174: 3.93035
A175: 165 | B175: GODREJPROP | C175: 724.8 | D175: 725.53 | E175: 721.07 | F175: 717.33 | G175: 712.87 | H175: 729.27 | I175: 733.73 | J175: 737.47 | K175: 730 | L175: 721.8 | M175: 0.55561
A176: 166 | B176: GRANULES | C176: 106.9 | D176: 107.05 | E176: 106.10 | F176: 105.30 | G176: 104.35 | H176: 107.85 | I176: 108.80 | J176: 109.60 | K176: 108 | L176: 106.25 | M176: 7.95841
A177: 167 | B177: GESHIP | C177: 333.55 | D177: 332.85 | E177: 330.70 | F177: 327.85 | G177: 325.70 | H177: 335.70 | I177: 337.85 | J177: 340.70 | K177: 335 | L177: 330 | M177: 0.30193
A178: 168 | B178: GREAVESCOT | C178: 121.1 | D178: 121.12 | E178: 120.48 | F178: 119.87 | G178: 119.23 | H178: 121.73 | I178: 122.37 | J178: 122.98 | K178: 121.75 | L178: 120.5 | M178: 2.45189
A179: 169 | B179: GREENPLY | C179: 321.2 | D179: 322.07 | E179: 319.13 | F179: 317.07 | G179: 314.13 | H179: 324.13 | I179: 327.07 | J179: 329.13 | K179: 325 | L179: 320 | M179: 0.40369
A180: 170 | B180: GRUH | C180: 597 | D180: 598.52 | E180: 590.08 | F180: 583.17 | G180: 574.73 | H180: 605.43 | I180: 613.87 | J180: 620.78 | K180: 606.95 | L180: 591.6 | M180: 3.24885
A181: 171 | B181: GUJALKALI | C181: 728.2 | D181: 729.32 | E181: 716.58 | F181: 704.97 | G181: 692.23 | H181: 740.93 | I181: 753.67 | J181: 765.28 | K181: 742.05 | L181: 717.7 | M181: 0.81773
A182: 172 | B182: GUJFLUORO | C182: 804.65 | D182: 803.57 | E182: 797.13 | F182: 789.62 | G182: 783.18 | H182: 811.08 | I182: 817.52 | J182: 825.03 | K182: 810 | L182: 796.05 | M182: 0.162
A183: 173 | B183: GUJGASLTD | C183: 853.65 | D183: 856.38 | E183: 840.27 | F183: 826.88 | G183: 810.77 | H183: 869.77 | I183: 885.88 | J183: 899.27 | K183: 872.5 | L183: 843 | M183: 0.56861
A184: 174 | B184: GMDCLTD | C184: 136.4 | D184: 135.32 | E184: 132.98 | F184: 129.57 | G184: 127.23 | H184: 138.73 | I184: 141.07 | J184: 144.48 | K184: 137.65 | L184: 131.9 | M184: 2.59734
A185: 175 | B185: GNFC | C185: 392.2 | D185: 392.73 | E185: 388.47 | F185: 384.73 | G185: 380.47 | H185: 396.47 | I185: 400.73 | J185: 404.47 | K185: 397 | L185: 389 | M185: 9.52804
A186: 176 | B186: GPPL | C186: 140.7 | D186: 140.20 | E186: 137.50 | F186: 134.30 | G186: 131.60 | H186: 143.40 | I186: 146.10 | J186: 149.30 | K186: 142.9 | L186: 137 | M186: 5.52569
A187: 177 | B187: GSFC | C187: 125.2 | D187: 124.63 | E187: 122.92 | F187: 120.63 | G187: 118.92 | H187: 126.92 | I187: 128.63 | J187: 130.92 | K187: 126.35 | L187: 122.35 | M187: 11.72986
A188: 178 | B188: GSPL | C188: 188.5 | D188: 188.43 | E188: 184.87 | F188: 181.23 | G188: 177.67 | H188: 192.07 | I188: 195.63 | J188: 199.27 | K188: 192 | L188: 184.8 | M188: 2.45217
A189: 179 | B189: GULFOILLUB | C189: 908.3 | D189: 914.13 | E189: 895.27 | F189: 882.23 | G189: 863.37 | H189: 927.17 | I189: 946.03 | J189: 959.07 | K189: 933 | L189: 901.1 | M189: 0.20722
A190: 180 | B190: HCL-INSYS | C190: 53.15 | D190: 53.13 | E190: 52.57 | F190: 51.98 | G190: 51.42 | H190: 53.72 | I190: 54.28 | J190: 54.87 | K190: 53.7 | L190: 52.55 | M190: 16.09358
A191: 181 | B191: HCLTECH | C191: 962.05 | D191: 967.60 | E191: 951.00 | F191: 939.95 | G191: 923.35 | H191: 978.65 | I191: 995.25 | J191: 1006.30 | K191: 984.2 | L191: 956.55 | M191: 14.02552
A192: 182 | B192: HDFCBANK | C192: 1908.9 | D192: 1904.37 | E192: 1894.73 | F192: 1880.57 | G192: 1870.93 | H192: 1918.53 | I192: 1928.17 | J192: 1942.33 | K192: 1914 | L192: 1890.2 | M192: 12.14723
A193: 183 | B193: HSIL | C193: 395.85 | D193: 397.73 | E193: 390.72 | F193: 385.58 | G193: 378.57 | H193: 402.87 | I193: 409.88 | J193: 415.02 | K193: 404.75 | L193: 392.6 | M193: 0.64867
A194: 184 | B194: HTMEDIA | C194: 88.3 | D194: 88.17 | E194: 87.33 | F194: 86.37 | G194: 85.53 | H194: 89.13 | I194: 89.97 | J194: 90.93 | K194: 89 | L194: 87.2 | M194: 1.49269
A195: 185 | B195: HATHWAY | C195: 36.7 | D195: 36.80 | E195: 35.70 | F195: 34.70 | G195: 33.60 | H195: 37.80 | I195: 38.90 | J195: 39.90 | K195: 37.9 | L195: 35.8 | M195: 6.34181
A196: 186 | B196: HATSUN | C196: 699.3 | D196: 701.70 | E196: 693.60 | F196: 687.90 | G196: 679.80 | H196: 707.40 | I196: 715.50 | J196: 721.20 | K196: 709.8 | L196: 696 | M196: 0.11317
A197: 187 | B197: HAVELLS | C197: 512.65 | D197: 512.57 | E197: 508.93 | F197: 505.22 | G197: 501.58 | H197: 516.28 | I197: 519.92 | J197: 523.63 | K197: 516.2 | L197: 508.85 | M197: 19.57447
A198: 188 | B198: HEIDELBERG | C198: 148.3 | D198: 148.22 | E198: 146.08 | F198: 143.87 | G198: 141.73 | H198: 150.43 | I198: 152.57 | J198: 154.78 | K198: 150.35 | L198: 146 | M198: 1.88351
A199: 189 | B199: HERITGFOOD | C199: 738.6 | D199: 737.87 | E199: 731.73 | F199: 724.87 | G199: 718.73 | H199: 744.73 | I199: 750.87 | J199: 757.73 | K199: 744 | L199: 731 | M199: 0.16393
A200: 190 | B200: HEROMOTOCO | C200: 3782.15 | D200: 3759.37 | E200: 3722.73 | F200: 3663.32 | G200: 3626.68 | H200: 3818.78 | I200: 3855.42 | J200: 3914.83 | K200: 3796 | L200: 3699.95 | M200: 4.40824
A201: 191 | B201: HEXAWARE | C201: 400.8 | D201: 401.60 | E201: 397.45 | F201: 394.10 | G201: 389.95 | H201: 404.95 | I201: 409.10 | J201: 412.45 | K201: 405.75 | L201: 398.25 | M201: 9.52005
A202: 192 | B202: HFCL | C202: 27.55 | D202: 27.67 | E202: 27.13 | F202: 26.72 | G202: 26.18 | H202: 28.08 | I202: 28.62 | J202: 29.03 | K202: 28.2 | L202: 27.25 | M202: 57.78324
A203: 193 | B203: HIMATSEIDE | C203: 369.8 | D203: 367.15 | E203: 363.65 | F203: 357.50 | G203: 354.00 | H203: 373.30 | I203: 376.80 | J203: 382.95 | K203: 370.65 | L203: 361 | M203: 0.37513
A204: 194 | B204: HINDALCO | C204: 214.15 | D204: 211.75 | E204: 208.55 | F204: 202.95 | G204: 199.75 | H204: 217.35 | I204: 220.55 | J204: 226.15 | K204: 214.95 | L204: 206.15 | M204: 242.01909
A205: 195 | B205: HCC | C205: 24.9 | D205: 24.85 | E205: 24.55 | F205: 24.20 | G205: 23.90 | H205: 25.20 | I205: 25.50 | J205: 25.85 | K205: 25.15 | L205: 24.5 | M205: 114.54729
A206: 196 | B206: HINDCOPPER | C206: 68.2 | D206: 67.90 | E206: 67.20 | F206: 66.20 | G206: 65.50 | H206: 68.90 | I206: 69.60 | J206: 70.60 | K206: 68.6 | L206: 66.9 | M206: 16.85379
... 306 more rows

Sheet Bulk Deals
E6: Back To Main Page
A7: Subject : | B7: BULK DEAL | D7: =Main!B10 -> 2018-04-06
A9: Date | B9: Scrip code | C9: Scrip Name | D9: Client Name | E9: Buy / Sell | F9: Quantity Traded | G9: Trade Price / Wt.Avg.trade price | H9: Exchange
A10: 2018-04-05 | B10: 511064 | C10: APLAYA | D10: RDS CORPORATE SERVICES PRIVATE LIMITED | E10: SELL | F10: 780,000 | G10: 2.18 | H10: BSE
A11: 2018-04-05 | B11: 523019 | C11: BNRSEC | D11: NISHA RATHI | E11: BUY | F11: 31,583 | G11: 42.85 | H11: BSE
A12: 2018-04-05 | B12: 523019 | C12: BNRSEC | D12: PREM KUMAR BAJAJ | E12: SELL | F12: 31,200 | G12: 42.85 | H12: BSE
A13: 2018-04-05 | B13: 533137 | C13: DEN | D13: GOVERNMENT PENSION FUND GLOBAL | E13: BUY | F13: 1,834,784 | G13: 104 | H13: BSE
A14: 2018-04-05 | B14: 532219 | C14: ENERGYDEV | D14: KANODIA STOCK BROKING PVT LTD | E14: SELL | F14: 250,000 | G14: 19.74 | H14: BSE
A15: 2018-04-05 | B15: 532219 | C15: ENERGYDEV | D15: SURESH KANODIA | E15: BUY | F15: 250,000 | G15: 19.74 | H15: BSE
A16: 2018-04-05 | B16: 532726 | C16: GALLANTT | D16: HIPOLINE COMMERCE PVT LTD | E16: BUY | F16: 487,771 | G16: 39.5 | H16: BSE
A17: 2018-04-05 | B17: 532726 | C17: GALLANTT | D17: SANTOSH KUMAR AGARWAL | E17: SELL | F17: 500,000 | G17: 39.5 | H17: BSE
A18: 2018-04-05 | B18: 540266 | C18: GLCL | D18: MAYUR MAHESHKUMAR PANCHAL | E18: SELL | F18: 19,150 | G18: 33 | H18: BSE
A19: 2018-04-05 | B19: 526717 | C19: GOPALA | D19: BHARATKUMAR NIHALCHAND SHAH | E19: SELL | F19: 50,000 | G19: 137 | H19: BSE
A20: 2018-04-05 | B20: 526717 | C20: GOPALA | D20: KPR FINANCE PRIVATE LIMITED | E20: BUY | F20: 50,000 | G20: 137 | H20: BSE
A21: 2018-04-05 | B21: 540756 | C21: KAARYAFSL | D21: VISHAL K SHAH HUF | E21: SELL | F21: 27,000 | G21: 47.3 | H21: BSE
A22: 2018-04-05 | B22: 540756 | C22: KAARYAFSL | D22: JAYSHRIBEN DHIRENDRAKUMAR MANIAR | E22: BUY | F22: 27,000 | G22: 47.3 | H22: BSE
A23: 2018-04-05 | B23: 540937 | C23: MEDICO | D23: ARYAMAN BROKING LIMITED | E23: BUY | F23: 31,200 | G23: 97 | H23: BSE
A24: 2018-04-05 | B24: 540937 | C24: MEDICO | D24: SHAH BABULAL VADILAL HUF | E24: SELL | F24: 30,000 | G24: 97 | H24: BSE
A25: 2018-04-05 | B25: 541206 | C25: OBCL | D25: DOSHI HETAL S | E25: BUY | F25: 296,000 | G25: 33.4 | H25: BSE
A26: 2018-04-05 | B26: 541206 | C26: OBCL | D26: ANIL DAGA | E26: SELL | F26: 180,000 | G26: 33.45 | H26: BSE
A27: 2018-04-05 | B27: 540405 | C27: OCEANIC | D27: KULDIP BHALCHANDRA VYAS HUF | E27: BUY | F27: 30,000 | G27: 120 | H27: BSE
A28: 2018-04-05 | B28: 540405 | C28: OCEANIC | D28: PARAG BHALCHANDRA VYAS HUF | E28: BUY | F28: 42,000 | G28: 120 | H28: BSE
A29: 2018-04-05 | B29: 540405 | C29: OCEANIC | D29: NEHA BIMAL MEHTA | E29: SELL | F29: 68,000 | G29: 120 | H29: BSE
A30: 2018-04-05 | B30: 533093 | C30: RAJOIL | D30: HIMMAT LILADHAR KATARMAL | E30: SELL | F30: 422,790 | G30: 2.62 | H30: BSE
A31: 2018-04-05 | B31: 531952 | C31: RIBATEX | D31: KABIR SHRAN DAGAR (HUF) | E31: SELL | F31: 85,251 | G31: 93 | H31: BSE
A32: 2018-04-05 | B32: 531952 | C32: RIBATEX | D32: SITA RAM (HUF) | E32: BUY | F32: 85,251 | G32: 92.95 | H32: BSE
A33: 2018-04-05 | B33: 541151 | C33: RIDINGS | D33: BIJAL MUKESH SHAH-HUF | E33: SELL | F33: 272,000 | G33: 18.25 | H33: BSE
A34: 2018-04-05 | B34: 541151 | C34: RIDINGS | D34: BIPINKUMAR KHODIDAS NADIYA | E34: BUY | F34: 136,000 | G34: 18.5 | H34: BSE
A35: 2018-04-05 | B35: 541151 | C35: RIDINGS | D35: CORPORATE CAPITALVENTURES PRIVATE LIMITED | E35: BUY | F35: 136,000 | G35: 18 | H35: BSE
A36: 2018-04-05 | B36: 540822 | C36: SANTOSHIND | D36: IVORY CONSULTANTS PVT LTD | E36: BUY | F36: 235,000 | G36: 151.2 | H36: BSE
A37: 2018-04-05 | B37: 540822 | C37: SANTOSHIND | D37: HARIDARSHAN SALES PRIVATE LIMITED | E37: BUY | F37: 42,550 | G37: 151.2 | H37: BSE
A38: 2018-04-05 | B38: 540822 | C38: SANTOSHIND | D38: JMS MINING SERVICES PRIVATE LIMITED | E38: BUY | F38: 100,000 | G38: 151.2 | H38: BSE
A39: 2018-04-05 | B39: 540822 | C39: SANTOSHIND | D39: SANJAY KUMAR JAIN HUF | E39: SELL | F39: 154,000 | G39: 151.2 | H39: BSE
A40: 2018-04-05 | B40: 540822 | C40: SANTOSHIND | D40: DILIP KUMAR MAROTI HUF | E40: SELL | F40: 49,500 | G40: 151.2 | H40: BSE
A41: 2018-04-05 | B41: 540822 | C41: SANTOSHIND | D41: SUMAN DEVI MAROTI | E41: SELL | F41: 29,000 | G41: 151.2 | H41: BSE
A42: 2018-04-05 | B42: 540822 | C42: SANTOSHIND | D42: DILIP KUMAR MAROTI | E42: SELL | F42: 25,750 | G42: 151.2 | H42: BSE
A43: 2018-04-05 | B43: 540097 | C43: VISCO | D43: GOLDEN GOENKA CREDIT PVT. LTD. | E43: BUY | F43: 79,000 | G43: 14.43 | H43: BSE
A44: 2018-04-05 | B44: 540097 | C44: VISCO | D44: ROSY DEAL COMM PVT LTD | E44: SELL | F44: 42,000 | G44: 14.45 | H44: BSE
A45: 2018-04-05 | B45: 540097 | C45: VISCO | D45: AALEKHA SUPPLY PRIVATE LIMITED | E45: SELL | F45: 37,000 | G45: 14.41 | H45: BSE
A46: 2018-04-05 | B46: 541167 | C46: YASHO | D46: RITESH KUMAR GUPTA | E46: SELL | F46: 92,400 | G46: 100.98 | H46: BSE
A47: 2018-04-05 | B47: 541167 | C47: YASHO | D47: JIGNESH AMRUTLAL THOBHANI | E47: BUY | F47: 148,800 | G47: 100.79 | H47: BSE
A48: 2018-04-05 | B48: 541167 | C48: YASHO | D48: SAJANKUMAR RAMESHWARLAL BAJAJ | E48: BUY | F48: 130,800 | G48: 100.75 | H48: BSE
A49: 2018-04-05 | B49: AVADHSUGAR | C49: Avadh Sug & Energy Ltd | D49: RONSON TRADERS LTD | E49: BUY | F49: 54,000 | G49: 433.19 | H49: NSE
A50: 2018-04-05 | B50: CONTI | C50: Continental Seed Chem Ltd | D50: HARI OM SINGH | E50: BUY | F50: 180,000 | G50: 26.78 | H50: NSE
A51: 2018-04-05 | B51: CONTI | C51: Continental Seed Chem Ltd | D51: KAUSHALYA GARG | E51: BUY | F51: 120,000 | G51: 24.98 | H51: NSE
A52: 2018-04-05 | B52: CONTI | C52: Continental Seed Chem Ltd | D52: MANISH KUMAR | E52: BUY | F52: 152,000 | G52: 26.68 | H52: NSE
A53: 2018-04-05 | B53: CONTI | C53: Continental Seed Chem Ltd | D53: NAVAL KISHORE GUPTA | E53: BUY | F53: 296,000 | G53: 25.44 | H53: NSE
A54: 2018-04-05 | B54: CONTI | C54: Continental Seed Chem Ltd | D54: SATISH KUMAR GUPTA HUF | E54: BUY | F54: 100,000 | G54: 24.6 | H54: NSE
A55: 2018-04-05 | B55: EMKAYTOOLS | C55: Emkay Tap & Cut. Tool Ltd | D55: ANMESH TRADE AND INVESTMENT | E55: BUY | F55: 37,600 | G55: 456.75 | H55: NSE
A56: 2018-04-05 | B56: GIRIRAJ | C56: Giriraj Civil Devp Ltd | D56: ARYAMAN CAPITAL MARKETS LIMITED | E56: BUY | F56: 105,600 | G56: 100.51 | H56: NSE
A57: 2018-04-05 | B57: GIRIRAJ | C57: Giriraj Civil Devp Ltd | D57: MUKESH BABULAL SHAH | E57: BUY | F57: 43,200 | G57: 100.5 | H57: NSE
A58: 2018-04-05 | B58: JETKNIT | C58: Jet Knitwears Ltd. | D58: GITA KIRTI AMBANI | E58: BUY | F58: 96,000 | G58: 96.47 | H58: NSE
A59: 2018-04-05 | B59: KWALITY | C59: Kwality Limited | D59: RATHOD MANOJ CHHAGANLAL HUF | E59: BUY | F59: 1,246,487 | G59: 57.09 | H59: NSE
A60: 2018-04-05 | B60: MCDHOLDING | C60: McDowell Holdings Limited | D60: MAYUR SAH | E60: BUY | F60: 70,000 | G60: 40.82 | H60: NSE
A61: 2018-04-05 | B61: RCOM | C61: Reliance Comm. Ltd. | D61: SHAASTRA SECURITIES TRADING PRIVATE LIMITED | E61: BUY | F61: 25,606,388 | G61: 23.1 | H61: NSE
A62: 2018-04-05 | B62: SUMEETINDS | C62: Sumeet Ind Limited | D62: ANKITA VISHAL SHAH | E62: BUY | F62: 436,577 | G62: 16.31 | H62: NSE
A63: 2018-04-05 | B63: TCIFINANCE | C63: TCI Finance Limited | D63: GIRDHAR TRANSPORT COMPANY | E63: BUY | F63: 374,061 | G63: 30.6 | H63: NSE
A64: 2018-04-05 | B64: URAVI | C64: Uravi T And Wedg Lamp Ltd | D64: ARYAMAN CAPITAL MARKETS LIMITED | E64: BUY | F64: 75,600 | G64: 100.76 | H64: NSE
A65: 2018-04-05 | B65: EMKAYTOOLS | C65: Emkay Tap & Cut. Tool Ltd | D65: ITED PRIYA VINIYOG PRIVATE LIM | E65: SELL | F65: 13,200 | G65: 456.75 | H65: NSE
A66: 2018-04-05 | B66: EMKAYTOOLS | C66: Emkay Tap & Cut. Tool Ltd | D66: MOHOTA VEENADEVI VINODKUMAR | E66: SELL | F66: 10,800 | G66: 456.75 | H66: NSE
A67: 2018-04-05 | B67: GIRIRAJ | C67: Giriraj Civil Devp Ltd | D67: HARSHA RAJESHBHAI JHAVERI | E67: SELL | F67: 24,000 | G67: 100.54 | H67: NSE
A68: 2018-04-05 | B68: GIRIRAJ | C68: Giriraj Civil Devp Ltd | D68: VISHAL RAJNIKANT BHANSALI | E68: SELL | F68: 75,600 | G68: 100.48 | H68: NSE
A69: 2018-04-05 | B69: JETKNIT | C69: Jet Knitwears Ltd. | D69: MANEESHA NIRANJAN NAIK | E69: SELL | F69: 96,000 | G69: 96.16 | H69: NSE
A70: 2018-04-05 | B70: KWALITY | C70: Kwality Limited | D70: RATHOD MANOJ CHHAGANLAL HUF | E70: SELL | F70: 1,267,137 | G70: 56.57 | H70: NSE
A71: 2018-04-05 | B71: RCOM | C71: Reliance Comm. Ltd. | D71: SHAASTRA SECURITIES TRADING PRIVATE LIMITED | E71: SELL | F71: 25,606,388 | G71: 23.12 | H71: NSE
A72: 2018-04-05 | B72: RCOM | C72: Reliance Comm. Ltd. | D72: SISTEMA SHYAM TELESERVICES LIMITED | E72: SELL | F72: 33,790,661 | G72: 23.24 | H72: NSE
A73: 2018-04-05 | B73: SUMEETINDS | C73: Sumeet Ind Limited | D73: ANKITA VISHAL SHAH | E73: SELL | F73: 366,577 | G73: 16.48 | H73: NSE
A74: 2018-04-05 | B74: TCIFINANCE | C74: TCI Finance Limited | D74: BILGAIYAN SUMIT | E74: SELL | F74: 70,020 | G74: 29.3 | H74: NSE
A75: 2018-04-05 | B75: TCIFINANCE | C75: TCI Finance Limited | D75: GIRDHAR TRANSPORT COMPANY | E75: SELL | F75: 374,061 | G75: 31.23 | H75: NSE
A76: 2018-04-05 | B76: URAVI | C76: Uravi T And Wedg Lamp Ltd | D76: ZAVERI AND COMPANY PVT LTD | E76: SELL | F76: 118,800 | G76: 101 | H76: NSE

Sheet Call Tracker (Equity & F&O)
N5: Back To Main Page
A6: Retail Research Technical Calls & Fundamental Performance Report for the month of April -2018
N7: =Main!B10 -> 2018-04-06
B8: Positional Call
A9: Sr.no | B9: Date | D9: Company | E9: Rec | F9: Rec Price | G9: Stop Loss*** | H9: Call Closed At | I9: Target | J9: Remark | L9: Profit / Loss per Share | M9: Gain / Loss % | N9: Status | O9: Closed Date | P9: NSE Closed Price
A10: 1 | B10: 2018-02-09 | D10: HINDUNILVR | E10: Buy | F10: 1332 | G10: 1275 | H10: 1375 | I10: 1450 | J10: Profit of Rs.43/- | L10: =H10-F10-K10 -> 43 | M10: =L10/F10 -> 3.23% | N10: Successful | O10: 2018-04-05 | S10: A
A11: 2 | B11: 2018-02-12 | D11: ITC | E11: Buy | F11: 271-272 | G11: 250 | I11: 310 | J11: Open | P11: =VLOOKUP(D11,Sheet2!$A$1:M2109,6,0) -> 259.65 | S11: P
A12: 3 | B12: 2018-03-08 | D12: CADILAHC | E12: Buy | F12: 385 | G12: 367 | H12: 397.5 | I12: 420 | J12: Profit of Rs.12.5/- | L12: =H12-F12-K12 -> 12.5 | M12: =L12/F12 -> 3.25% | N12: Successful | O12: 2018-04-04 | P12: =VLOOKUP(D12,Sheet2!$A$1:M2132,6,0) -> 394.35 | S12: R
A13: 4 | B13: 2018-03-13 | D13: LUPIN | E13: Buy | F13: 772 | G13: 732 | H13: 796 | I13: 850 | J13: Part Profit of Rs.24/- | L13: 24 | M13: =L13/F13 -> 3.11% | N13: Successful | O13: 2018-04-03 | P13: =VLOOKUP(D13,Sheet2!$A$1:M2133,6,0) -> 786.7 | S13: R
A14: 5 | B14: 2018-03-16 | D14: TATACHEM | E14: Buy | F14: 686.5 | G14: 658 | H14: 714.5 | I14: 730-750 | J14: Profit of Rs.28/- | L14: 28 | M14: =L14/F14 -> 4.08% | N14: Successful | O14: 2018-04-03 | P14: =VLOOKUP(D14,Sheet2!$A$1:M2134,6,0) -> 715.6 | S14: H
A15: 6 | B15: 2018-03-19 | D15: TCS | E15: Buy | F15: 2842.5 | G15: 2720 | H15: 2937.5 | I15: 3050 | J15: Profit of Rs.95/- | L15: 95 | M15: 3.34% | N15: Successful | O15: 2018-04-05 | S15: A
A16: 7 | B16: 2018-03-27 | D16: KPIT | E16: Buy | F16: 219.5 | G16: 210 | H16: 226 | I16: 240 | J16: Part Profit of Rs.6.5/- | L16: 6.5 | M16: =L16/F16 -> 2.96% | N16: Successful | O16: 2018-03-27 | S16: R
A17: 8 | B17: 2018-03-27 | D17: ICICIBANK | E17: Buy | F17: 283 | G17: 268 | H17: 262.5 | I17: 310 | J17: Loss of Rs.20.5/- | L17: -20.5 | M17: -7.24% | N17: Unsuccessful | O17: 2018-04-02 | S17: R
A18: 9 | B18: 2018-03-28 | D18: LT | E18: Buy | F18: 1292.5 | G18: 1245 | H18: 1334.5 | I18: 1375-1395 | J18: Profit of Rs.42/- | L18: 42 | M18: =L18/F18 -> 3.25% | N18: Successful | O18: 2018-04-03 | S18: H
A19: 10 | B19: 2018-04-02 | D19: AMBUJACEM | E19: Buy | F19: 232 | G19: 219 | H19: 239.75 | I19: 250-255 | J19: Profit of Rs.7.75/- | L19: 7.75 | M19: =L19/F19 -> 3.34% | N19: Successful | O19: 2018-04-03 | S19: H
A20: 11 | B20: 2018-04-02 | D20: COLPAL | E20: Buy | F20: 1050 | G20: 998 | H20: 1087 | I20: 1140-1160 | J20: Profit of Rs.37/- | L20: 37 | M20: 3.52% | N20: Successful | O20: 2018-04-04 | S20: H
A21: 12 | B21: 2018-04-02 | D21: ITC | E21: Buy | F21: 257-258 | G21: 248 | I21: 280-285 | J21: Open | P21: =VLOOKUP(D21,Sheet2!$A$1:M2142,6,0) -> 259.65 | S21: A
A22: 13 | B22: 2018-04-03 | D22: UJJIVAN | E22: Buy | F22: 351.5 | G22: 334 | H22: 364.5 | I22: 380-385 | J22: Profit of Rs.13/- | L22: =H22-F22-K22 -> 13 | M22: =L22/F22 -> 3.70% | N22: Successful | O22: 2018-04-04 | P22: =VLOOKUP(D22,Sheet2!$A$1:M2142,6,0) -> 379.55 | S22: R
A23: 14 | B23: 2018-04-03 | D23: IGL | E23: Buy | F23: 278 | G23: 267 | H23: 287.5 | I23: 295-300 | J23: Part Profit of Rs.9.5/- | L23: =H23-F23-K23 -> 9.5 | M23: 3.42% | N23: Successful | O23: 2018-04-05 | S23: H
A24: 15 | B24: 2018-04-03 | D24: JUBLFOOD | E24: Sell | F24: 2335-2345 | G24: 2450 | I24: 2150 | J24: Open | P24: =VLOOKUP(D24,Sheet2!$A$1:M2145,6,0) -> 2335.35 | S24: R
A25: 16 | B25: 2018-04-05 | D25: AMBUJACEM | E25: Buy | F25: 236-238 | G25: 227 | I25: 255-260 | J25: Open | P25: =VLOOKUP(D25,Sheet2!$A$1:M2146,6,0) -> 238 | S25: H
A26: 17 | B26: 2018-04-05 | D26: PEL | E26: Buy | F26: 2495-2505 | G26: 2420 | I26: 2650 | J26: Open | P26: =VLOOKUP(D26,Sheet2!$A$1:M2147,6,0) -> 2540.4 | S26: R
A27: 18 | B27: 2018-04-05 | D27: RECLTD | E27: Buy | F27: 128-130 | G27: 122 | I27: 140 | J27: Open | P27: =VLOOKUP(D27,Sheet2!$A$1:M2148,6,0) -> 130.25 | S27: R
A29: CLBS = Closing Basis *** | F29: Reinitiated $
A30: Dividend adjusted <> | F30: Revised stoploss #
A32: Master Trade High Risk
A33: Sr.no | B33: Date | D33: Company | E33: Rec | F33: Rec Price | G33: Stop Loss | H33: Call Closed At | I33: Target | J33: Remark | L33: Profit / Loss per share | M33: Gain / Loss per Lot | N33: Lot | O33: Status | P33: Closed Date
A34: 1 | B34: 2018-03-27 | D34: HDFCBANK APR FUT | E34: Buy | F34: 1887.5 | G34: 1858 | H34: 1910 | I34: 1930-1940 | J34: Profit of Rs.22.5/- | L34: =H34-F34 -> 22.5 | M34: =L34*N34 -> 11250 | N34: 500 | O34: Successful | P34: 2018-04-02 | S34: H
A35: 2 | B35: 2018-03-28 | D35: NIFTY APR FUT | E35: Buy | F35: 10156 | G35: 10050 | H35: 10235 | I35: 10350 | J35: Profit of Rs.50/- | L35: =H35-F35 -> 79 | M35: =L35*N35 -> 5925 | N35: 75 | O35: Successful | P35: 2018-04-02 | S35: A
D36: NIFTY APR 10200 CE | E36: Sell | F36: 140 | H36: 169 | L36: =F36-H36 -> -29 | M36: =L36*N35 -> -2175
A39: Master Trade Medium Risk
A40: Sr.no | B40: Date | D40: Company | E40: Rec | F40: Rec Price | G40: Stop Loss | H40: Call Closed At | I40: Target | J40: Remark | L40: Profit/Loss per lot | M40: Gain / Loss per Lot | N40: Lot | O40: Status | P40: Closed Date
A41: 1 | B41: 2018-04-05 | D41: BankNifty 05-April 24600 CE | E41: Buy | F41: 17.5 | H41: 52.5 | I41: 100 | J41: Profit of Rs.13/- | L41: =H41-F41 -> 35 | M41: =L41*N41 -> 1400 | N41: 40 | O41: Successful | P41: 2018-04-05 | S41: A
D42: BankNifty 05-April 24300 PE | E42: Sell | F42: 22 | H42: 0 | L42: =H42-F42 -> -22 | M42: =L42*N41 -> -880
B45: Smart Delivery Trade
A46: Sr.no | B46: Date | D46: Company | E46: Rec | F46: Rec Price | G46: Stop Loss*** | H46: Call Closed At | I46: Target | J46: Remark | L46: Profit / Loss per Share | M46: Gain / Loss % | N46: Status | O46: Closed Date | P46: NSE Closed Price
A47: 1 | B47: 2018-02-15 | D47: ACC | E47: Buy$ | F47: 1585 | G47: 1520 | I47: 1750 | J47: Open | P47: =VLOOKUP(D47,Sheet2!$A$1:M2140,6,0) -> 1552.35 | S47: R
A48: 2 | B48: 2018-03-12 | D48: MOTHERSUMI | E48: Buy | F48: 317.5 | G48: 307 | H48: 327 | I48: 335 | J48: Profit of Rs.9.5/- | L48: =H48-F48-K48 -> 9.5 | M48: =L48/F48 -> 2.99% | N48: Successful | O48: 2018-04-02 | S48: R
A49: 3 | B49: 2018-03-13 | D49: PETRONET | E49: Buy | F49: 235-236 | G49: 228 | I49: 245-250 | J49: Open | P49: =VLOOKUP(D49,Sheet2!$A$1:M2153,6,0) -> 232.45 | S49: H
A50: 4 | B50: 2018-03-21 | D50: GREAVESCOT | E50: Buy | F50: 117 | G50: 113 | H50: 120.5 | I50: 125 | J50: Profit of Rs.3.5/- | L50: =H50-F50-K50 -> 3.5 | M50: =L50/F50 -> 2.99% | N50: Successful | O50: 2018-04-02 | S50: R
A51: 5 | B51: 2018-03-26 | D51: VIPIND | E51: Buy | F51: 318 | G51: 310 | H51: 331.5 | I51: 335 | J51: Profit of Rs.13.5/- | L51: 13.5 | M51: 4.25% | N51: Successful | O51: 2018-04-05 | S51: R
A52: 6 | B52: 2018-04-02 | D52: DLF | E52: Buy | F52: 202 | G52: 194 | H52: 208 | I52: 212-215 | J52: Profit of Rs.6/- | L52: 6 | M52: =L52/F52 -> 2.97% | N52: Successful | O52: 2018-04-04 | S52: H
A53: 7 | B53: 2018-04-02 | D53: RADICO | E53: Buy | F53: 339.5 | G53: 330 | H53: 350 | I53: 360 | J53: Profit of Rs.10.5/- | L53: 10.5 | M53: =L53/F53 -> 3.09% | N53: Successful | O53: 2018-04-02 | S53: R
A54: 8 | B54: 2018-04-03 | D54: DHFL | E54: Buy | F54: 526.5 | G54: 510 | H54: 541.5 | I54: 550 | J54: Profit of Rs.15/- | L54: 15 | M54: =L54/F54 -> 2.85% | N54: Successful | O54: 2018-04-04 | S54: R
A55: 9 | B55: 2018-04-03 | D55: JINDALSTEL | E55: Buy | F55: 226.5 | G55: 219 | H55: 233.5 | I55: 237 | J55: Profit of Rs.7/- | L55: 7 | M55: 3.09% | N55: Successful | O55: 2018-04-04 | S55: R
A56: 10 | B56: 2018-04-04 | D56: ULTRACEMCO | E56: Buy | F56: 3960-3970 | G56: 3850 | I56: 4200 | J56: Open | P56: =VLOOKUP(D56,Sheet2!$A$1:M2160,6,0) -> 3966.6 | S56: R
A57: 11 | B57: 2018-04-04 | D57: ADANIPORTS | E57: Buy | F57: 369-372 | G57: 358 | I57: 395 | J57: Open | P57: =VLOOKUP(D57,Sheet2!$A$1:M2161,6,0) -> 375.95 | S57: R
A58: 12 | B58: 2018-04-05 | D58: DLF | E58: Buy | F58: 201-203 | G58: 194 | I58: 212-215 | J58: Open | P58: =VLOOKUP(D58,Sheet2!$A$1:M2162,6,0) -> 206.25 | S58: H
A59: 13 | B59: 2018-04-05 | D59: HINDALCO | E59: Buy | F59: 208-210 | G59: 199 | I59: 225-230 | J59: Open | P59: =VLOOKUP(D59,Sheet2!$A$1:M2163,6,0) -> 214.15 | S59: H
A62: CLBS = Closing Basis *** | F62: Reinitiated $
A63: Dividend adjusted <> | F63: Revised stoploss #
A66: Techno -Funda (positional)
A67: Sr.no | B67: Date | D67: Company | E67: Rec | F67: Rec Price | G67: Stop Loss*** | H67: Call Closed At | I67: Target | J67: Remark | L67: Profit / Loss per Share | M67: Gain / Loss % | N67: Status | O67: Closed Date | P67: NSE Closed Price
A68: 1 | B68: 2018-03-05 | D68: NILKAMAL | E68: Buy | F68: 1640-1660 | G68: 1520 | I68: 1850-1900 | J68: Open | P68: =VLOOKUP(D68,Sheet2!$A$1:M2155,6,0) -> 1620.65 | S68: H
A69: CLBS = Closing Basis *** | F69: Reinitiated $
A70: Dividend adjusted <> | F70: Revised stoploss #
B74: Momentum Call
A75: Sr.no | B75: Date | D75: Company | E75: Rec | F75: Rec Price | G75: Stop Loss | H75: Call Closed At | I75: Target | J75: Remark | L75: Profit / Loss per Share/Lot | M75: Gain / Loss % | N75: Gain / Loss per Lot | O75: Lot | P75: Status | Q75: Closed Date | R75: NSE Closed Price
A76: 1 | B76: 2018-04-03 | D76: GLENMARK APR FUT | E76: Buy | F76: 552.5 | G76: 528 | H76: 559.5 | I76: 570 | J76: Profit of Rs.7/- | L76: =H76-F76 -> 7 | N76: =L76*O76 -> 6300 | O76: 900 | P76: Successful | Q76: 2018-04-04 | S76: H
A77: 2 | B77: 2018-04-03 | D77: SUVEN | E77: Buy | F77: 173-175 | G77: 168 | I77: 188-190 | J77: Open | S77: R
A78: 3 | B78: 2018-04-03 | D78: VOLTAS | E78: Buy | F78: 533.5 | G78: 517 | H78: 549.5 | I78: 560-565 | J78: Profit of Rs.16/- | L78: =H78-F78-K78 -> 16 | M78: =L78/F78 -> 3.00% | P78: Successful | Q78: 2018-04-03 | S78: H
A79: 4 | B79: 2018-04-03 | D79: ARVIND | E79: Buy | F79: 399 | G79: 389 | H79: 407.5 | I79: 418-422 | J79: Profit of Rs.8.5/- | L79: =H79-F79-K79 -> 8.5 | M79: =L79/F79 -> 2.13% | P79: Successful | Q79: 2018-04-04 | S79: H
A80: 5 | B80: 2018-04-04 | D80: BANKNIFTY 26 APR | E80: Buy | F80: 24255 | G80: 24130 | H80: 24130 | I80: 24500 | J80: Loss of Rs.125/- | M80: =H80-F80 -> -125 | N80: =M80*O80 -> -5000 | O80: 40 | P80: Unsuccessful | Q80: 2018-04-04 | S80: R
A81: 6 | B81: 2018-04-04 | D81: ARVIND | E81: Buy | F81: 399 | G81: 389 | H81: 407.5 | I81: 418-422 | J81: Profit of Rs.8.5/- | L81: =H81-F81-K81 -> 8.5 | M81: =L81/F81 -> 2.13% | P81: Successful | Q81: 2018-04-05 | S81: H
A82: 7 | B82: 2018-04-05 | D82: VOLTAS | E82: Buy | F82: 630-633 | G82: 617 | I82: 660-665 | J82: Open | S82: H
A83: 8 | B83: 2018-04-05 | D83: BFUTILITIE | E83: Buy | F83: 400-402 | G83: 388 | I83: 425 | J83: Open | S83: R
A86: CLBS = Closing Basis *** | F86: Reinitiated $
A87: Dividend adjusted <> | F87: Revised stoploss #
B91: Quick Pick Intraday
A92: Sr.no | B92: Date | D92: Company | E92: Rec | F92: Rec Price | G92: Stop Loss*** | H92: Call Closed At | I92: Target | J92: Remark | L92: Profit / Loss per Share | M92: Gain / Loss % | N92: Status | O92: Closed Date
B99: Investment Idea
A100: Sr.no | B100: Date | D100: Company | E100: Rec | F100: Rec Price | G100: Point of Review | H100: Close Rate | I100: Target | J100: Remark | L100: Profit / Loss per Share | M100: Gain / Loss % | N100: Status | O100: Closed Date
A101: 1 | B101: 2013-11-01 | D101: L&T Finance Holding | E101: Accu | F101: 82.00 | G101: - | H101: 100 | I101: 100.00 | J101: Target Achieved | L101: =H101-F101-K101 -> 18.00 | M101: =L101/F101 -> 21.95% | N101: Successful | O101: 2016-10-14
A102: 2 | B102: 2014-06-04 | D102: Finolex Inds | E102: Buy | F102: 257.00 | G102: - | H102: 300 | I102: 300.00 | J102: Target Achieved | L102: 43.00 | M102: 16.73% | N102: Successful | O102: 2014-07-02
A103: =1+A102 -> 3 | B103: 2014-07-08 | D103: JK Cement | E103: Buy | F103: 393.00 | G103: - | H103: 468 | I103: 468.00 | J103: Target Achieved | L103: 75.00 | M103: 19.08% | N103: Successful | O103: 2014-08-12
A104: 4 | B104: 2014-08-06 | D104: Finolex Cables | E104: Buy | F104: 205.00 | G104: - | H104: 275 | I104: 250.00 | J104: Target Achieved | L104: 70.00 | M104: 34.15% | N104: Successful | O104: 2014-11-19
A105: 5 | B105: 2014-09-04 | D105: Exide Inds | E105: Buy | F105: 162.00 | G105: - | H105: 190 | I105: 190.00 | J105: Target Achieved | L105: 28.00 | M105: 17.28% | N105: Successful | O105: 2015-01-02
A106: 6 | B106: 2014-09-04 | D106: Deepak Nitrite | E106: Buy | F106: 75.00 | G106: - | H106: 91.5 | I106: 95-100 | J106: Profit of Rs.16.50/- | L106: 16.50 | M106: 22.00% | N106: Successful | O106: 2014-11-11
A107: 7 | B107: 2014-10-01 | D107: Mercks | E107: Buy | F107: 850.00 | G107: - | H107: 982.5 | I107: 1050.00 | J107: Profit of Rs.132.50/- | L107: 132.50 | M107: 15.59% | N107: Successful | O107: 2015-02-04
A108: 8 | B108: 2014-10-01 | D108: Grindwell Norton | E108: Buy | F108: 475.00 | G108: - | H108: 515 | I108: 600.00 | J108: Profit of Rs.40/- | L108: 40.00 | M108: 8.42% | N108: Successful | O108: 2014-10-27
A109: 9 | B109: 2014-10-01 | D109: Snowman Logistics | E109: Buy | F109: 86.00 | G109: - | H109: 99 | I109: 140.00 | J109: Profit of Rs.13.00/- | L109: 13.00 | M109: 15.12% | N109: Successful | O109: 2014-10-27
A110: 10 | B110: 2014-10-14 | D110: Birla Corp | E110: Buy | F110: 496.60 | G110: - | H110: 621 | I110: 580.00 | J110: Target Achieved | L110: 124.40 | M110: 25.05% | N110: Successful | O110: 2016-08-23
A111: 11 | B111: 2014-10-14 | D111: Ultratech Cem | E111: Buy | F111: 2481.90 | G111: - | H111: 2840 | I111: 2870.00 | J111: Profit of Rs.358.10/- | L111: 358.10 | M111: 14.43% | N111: Successful | O111: 2015-01-13
A112: =1+A109 -> 10 | B112: 2014-10-16 | D112: Sintex Inds | E112: Buy | F112: 84.50 | G112: - | H112: 93 | I112: 110.00 | J112: Profit of Rs.8.50/- | L112: 8.50 | M112: 10.06% | N112: Successful | O112: 2014-10-27
A113: =1+A112 -> 11 | B113: 2014-10-16 | D113: HSIL | E113: Buy | F113: 401.00 | G113: - | H113: 428 | I113: 450.00 | J113: Profit of Rs.27.00/- | L113: 27.00 | M113: 6.73% | N113: Successful | O113: 2015-01-16
A114: 12 | B114: 2014-10-16 | D114: Eveready Inds | E114: Buy | F114: 101.00 | G114: - | H114: 112 | I114: 120.00 | J114: Profit of Rs.11.00/- | L114: 11.00 | M114: 10.89% | N114: Successful | O114: 2014-10-27
A115: 13 | B115: 2014-11-11 | D115: Pennar Inds | E115: Buy | F115: 59.00 | G115: - | H115: 76 | I115: 76.00 | J115: Target Achieved | L115: 17.00 | M115: 28.81% | N115: Successful | O115: 2017-10-24
A116: 14 | B116: 2014-11-11 | D116: Snowman Logistics | E116: Buy | F116: 99.00 | G116: - | H116: 120 | I116: 120.00 | J116: Profit of Rs.21/- | L116: 21.00 | M116: 21.21% | N116: Successful | O116: 2014-11-17
A117: 15 | B117: 2014-11-13 | D117: Dharamsi Morarji Chem | E117: Buy | F117: 22.00 | G117: - | H117: 33.55 | I117: 32.00 | J117: Profit of Rs 11.55/- | L117: 11.55 | M117: 52.50% | N117: Successful | O117: 2015-07-03
A118: 16 | B118: 2014-12-03 | D118: Tatachem | E118: Buy | F118: 440.00 | G118: - | H118: 520 | I118: 520.00 | J118: Profit of Rs 80.00/- | L118: 80.00 | M118: 18.18% | N118: Successful | O118: 2015-07-23
A119: 17 | B119: 2014-12-03 | D119: Advanta | E119: Buy | F119: 360.00 | G119: - | H119: 427 | I119: 425.00 | J119: Profit of Rs.67.00/- | L119: 67.00 | M119: 18.61% | N119: Successful | O119: 2015-02-23
A120: 18 | B120: 2015-01-08 | D120: GDL | E120: Buy | F120: 360.00 | G120: - | H120: 455 | I120: 420.00 | J120: Profit of Rs.95.00/- | L120: 95.00 | M120: 26.39% | N120: Successful | O120: 2015-01-20
A121: 19 | B121: 2015-01-08 | D121: NRB Bearing | E121: Buy | F121: 130.00 | H121: 175.5 | I121: 165.00 | J121: Profit of Rs 45.50/- | L121: 45.50 | M121: 35.00% | N121: Successful | O121: 2017-12-19
A122: 20 | B122: 2015-02-05 | D122: GSFC | E122: Accu | F122: 98.00 | H122: 120 | I122: 120.00 | J122: Target Achieved | L122: 22.00 | M122: 22.45% | N122: Successful | O122: 2017-01-18
A123: 21 | B123: 2015-02-05 | D123: Sundrmfast | E123: Accu | F123: 196.00 | H123: 262 | I123: 255.00 | J123: Target Achieved | L123: 66.00 | M123: 33.67% | N123: Successful | O123: 2016-08-17
A124: 22 | B124: 2015-03-04 | D124: GPPL | E124: Accu | F124: 230-240 | I124: 280-285 | J124: Open
A125: 23 | B125: 2015-03-04 | D125: ORIENTCEM | E125: Accu | F125: 185.00 | H125: 224 | I125: 220-225 | J125: Target Achieved | L125: =H125-F125-K125 -> 39.00 | M125: =L125/F125 -> 21.08% | N125: Successful | O125: 2016-10-04
A126: 24 | B126: 2015-03-27 | D126: PFS | E126: Accu | F126: 49-50 | I126: 67.00 | J126: Open
A127: 25 | B127: 2015-03-30 | D127: Walchandnagar Ind Ltd | E127: Accu | F127: 183.50 | H127: 219 | I127: 218.00 | J127: Profit of Rs.35.50/- | L127: =H127-F127-K127 -> 35.50 | M127: =L127/F127 -> 19.35% | N127: Successful | O127: 2015-04-09
A128: 26 | B128: 2015-04-20 | D128: Kalpataru Power Transmission Ltd | E128: Accu | F128: =(227+237)/2 -> 232.00 | H128: 298 | I128: 298.00 | J128: Target Achieved | L128: 66.00 | M128: 28.45% | N128: Successful | O128: 2017-03-29
A129: 27 | B129: 2015-05-04 | D129: Mastek Ltd | E129: Buy | F129: 385.00 | H129: =212.5+331 -> 543.5 | I129: 510.00 | J129: Profit of Rs 158.50/- | L129: 158.50 | M129: 41.17% | N129: Successful | O129: 2015-08-19
A130: 28 | B130: 2015-05-04 | D130: Suprajit Eng | E130: Buy | F130: 115.50 | H130: 146 | I130: 142.00 | J130: Profit of Rs 30.50/- | L130: 30.50 | M130: 26.41% | N130: Successful | O130: 2015-07-17
A131: 29 | B131: 2015-05-27 | D131: TCI | E131: Buy | F131: 237.50 | H131: 279.5 | I131: 278.00 | J131: Target Achieved | L131: 42.00 | M131: 17.68% | N131: Successful | O131: 2015-08-06
A132: 30 | B132: 2015-06-19 | D132: HSIL | E132: Accu | F132: 340.00 | H132: 448 | I132: 448.00 | J132: Target Achieved | L132: 108.00 | M132: 31.76% | N132: Successful | O132: 2017-10-10
A133: 31 | B133: 2015-07-06 | D133: Capital First | E133: Accu | F133: 390.00 | H133: 460 | I133: 460.00 | J133: Target Achieved | L133: 70.00 | M133: 17.95% | N133: Successful | O133: 2016-04-18
A134: 32 | B134: 2015-07-10 | D134: Dolphin OffShore | E134: Accu | F134: 118-127 | I134: 172.00 | J134: Open
A135: 33 | B135: 2015-08-03 | D135: Allcargo logistics | E135: Accu | F135: 297.50 | H135: 350 | I135: 360.00 | J135: Profit of Rs 52.50/- | L135: =H135-F135-K135 -> 52.50 | M135: =L135/F135 -> 17.65% | N135: Successful | O135: 2015-08-16
A136: 34 | B136: 2015-08-03 | D136: Camline Fine | E136: Accu | F136: 115.50 | H136: 149 | I136: 140.00 | J136: Profit of Rs 33.50/- | L136: 33.50 | M136: 29.00% | N136: Successful | O136: 2017-01-05
A137: 35 | B137: 2015-09-04 | D137: TCI | E137: Accu | F137: 226.00 | H137: 292 | I137: 292.00 | J137: Target Achieved | L137: 66.00 | M137: 29.20% | N137: Successful | O137: 2015-10-09
A138: 36 | B138: 2015-09-07 | D138: Kalpataru Power Transmission Ltd | E138: Accu | F138: 232.50 | H138: 312.5 | I138: 310.00 | J138: Target Achieved | L138: 80.00 | M138: 34.41% | N138: Successful | O138: 2017-03-29
A139: 37 | B139: 2015-09-21 | D139: LLOYD ELECTRIC & ENG LTD | E139: Accu | F139: 196.50 | H139: 238 | I139: 238.00 | J139: Target Achieved | L139: 41.50 | M139: 21.12% | N139: Successful | O139: 2015-10-14
A140: 38 | B140: 2015-09-24 | D140: L&T Finance Holding | E140: Accu | F140: 65.00 | H140: 82 | I140: 82.00 | J140: Target Achieved | L140: 17.00 | M140: 26.15% | N140: Successful | O140: 2016-07-27
A141: 39 | B141: 2015-10-14 | D141: KEC International ltd | E141: Accu | F141: 144.00 | H141: 182.5 | I141: 181.00 | J141: Target Achieved | L141: 38.50 | M141: 26.74% | N141: Successful | O141: 2017-03-23
A142: 40 | B142: 2015-10-14 | D142: Gruh Finance | E142: Accu | F142: 264.00 | H142: 311 | I142: 311.00 | J142: Target Achieved | L142: 47.00 | M142: 17.80% | N142: Successful | O142: 2016-08-22
A143: 41 | B143: 2015-11-10 | D143: Pidilitind | E143: Buy | F143: 549.50 | H143: 630 | I143: 630.00 | J143: Target Achieved | L143: 80.50 | M143: 14.65% | N143: Successful | O143: 2016-02-19
A144: 42 | B144: 2015-12-04 | D144: Zensar Technology | E144: Accu | F144: 1020-1035 | I144: 1250.00 | J144: Open
A145: 43 | B145: 2015-12-29 | D145: Vinati Organics Ltd | E145: Accu | F145: 465.00 | H145: 540 | I145: 540.00 | J145: Target Achieved | L145: =H145-F145-K145 -> 75.00 | M145: =L145/F145 -> 16.13% | N145: Successful | O145: 2016-06-09
A146: 44 | B146: 2016-01-11 | D146: GSFC | E146: Buy | F146: 81.00 | H146: 110 | I146: 110.00 | J146: Target Achieved | L146: 29.00 | M146: 35.80% | N146: Successful | O146: 2017-01-10
A147: 45 | B147: 2016-01-13 | D147: SSWL | E147: Buy | F147: 417.50 | H147: 547 | I147: 535.00 | J147: Target Achieved | L147: 129.50 | M147: 31.02% | N147: Successful | O147: 2016-07-27
A148: 46 | B148: 2016-02-08 | D148: Persistent System Ltd | E148: Accu | F148: 650.00 | H148: 800 | I148: 800.00 | J148: Target Achieved | L148: =H148-F148-K148 -> 150.00 | M148: =L148/F148 -> 23.08% | N148: Successful | O148: 2018-02-23
A149: 47 | B149: 2016-03-04 | D149: UPL | E149: Accu | F149: 437.50 | H149: 504.5 | I149: 522.00 | J149: Profit of Rs.67/- | L149: 67.00 | M149: 15.31% | N149: Successful | O149: 2016-04-20
A150: 48 | B150: 2016-03-09 | D150: Ashoka Buildcon Ltd | E150: Accu | F150: 189.50 | H150: 218 | I150: 218.00 | J150: Target Achieved | L150: 28.50 | M150: 15.04% | N150: Successful | O150: 2017-10-26
A151: 49 | B151: 2016-04-11 | D151: PTC INDIA FIN SERV LTD | E151: Accu | F151: 36-37 | I151: 60.00 | J151: Open
A152: 50 | B152: 2016-04-12 | D152: CAMLINFINE $ | E152: Accu | F152: 93.00 | H152: 149 | I152: 140.00 | J152: Profit of Rs 56/- | L152: =H152-F152-K152 -> 56.00 | M152: =L152/F152 -> 60.22% | N152: Successful | O152: 2017-01-05
A153: 51 | B153: 2016-04-12 | D153: Greaves Cotton Ltd. | E153: Accu | F153: 130.00 | H153: 150 | I153: 150-155 | J153: Target Achieved | L153: 20.00 | M153: 15.38% | N153: Successful | O153: 2016-07-13
A154: 52 | B154: 2016-04-13 | D154: DHFL | E154: Accu | F154: 196.00 | H154: 299 | I154: 299.00 | J154: Target Achieved | L154: 103.00 | M154: 52.55% | N154: Successful | O154: 2016-09-07
A155: 53 | B155: 2016-04-13 | D155: Magma | E155: Accu | F155: 88.00 | H155: 103 | I155: 103.00 | J155: Target Achieved | L155: 15.00 | M155: 17.05% | N155: Successful | O155: 2016-06-09
A156: 54 | B156: 2016-05-02 | D156: KEC International ltd $ | E156: Accu | F156: 127.50 | H156: 148 | I156: 148-150 | J156: Target Achieved | L156: 20.50 | M156: 16.08% | N156: Successful | O156: 2016-07-13
A157: 55 | B157: 2016-05-03 | D157: Mindtree | E157: Accu | F157: 675.00 | H157: 815 | I157: 790-800 | J157: Target Achieved | L157: 140.00 | M157: 20.74% | N157: Successful | O157: 2018-02-23
A158: 56 | B158: 2016-06-01 | D158: Atulauto | E158: Accu | F158: 495-505 | I158: 565-570 | J158: Open
A159: 57 | B159: 2016-06-06 | D159: TRITURBINE | E159: Accu | F159: 110.00 | H159: 126.5 | I159: 125.00 | J159: Profit of Rs.16.50/- | L159: =H159-F159-K159 -> 16.50 | M159: =L159/F159 -> 15.00% | N159: Successful | O159: 2016-07-01
A160: 58 | B160: 2016-06-17 | D160: Pennar Industries Ltd | E160: Accu | F160: 44.00 | H160: 69.5 | I160: 69.50 | J160: Profit of Rs.25.50/- | L160: =H160-F160-K160 -> 25.50 | M160: =L160/F160 -> 57.95% | N160: Successful | O160: 2017-08-30
A161: 59 | B161: 2016-06-28 | D161: EVEREADY INDS. IND. LTD. | E161: Accu | F161: 262.50 | H161: 340 | I161: 333.00 | J161: Profit of Rs.77.50/- | L161: =H161-F161-K161 -> 77.50 | M161: =L161/F161 -> 29.52% | N161: Successful | O161: 2017-10-09
A162: 60 | B162: 2016-06-28 | D162: FIEM INDUSTRIES LIMITED | E162: Accu | F162: 840.00 | H162: 1230 | I162: 1230.00 | J162: Target Achieved | L162: =H162-F162-K162 -> 390.00 | M162: =L162/F162 -> 46.43% | N162: Successful | O162: 2016-10-06
A163: 61 | B163: 2016-07-05 | D163: Bajaj Corp Ltd | E163: Accu | F163: 395 | H163: 468.50 | I163: 510.00 | J163: Part profit of Rs.73.50/- | L163: =H163-F163-K163 -> 73.50 | M163: =L163/F163 -> 19% | N163: Successful | O163: 2017-08-30
A164: 62 | B164: 2016-08-02 | D164: GPPL $ | E164: Buy | F164: 167-172 | I164: 198-200 | J164: Open
A165: 63 | B165: 2016-08-04 | D165: WONDERLA HOLIDAYS LTD | E165: Accu | F165: 395-405 | I165: 475.00 | J165: Open
A166: 64 | B166: 2016-08-11 | D166: CAMLINFINE | E166: Accu | F166: 86.50 | H166: 130 | I166: 130.00 | J166: Profit of Rs.43.50/- | L166: =H166-F166-K166 -> 43.50 | M166: =L166/F166 -> 50.29% | N166: Successful | O166: 2017-12-22
A167: 65 | B167: 2016-08-18 | D167: GRANULES | E167: Accu | F167: 133.5 | H167: 126.50 | I167: 178.00 | J167: Exit | L167: -7.00 | M167: -5.24% | N167: Unsuccessful | O167: 2016-09-02
A168: 66 | B168: 2016-08-31 | D168: VA TECH WABAG | E168: Accu | F168: 560.00 | H168: 725 | I168: 725.00 | J168: Target Achieved | L168: 165.00 | M168: 29.46% | N168: Successful | O168: 2016-03-27
A169: 67 | B169: 2016-09-01 | D169: SKIPPER LIMITED | E169: Accu | F169: 160.50 | H169: 210 | I169: 210.00 | J169: Target Achieved | L169: 49.50 | M169: 30.84% | N169: Successful | O169: 2017-05-16
A170: 68 | B170: 2016-10-03 | D170: IFB Industries | E170: Accu | F170: 430.00 | H170: 596 | I170: 575.00 | J170: Profit of Rs.166/- | L170: 166.00 | M170: 38.60% | N170: Successful | O170: 2017-02-03
A171: 69 | B171: 2016-10-14 | D171: ASIANTILES | E171: Accu | F171: 280.00 | H171: 345 | I171: 345.00 | J171: Target Achieved | L171: 65.00 | M171: 23.21% | N171: Successful | O171: 2017-03-20
A172: 70 | B172: 2016-10-14 | D172: DEEPIND | E172: Accu | F172: 245.00 | H172: 325.5 | I172: 330.00 | J172: Profit of Rs.80.5/- | L172: 80.50 | M172: 32.86% | N172: Successful | O172: 2017-02-03
A173: 71 | B173: 2016-10-17 | D173: DCBBANK | E173: Accu | F173: 125.00 | H173: 160 | I173: 160.00 | J173: Target Achieved | L173: 35.00 | M173: 28.00% | N173: Successful | O173: 2017-03-09
A174: 72 | B174: 2016-10-17 | D174: ORIENTREF | E174: Accu | F174: 114.00 | H174: 145 | I174: 145.00 | J174: Target Achieved | L174: =H174-F174-K174 -> 31.00 | M174: =L174/F174 -> 27.19% | N174: Successful | O174: 2017-05-04
A175: 73 | B175: 2016-10-17 | D175: GANECOS | E175: Accu | F175: 212.00 | H175: 280 | I175: 276.00 | J175: Profit of Rs.68/- | L175: =H175-F175-K175 -> 68.00 | M175: =L175/F175 -> 32.08% | N175: Successful | O175: 2017-05-03
A176: 74 | B176: 2016-11-04 | D176: NBCC | E176: Accu | F176: 155.00 | H176: 210 | I176: 210.00 | J176: Profit of Rs.55/- | L176: =H176-F176-K176 -> 55.00 | M176: =L176/F176 -> 35.48% | N176: Successful | O176: 2017-07-28
A177: 75 | B177: 2016-12-06 | D177: PRECAM | E177: Accu | F177: 148-153 | I177: 174.00 | J177: Open
A178: 76 | B178: 2016-12-08 | D178: INFRATEL | E178: Accu | F178: 380.00 | H178: 478 | I178: 468.00 | J178: Target Achieved | L178: =H178-F178-K178 -> 98.00 | M178: =L178/F178 -> 25.79% | N178: Successful | O178: 2017-10-17
A179: 77 | B179: 2016-12-30 | D179: GODREJPROP | E179: Accu | F179: 305.00 | H179: 375 | I179: 375.00 | J179: Target Achieved | L179: 70.00 | M179: 22.95% | N179: Successful | O179: 2017-02-02
A180: 78 | B180: 2017-01-04 | D180: DEEPAKNTR | E180: Accu | F180: 99.50 | H180: 158 | I180: 158.00 | J180: Target Achieved | L180: 58.50 | M180: 58.79% | N180: Successful | O180: 2017-06-12
A181: 79 | B181: 2017-02-20 | D181: SUBROS | E181: Accu | F181: 202.50 | H181: 234 | I181: 234.00 | J181: Target Achieved | L181: 31.50 | M181: 15.56% | N181: Successful | O181: 2017-04-11
A182: 80 | B182: 2017-02-20 | D182: RECLTD | E182: Accu | F182: 140.50 | H182: 220 | I182: 220.00 | J182: Target Achieved | L182: 79.50 | M182: 56.58% | N182: Successful | O182: 2017-05-09
A183: 81 | B183: 2017-03-24 | D183: VRLLOG | E183: Accu | F183: 300.50 | H183: 417.5 | I183: 420.00 | J183: Profit of Rs.117/- | L183: 117.00 | M183: 38.94% | N183: Successful | O183: 2017-12-01
A184: 82 | B184: 2017-03-24 | D184: FIEMIND | E184: Accu | F184: 850.00 | H184: 1042.5 | I184: 1023.00 | J184: Profit of Rs 192.50/- | L184: 192.50 | M184: 22.65% | N184: Successful | O184: 2017-04-05
A185: 83 | B185: 2017-04-05 | D185: RATNAMANI | E185: Accu | F185: 785.00 | H185: 930 | I185: 920.00 | J185: Profit of Rs.145/- | L185: 145.00 | M185: 18.47% | N185: Successful | O185: 2017-08-29
A186: 84 | B186: 2017-04-06 | D186: ZEEMEDIA | E186: Accu | F186: 39-41 | I186: 60.00 | J186: Open
A187: 85 | B187: 2017-04-12 | D187: DABUR | E187: Accu | F187: 289.50 | H187: 354 | I187: 360.00 | J187: Profit of Rs.64.5/- | L187: =H187-F187-K187 -> 64.50 | M187: =L187/F187 -> 22.28% | N187: Successful | O187: 2017-11-01
A188: 86 | B188: 2017-04-20 | D188: KPRMILL | E188: Accu | F188: 700.00 | H188: 840 | I188: 840.00 | J188: Profit of Rs.140/- | L188: =H188-F188-K188 -> 140.00 | M188: =L188/F188 -> 20.00% | N188: Successful | O188: 2017-06-07
A189: 87 | B189: 2017-05-22 | D189: GREAVESCOT | E189: Accu | F189: 153-158 | I189: 190.00 | J189: Open
A190: 88 | B190: 2017-06-01 | D190: ESSELPACK | E190: Accu | F190: 260 | H190: 311.00 | I190: 340.00 | J190: Part profit of Rs.51/- | L190: =H190-F190-K190 -> 51.00 | M190: =L190/F190 -> 20% | N190: Successful | O190: 2017-11-17
A191: 89 | B191: 2017-06-15 | D191: KEI | E191: Accu | F191: 214.50 | H191: 262 | I191: 262.00 | J191: Profit of Rs.47.5/- | L191: 47.50 | M191: 22.14% | N191: Successful | O191: 2017-08-30
A192: 90 | B192: 2017-07-17 | D192: MAYURUNIQ | E192: Accu | F192: 370.00 | H192: 447.5 | I192: 450.00 | J192: Target Achieved | L192: 77.50 | M192: 20.95% | N192: Successful | O192: 2017-10-27
A193: 91 | B193: 2017-07-27 | D193: RAMCOCEM | E193: Accu | F193: 657.50 | H193: 825 | I193: 820.00 | J193: Target Achieved | L193: 167.50 | M193: 25.48% | N193: Successful | O193: 2017-12-21
A194: 92 | B194: 2017-08-17 | D194: FINPIPE | E194: Accu | F194: 605.00 | H194: 750 | I194: 750.00 | J194: Profit of Rs.145/- | L194: 145.00 | M194: 23.97% | N194: Successful | O194: 2017-10-19
A195: 93 | B195: 2017-09-01 | D195: SHK | E195: Accu | F195: 255 | H195: 307.50 | I195: 320.00 | J195: Part profit of Rs.52.5/- | L195: 52.50 | M195: 21% | N195: Successful | O195: 2017-12-29
A196: 94 | B196: 2017-09-19 | D196: SKIPPER | E196: Accu | F196: 215.00 | H196: 258 | I196: 258.00 | J196: Target Achieved | L196: 43.00 | M196: 20.00% | N196: Successful | O196: 2017-11-01
A197: 95 | B197: 2017-09-20 | D197: CAMLINFINE | E197: Accu | F197: 75.00 | H197: 90 | I197: 90.00 | J197: Profit of Rs.15.00/- | L197: 15.00 | M197: 20.00% | N197: Successful | O197: 2017-10-11
A198: 96 | B198: 2017-10-03 | D198: GNA | E198: Accu | F198: 315.00 | H198: 392 | I198: 384.00 | J198: Profit of Rs.77/- | L198: 77.00 | M198: 24.44% | N198: Successful | O198: 2017-10-09
A199: 97 | B199: 2017-10-05 | D199: NOCIL | E199: Accu | F199: 145.00 | H199: 179 | I199: 180.00 | J199: Profit of Rs.34/- | L199: 34.00 | M199: 23.45% | N199: Successful | O199: 2017-10-17
A200: 98 | B200: 2017-10-06 | D200: CENTURYPLY | E200: Accu | F200: 256.00 | H200: 323 | I200: 320.00 | J200: Target Achieved | L200: 67.00 | M200: 26.17% | N200: Successful | O200: 2017-11-28
A201: 99 | B201: 2017-10-09 | D201: RECLTD | E201: Accu | F201: 152.5 | H201: 183.50 | I201: 210.00 | J201: Part Profit of Rs.31/- | L201: 31.00 | M201: 20% | N201: Successful | O201: 2017-11-03
A202: 100 | B202: 2017-10-09 | D202: EIHOTEL | E202: Accu | F202: 137.50 | H202: 184 | I202: 183.00 | J202: Profit of Rs.46.5/- | L202: 46.50 | M202: 33.82% | N202: Successful | O202: 2018-01-08
A203: 101 | B203: 2017-10-10 | D203: BOROSIL | E203: Accu | F203: 895.00 | H203: 1122.5 | I203: 1078.00 | J203: Profit of Rs.227.5/- | L203: 227.50 | M203: 25.42% | N203: Successful | O203: 2018-01-17
A204: 102 | B204: 2017-10-10 | D204: NRBBEARING | E204: Accu | F204: 125.50 | H204: 158 | I204: 155.00 | J204: Profit of Rs.32.5/- | L204: 32.50 | M204: 25.90% | N204: Successful | O204: 2017-11-28
A205: 103 | B205: 2017-10-12 | D205: CYIENT | E205: Accu | F205: 525.00 | H205: 629 | I205: 629.00 | J205: Target Achieved | L205: 104.00 | M205: 19.81% | N205: Successful | O205: 2018-01-19
A206: 104 | B206: 2017-11-07 | D206: HATSUN | E206: Accu | F206: 740.00 | H206: 892.5 | I206: 900.00 | J206: Profit of Rs.152.5/- | L206: 152.50 | M206: 20.61% | N206: Successful | O206: 2017-11-13
A207: 105 | B207: 2017-12-04 | D207: SANGHIIND | E207: Accu | F207: 118.50 | H207: 143.5 | I207: 145.00 | J207: Profit of Rs.25/- | L207: 25.00 | M207: 21.10% | N207: Successful | O207: 2017-12-28
A208: 106 | B208: 2017-12-05 | D208: ALLCARGO | E208: Accu | F208: 177.5 | H208: 215.00 | I208: 230.00 | J208: Part Profit of Rs.37.5/- | L208: 37.50 | M208: 21% | N208: Successful | O208: 2017-12-27
A209: 107 | B209: 2017-12-21 | D209: KAJARIACER | E209: Accu | F209: 710-720 | I209: 872.00 | J209: Open
A210: 108 | B210: 2017-12-29 | D210: GNA | E210: Accu | F210: 430-440 | I210: 539.00 | J210: Open
A211: 109 | B211: 2017-12-29 | D211: ZENSARTECH | E211: Accu | F211: 880-890 | I211: 1084.00 | J211: Open
A212: 110 | B212: 2018-02-07 | D212: GREAVESCOT | E212: Accu | F212: 130-132 | I212: 190.00 | J212: Open
A213: 111 | B213: 2018-02-27 | D213: MOLDTKPAC | E213: Accu | F213: 320-330 | I213: 398.00 | J213: Open
A214: 112 | B214: 2018-03-05 | D214: LICHSGFIN | E214: Accu | F214: 505-515 | I214: 672.00 | J214: Open
A215: 113 | B215: 2018-04-02 | D215: EVERESTIND | E215: Accu | F215: 485-500 | I215: 613.00 | J215: Open
A216: 114 | B216: 2018-04-04 | D216: GPPL | E216: Accu | F216: 140-143 | I216: 180.00 | J216: Open
F219: Reinitiated $
A221: Disclaimer:
A222: This document has been prepared by the Retail Research Desk of Asit C Mehta
A223: Investment Intermediates Ltd. and is meant for use of the recipient only
A224: and is not for circulation. This document is not to be reported or
A225: copied or made available to others. It should not be considered to be
A226: taken as an offer to sell or a solicitation to buy any security. The
A227: information contained herein is from sources believed reliable. We do
A228: not represent that it is accurate or complete and it should not be
A229: relied upon as such. We may from time to time have positions in and buy
A230: and sell securities referred to herein

Sheet Call Tracker (Currency)
A1: Master Trade High Risk
A2: Sr.no | B2: Date | C2: Company | D2: Rec | E2: Rec Price | F2: Stop Loss | G2: Call Closed At | H2: Target | I2: Remark | K2: Profit / Loss per share | L2: Gain / Loss per Lot | M2: Lot | N2: Status | O2: Closed Date
A3: 1 | B3: 2017-05-08 | C3: USDINR MAY FUT | D3: Buy | E3: 64.3935 | F3: 64.29 | G3: 64.66 | H3: 64.59 | I3: Profit of Rs.0.27/- | K3: 0.27 | L3: 266.5 | M3: 1000 | N3: Successful | O3: 2017-05-09 | R3: P
A4: 2 | B4: 2017-05-08 | C4: USDINR JUN FUT | D4: Buy | E4: 64.6535 | F4: 64.45 | G4: 64.965 | H4: 65.05 | I4: Profit of Rs 0.31/- | K4: 0.31 | L4: 311.5 | M4: 1000 | N4: Successful | O4: 2017-05-09 | R4: P
A5: 3 | B5: 2017-05-09 | C5: EUROINR MAY FUT | D5: Sell | E5: 70.65 | F5: 70.8 | G5: 70.07 | H5: 70.4 | I5: Profit of Rs 0.58/- | K5: 0.58 | L5: 580 | M5: 1000 | N5: Successful | O5: 2017-05-12 | R5: P
A6: 4 | B6: 2017-05-09 | C6: GBPINR MAY FUT | D6: Buy | E6: 83.774 | F6: 83.37 | G6: 83.37 | H6: 84.77 | I6: Loss of Rs 0.40/- | K6: -0.40 | L6: -404 | M6: 1000 | N6: Unsuccessful | O6: 2017-05-11 | R6: P
A7: 5 | B7: 2017-05-11 | C7: USDINR MAY FUT | D7: Buy | E7: 64.6555 | F7: 64.55 | G7: 64.55 | H7: 64.86 | I7: Loss of Rs.0.1055/- | K7: -0.1055 | L7: =K7*M7 -> -105.50 | M7: 1000 | N7: Unsuccessful | O7: 2017-05-11 | R7: P
A8: 6 | B8: 2017-05-15 | C8: USDINR MAY FUT | D8: Buy | E8: 64.2275 | F8: 64.08 | G8: 64.46 | H8: 64.48 | I8: Profit of Rs 0.23/- | K8: 0.23 | L8: 232.5 | M8: 1000 | N8: Successful | O8: 2017-05-18 | R8: P
A9: 7 | B9: 2017-05-19 | C9: USDINR MAY FUT | D9: Sell | E9: 64.83 | F9: 65 | G9: 65 | H9: 64.5 | I9: Loss of Rs.0.17/- | K9: -0.17 | L9: -170 | M9: 1000 | N9: Unsuccessful | O9: 2017-05-19 | R9: P
A10: 8 | B10: 2017-05-23 | C10: USDINR MAY FUT | D10: Buy | E10: 64.83 | F10: 64.62 | G10: 64.95 | H10: 65.2 | I10: Profit of Rs 0.12/- | K10: 0.12 | L10: 120 | M10: 1000 | N10: Successful | O10: 2017-05-24 | R10: P
A11: 9 | B11: 2017-05-25 | C11: USDINR MAY FUT | D11: Buy | E11: 64.57 | F11: 64.25 | G11: 64.56 | H11: 65 | I11: Loss of Rs.0.01/- | K11: -0.01 | L11: -10 | M11: 1000 | N11: Neutral | O11: 2017-05-29 | R11: P
A12: 10 | B12: 2017-05-30 | C12: USDINR JUN FUT | D12: Buy | E12: 64.9125 | F12: 64.71 | G12: 64.71 | H12: 65.31 | I12: Loss of Rs.0.20/- | K12: -0.20 | L12: -202.5 | M12: 1000 | N12: Unsuccessful | O12: 2017-05-31 | R12: P
A13: 11 | B13: 2017-06-01 | C13: USDINR JUN FUT | D13: Buy | E13: 64.655 | F13: 64.45 | G13: 64.45 | H13: 65.05 | I13: Loss of Rs.0.20/- | K13: =G13-E13 -> -0.20 | L13: =K13*M13 -> -205 | M13: 1000.00 | N13: Unsuccessful | O13: 2017-06-08 | R13: P
A14: 12 | B14: 2017-06-12 | C14: USDINR JUN FUT | D14: Buy | E14: 64.45 | F14: 64 | G14: 64.7625 | H14: 65.2 | I14: Profit of Rs 0.31/- | K14: 0.31 | L14: 312.5 | M14: 1000 | N14: Successful | O14: 2017-06-16
A15: 13 | B15: 2017-06-16 | C15: USDINR JUN FUT | D15: Buy | E15: 64.51 | F15: 64.2 | G15: 64.7 | H15: 65.11 | I15: Profit of Rs 0.19/- | K15: 0.19 | L15: 190 | M15: 1000 | N15: Successful | O15: 2017-06-21
A16: 14 | B16: 2017-06-22 | C16: USDINR JUN FUT | D16: Buy | E16: 64.56 | F16: 64.2 | G16: 64.2 | H16: 65.1 | I16: Loss of Rs.0.36/- | K16: -0.36 | L16: -360 | M16: 1000.00 | N16: Unsuccessful | O16: 2017-06-30
A17: 15 | B17: 2017-07-10 | C17: USDINR JUL FUT | D17: Buy | E17: 64.67 | F17: 64.4 | G17: 64.4 | H17: 65.15 | I17: Loss of Rs.0.27/- | K17: -0.27 | L17: -270 | M17: 1000.00 | N17: Unsuccessful | O17: 2017-07-31
A18: 16 | B18: 2017-08-02 | C18: USDINR AUG FUT | D18: Buy | E18: 64.235 | F18: 63.98 | G18: 63.98 | H18: 64.75 | I18: Loss of Rs.0.26/- | K18: -0.26 | L18: -255 | M18: 1000.00 | N18: Unsuccessful | O18: 2017-08-02
A19: 17 | B19: 2017-08-08 | C19: USDINR AUG FUT | D19: Buy | E19: 63.9425 | F19: 63.6 | G19: 64.15 | H19: 64.5 | I19: Profit of Rs 0.21/- | K19: 0.21 | L19: 207.5 | M19: 1000 | N19: Successful | O19: 2017-08-10
A20: 18 | B20: 2017-08-22 | C20: USDINR AUG FUT | D20: Buy | E20: 64.1175 | F20: 63.9 | G20: 64.01 | H20: 64.5 | I20: Loss of Rs.0.11/- | K20: =G20-E20 -> -0.11 | L20: =K20*M20 -> -107.5 | M20: 1000.00 | N20: Unsuccessful | O20: 2017-08-29
A21: 19 | B21: 2017-09-01 | C21: USDINR SEP FUT | D21: Buy | E21: 64.1 | F21: 63.8 | G21: 64.205 | H21: 64.7 | I21: Profit of Rs 0.11/- | K21: 0.11 | L21: 105 | M21: 1000 | N21: Successful | O21: 2017-09-01
A22: 20 | B22: 2017-09-04 | C22: USDINR SEP FUT | D22: Buy | E22: 64.095 | F22: 63.8 | G22: 64.195 | H22: 64.7 | I22: Profit of Rs 0.10/- | K22: 0.10 | L22: =K22*M22 -> 100 | M22: 1000 | N22: Successful | O22: 2017-09-04
A23: 21 | B23: 2017-09-05 | C23: USDINR SEP FUT | D23: Buy | E23: 64.25 | F23: 64 | G23: 64.355 | H23: 64.75 | I23: Profit of Rs 0.11/- | K23: =G23-E23 -> 0.11 | L23: =K23*M23 -> 105 | M23: 1000 | N23: Successful | O23: 2017-09-06
A24: 22 | B24: 2017-09-06 | C24: USDINR SEP FUT | D24: Sell | E24: 64.365 | F24: 64.5 | G24: 64.265 | H24: 64 | I24: Profit of Rs 0.10/- | K24: =E24-G24 -> 0.10 | L24: 100 | M24: 1000 | N24: Successful | O24: 2017-09-06
A25: 23 | B25: 2017-09-07 | C25: USDINR SEP FUT | D25: Buy | E25: 64.145 | F25: 63.9 | G25: 64.2565 | H25: 64.65 | I25: Profit of Rs 0.11/- | K25: =G25-E25 -> 0.11 | L25: =K25*M25 -> 111.5 | M25: 1000 | N25: Successful | O25: 2017-09-14
A26: 24 | B26: 2017-09-11 | C26: JPYINR SEP FUT | D26: Sell | E26: 59.0285 | F26: 59.25 | G26: 58.645 | H26: 58.5 | I26: Profit of Rs 0.38/- | K26: =E26-G26 -> 0.38 | L26: 383.5 | M26: 1000 | N26: Successful | O26: 2017-09-12
A27: 25 | B27: 2017-09-14 | C27: USDINR SEP FUT | D27: Buy | E27: 64.145 | F27: 63.95 | G27: 64.26 | H27: 64.5 | I27: Profit of Rs 0.12/- | K27: =G27-E27 -> 0.12 | L27: 115 | M27: 1000 | N27: Successful | O27: 2017-09-19
A28: 26 | B28: 2017-09-20 | C28: USDINR SEP FUT | D28: Buy | E28: 64.3515 | F28: 64.15 | G28: 64.57 | H28: 64.75 | I28: Profit of Rs 0.22/- | K28: =G28-E28 -> 0.22 | L28: =K28*M28 -> 218.5 | M28: 1000 | N28: Successful | O28: 2017-09-21
A29: 27 | B29: 2017-09-21 | C29: USDINR SEP FUT | D29: Sell | E29: 64.795 | F29: 65.05 | G29: 65.05 | H29: 64.4 | I29: Loss of Rs.0.17/- | K29: -0.17 | L29: -170 | M29: 1000.00 | N29: Unsuccessful | O29: 2017-09-22
A30: 28 | B30: 2017-09-25 | C30: USDINR SEP FUT | D30: Buy | E30: 64.77 | F30: 64.4 | G30: 64.92 | H30: 65.1 | I30: Profit of Rs 0.15/- | K30: =G30-E30 -> 0.15 | L30: =K30*M30 -> 150 | M30: 1000 | N30: Successful | O30: 2017-09-25
A31: 29 | B31: 2017-09-25 | C31: USDINR SEP FUT | D31: Sell | E31: 65.1077 | F31: 65.3 | G31: 65.3 | H31: 64.5 | I31: Loss of Rs.0.19/- | K31: -0.19 | L31: -190 | M31: 1000.00 | N31: Unsuccessful | O31: 2017-09-26
A32: 30 | B32: 2017-09-27 | C32: USDINR SEP FUT | D32: Sell | E32: 65.7225 | F32: 65.83 | G32: 65.7 | H32: 65.52 | I32: Profit of Rs 0.02/- | K32: =E32-G32 -> 0.02 | L32: =K32*M32 -> 22.5 | M32: 1000 | N32: Neutral | O32: 2017-09-27
A33: 31 | B33: 2017-09-27 | C33: USDINR OCT FUT | D33: Sell | E33: 66 | F33: 66.5 | G33: 65.895 | H33: 65 | I33: Profit of Rs 0.11/- | K33: =E33-G33 -> 0.11 | L33: 105 | M33: 1000 | N33: Successful | O33: 2017-09-27
A34: 32 | B34: 2017-09-28 | C34: USDINR OCT FUT | D34: Sell | E34: 66.075 | F34: 66.3 | G34: 65.96 | H34: 65.4 | I34: Profit of Rs 0.12/- | K34: =E34-G34 -> 0.12 | L34: =K34*M34 -> 115 | M34: 1000 | N34: Successful | O34: 2017-09-28
A35: 33 | B35: 2017-09-29 | C35: GBPINR OCT fut | D35: Buy | E35: 87.745 | F35: 87.5 | G35: 87.84 | H35: 88.25 | I35: Profit of Rs 0.09/- | K35: =G35-E35 -> 0.09 | L35: 95 | M35: 1000 | N35: Successful | O35: 2017-09-29
A36: 34 | B36: 2017-09-29 | C36: USDINR OCT FUT | D36: Buy | E36: 65.514 | F36: 65.25 | G36: 65.85 | H36: 66 | I36: Profit of Rs 0.34/- | K36: 0.34 | L36: =K36*M36 -> 336 | M36: 1000 | N36: Successful | O36: 2017-10-03
A37: 35 | B37: 2017-10-09 | C37: USDINR OCT FUT | D37: Buy | E37: 65.48 | F37: 65.23 | G37: 65.5775 | H37: 65.95 | I37: Profit of Rs 0.10/- | K37: =G37-E37 -> 0.10 | L37: =K37*M37 -> 97.5 | M37: 1000 | N37: Successful | O37: 2017-10-09
A38: 36 | B38: 2017-10-10 | C38: USDINR OCT FUT | D38: Buy | E38: 65.41 | F38: 65.15 | G38: 65.5075 | H38: 66 | I38: Profit of Rs 0.10/- | K38: 0.10 | L38: 97.5 | M38: 1000 | N38: Successful | O38: 2017-10-10
A39: 37 | B39: 2017-10-11 | C39: USDINR OCT FUT | D39: Buy | E39: 65.38 | F39: 65.13 | G39: 65.13 | H39: 65.88 | I39: Loss of Rs.0.25/- | K39: -0.25 | L39: -250 | M39: 1000.00 | N39: Unsuccessful | O39: 2017-10-13
A40: 38 | B40: 2017-10-16 | C40: USDINR OCT FUT | D40: Buy | E40: 64.7925 | F40: 64.54 | G40: 64.905 | H40: 65.3 | I40: Profit of Rs 0.11/- | K40: =G40-E40 -> 0.11 | L40: =K40*M40 -> 112.5 | M40: 1000 | N40: Successful | O40: 2017-10-17
A41: 39 | B41: 2017-10-23 | C41: USDINR OCT FUT | D41: Buy | E41: 65.115 | F41: 64.85 | G41: 65.21 | H41: 65.5 | I41: Profit of Rs 0.09/- | K41: =G41-E41 -> 0.09 | L41: =K41*M41 -> 95 | M41: 1000 | N41: Successful | O41: 2017-10-25
A42: 40 | B42: 2017-10-23 | C42: JPYINR OCT FUT | D42: Buy | E42: 57.285 | F42: 57.03 | G42: 57.38 | H42: 58.4 | I42: Profit of Rs 0.10/- | K42: =G42-E42 -> 0.10 | L42: =K42*M42 -> 95 | M42: 1000 | N42: Successful | O42: 2017-10-23
A43: 41 | B43: 2017-10-26 | C43: USDINR OCT FUT | D43: Buy | E43: 64.755 | F43: 64.5 | G43: 64.87 | H43: 65.25 | I43: Profit of Rs 0.12/- | K43: 0.12 | L43: 115 | M43: 1000 | N43: Successful | O43: 2017-10-25
A44: 42 | B44: 2017-10-30 | C44: USDINR NOV FUT | D44: Buy | E44: 65.035 | F44: 64.79 | G44: 64.79 | H44: 65.5 | I44: Loss of Rs.0.24/- | K44: -0.24 | L44: -245 | M44: 1000.00 | N44: Unsuccessful | O44: 2017-11-01
A45: 43 | B45: 2017-11-01 | C45: JPYINR NOV FUT | D45: Buy | E45: 56.9875 | F45: 56.73 | G45: 57.0959 | H45: 57.5 | I45: Profit of Rs 0.11/- | K45: =G45-E45 -> 0.11 | L45: =K45*M45 -> 108.4 | M45: 1000 | N45: Successful | O45: 2017-11-07
A46: 44 | B46: 2017-11-02 | C46: USDINR NOV FUT | D46: Buy | E46: 64.7838 | F46: 64.5 | G46: 64.89 | H46: 65.25 | I46: Profit of Rs 0.11/- | K46: =G46-E46 -> 0.11 | L46: =K46*M46 -> 106.2 | M46: 1000 | N46: Successful | O46: 2017-11-06
A47: 45 | B47: 2017-11-08 | C47: USDINR NOV FUT | D47: Buy | E47: 65.1363 | F47: 64.8375 | G47: 65.235 | H47: 65.73 | I47: Profit of Rs 0.10/- | K47: =G47-E47 -> 0.10 | L47: =K47*M47 -> 98.7 | M47: 1000 | N47: Successful | O47: 2017-11-10
A48: 46 | B48: 2017-11-08 | C48: GBPINR NOV FUT | D48: Buy | E48: 85.4983 | F48: 85.25 | G48: 85.6 | H48: 86 | I48: Profit of Rs 0.10/- | K48: =G48-E48 -> 0.10 | L48: =K48*M48 -> 101.7 | M48: 1000 | N48: Successful | O48: 2017-11-09
A49: 47 | B49: 2017-11-16 | C49: EURINR NOV FUT | D49: Buy | E49: 76.8975 | F49: 76.3975 | G49: 76.3975 | H49: 77.8975 | I49: Loss of Rs.0.50/- | K49: =G49-E49 -> -0.50 | L49: -500 | M49: 1000.00 | N49: Unsuccessful | O49: 2017-11-01
A50: 48 | B50: 2017-11-16 | C50: JPYINR NOV FUT | D50: Buy | E50: 57.6625 | F50: 57.2675 | G50: 57.8075 | H50: 58.6675 | I50: Profit of Rs 0.14/- | K50: =G50-E50 -> 0.14 | L50: =K50*M50 -> 145 | M50: 1000 | N50: Successful | O50: 2017-11-17
A51: 49 | B51: 2017-11-22 | C51: EURINR NOV FUT | D51: Buy | E51: 76.175 | F51: 75.95 | G51: 76.335 | H51: 76.6 | I51: Profit of Rs 0.16/- | K51: 0.16 | L51: =K51*M51 -> 160 | M51: 1000 | N51: Successful | O51: 2017-11-22
A52: 50 | B52: 2017-11-22 | C52: USDINR NOV FUT | D52: Buy | E52: 64.87 | F52: 64.5 | G52: 64.5 | H52: 65.5 | I52: Loss of Rs.0.37/- | K52: -0.37 | L52: -370 | M52: 1000.00 | N52: Unsuccessful | O52: 2017-11-27
A53: 51 | B53: 2017-11-28 | C53: GBPINR DEC FUT | D53: Buy | E53: 86.17 | F53: 85.85 | G53: 86.46 | H53: 87 | I53: Profit of Rs 0.29/- | K53: 0.29 | L53: =K53*M53 -> 290 | M53: 1000 | N53: Successful | O53: 2017-11-29
A54: 52 | B54: 2017-11-28 | C54: JPYINR DEC FUT | D54: Buy | E54: 58.16 | F54: 57.85 | G54: 57.85 | H54: 58.6 | I54: Loss of Rs.0.31/- | K54: -0.31 | L54: -310 | M54: 1000.00 | N54: Unsuccessful | O54: 2017-11-29
A55: 53 | B55: 2017-11-28 | C55: USDINR DEC FUT | D55: Buy | E55: 64.63 | F55: 64.13 | G55: 64.13 | H55: 65.63 | I55: Loss of Rs.0.50/- | K55: -0.50 | L55: =K55*M55 -> -500 | M55: 1000.00 | N55: Unsuccessful | O55: 2017-12-15
A56: 54 | B56: 2017-11-28 | C56: EURINR DEC FUT | D56: Buy | E56: 76.93 | F56: 76.43 | G56: 76.43 | H56: 77.93 | I56: Loss of Rs.0.50/- | K56: =G56-E56 -> -0.50 | L56: =K56*M56 -> -500 | M56: 1000.00 | N56: Unsuccessful | O56: 2017-11-29
A57: 55 | B57: 2017-12-12 | C57: EURINR DEC FUT | D57: Buy | E57: 76.105 | F57: 75.7 | G57: 76.27 | H57: 76.8 | I57: Profit of Rs 0.16/- | K57: =G57-E57 -> 0.16 | L57: 165 | M57: 1000 | N57: Successful | O57: 2017-12-14
A58: 56 | B58: 2017-12-12 | C58: JPYINR DEC FUT | D58: Buy | E58: 56.975 | F58: 56.7 | G58: 57.21 | H58: 57.6 | I58: Profit of Rs 0.23/- | K58: =G58-E58 -> 0.23 | L58: =K58*M58 -> 235 | M58: 1000 | N58: Successful | O58: 2017-12-14

Sheet Sheet2 (hidden)
A1: SYMBOL | B1: SERIES | C1: OPEN | D1: HIGH | E1: LOW | F1: CLOSE | G1: LAST | H1: PREVCLOSE | I1: TOTTRDQTY | J1: TOTTRDVAL | K1: TIMESTAMP | L1: TOTALTRADES | M1: ISIN
A2: 20MICRONS | B2: EQ | C2: 50 | D2: 51 | E2: 49.55 | F2: 49.95 | G2: 50.3 | H2: 49.3 | I2: 79748 | J2: 4000883.85 | K2: 2018-04-05 | L2: 951 | M2: INE144J01027
A3: 3IINFOTECH | B3: EQ | C3: 5.15 | D3: 5.35 | E3: 5.15 | F3: 5.25 | G3: 5.2 | H3: 5.1 | I3: 7341971 | J3: 38647073.2 | K3: 2018-04-05 | L3: 1620 | M3: INE748C01020
A4: 3MINDIA | B4: EQ | C4: 20459 | D4: 20720 | E4: 20340 | F4: 20638.7 | G4: 20650 | H4: 20105 | I4: 874 | J4: 18021450 | K4: 2018-04-05 | L4: 451 | M4: INE470A01017
A5: 63MOONS | B5: EQ | C5: 88 | D5: 99.9 | E5: 88 | F5: 97.45 | G5: 97 | H5: 101.05 | I5: 1711018 | J5: 163687132.4 | K5: 2018-04-05 | L5: 17599 | M5: INE111B01023
A6: 8KMILES | B6: EQ | C6: 698.45 | D6: 706.8 | E6: 691 | F6: 694.45 | G6: 696 | H6: 689.75 | I6: 143630 | J6: 99977911.25 | K6: 2018-04-05 | L6: 4011 | M6: INE650K01021
A7: A2ZINFRA | B7: EQ | C7: 29 | D7: 29.35 | E7: 28.5 | F7: 28.75 | G7: 28.7 | H7: 27.9 | I7: 594444 | J7: 17108913.9 | K7: 2018-04-05 | L7: 2056 | M7: INE619I01012
A8: AARTIDRUGS | B8: EQ | C8: 544 | D8: 565 | E8: 544 | F8: 563.1 | G8: 565 | H8: 543.8 | I8: 5162 | J8: 2883638.2 | K8: 2018-04-05 | L8: 494 | M8: INE767A01016
A9: AARTIIND | B9: EQ | C9: 1160 | D9: 1192.95 | E9: 1155 | F9: 1186.6 | G9: 1185.7 | H9: 1154.6 | I9: 50692 | J9: 59416976.85 | K9: 2018-04-05 | L9: 4900 | M9: INE769A01020
A10: AARVEEDEN | B10: EQ | C10: 45.8 | D10: 45.9 | E10: 44.75 | F10: 45.15 | G10: 45.55 | H10: 44.2 | I10: 6747 | J10: 306138.2 | K10: 2018-04-05 | L10: 52 | M10: INE273D01019
A11: ABAN | B11: EQ | C11: 162.9 | D11: 163.4 | E11: 160.8 | F11: 162.15 | G11: 162.3 | H11: 159.65 | I11: 483386 | J11: 78297429.7 | K11: 2018-04-05 | L11: 6090 | M11: INE421A01028
A12: ABB | B12: EQ | C12: 1295 | D12: 1300 | E12: 1275 | F12: 1278.6 | G12: 1275 | H12: 1271.35 | I12: 100475 | J12: 129186828 | K12: 2018-04-05 | L12: 3531 | M12: INE117A01022
A13: ABBOTINDIA | B13: EQ | C13: 5600 | D13: 5748 | E13: 5600 | F13: 5712.85 | G13: 5721 | H13: 5624.5 | I13: 813 | J13: 4643955.05 | K13: 2018-04-05 | L13: 288 | M13: INE358A01014
A14: ABCAPITAL | B14: EQ | C14: 154 | D14: 157.5 | E14: 153.7 | F14: 155.55 | G14: 155.55 | H14: 151.7 | I14: 4590684 | J14: 716111972 | K14: 2018-04-05 | L14: 26313 | M14: INE674K01013
A15: ABFRL | B15: EQ | C15: 155.85 | D15: 155.85 | E15: 149.25 | F15: 149.95 | G15: 149.75 | H15: 151 | I15: 224163 | J15: 34009025.35 | K15: 2018-04-05 | L15: 2593 | M15: INE647O01011
A16: ACC | B16: EQ | C16: 1551.4 | D16: 1559.7 | E16: 1536.9 | F16: 1552.35 | G16: 1554.9 | H16: 1530 | I16: 198303 | J16: 307466682.1 | K16: 2018-04-05 | L16: 10546 | M16: INE012A01025
A17: ACCELYA | B17: EQ | C17: 1349.95 | D17: 1370 | E17: 1340.05 | F17: 1352.95 | G17: 1359 | H17: 1341.9 | I17: 2360 | J17: 3200845.9 | K17: 2018-04-05 | L17: 679 | M17: INE793A01012
A18: ACE | B18: EQ | C18: 176 | D18: 178.7 | E18: 174.3 | F18: 176.3 | G18: 176.75 | H18: 172.55 | I18: 365830 | J18: 64480145.1 | K18: 2018-04-05 | L18: 3774 | M18: INE731H01025
A19: ADANIENT | B19: EQ | C19: 133 | D19: 152.95 | E19: 126.25 | F19: 147.85 | G19: 147.8 | H19: 151.45 | I19: 27497507 | J19: 3990980318 | K19: 2018-04-05 | L19: 114527 | M19: INE423A01024
A20: ADANIPORTS | B20: EQ | C20: 372 | D20: 379.8 | E20: 371.5 | F20: 375.95 | G20: 377 | H20: 367.8 | I20: 3648555 | J20: 1370210901 | K20: 2018-04-05 | L20: 41802 | M20: INE742F01042
A21: ADANIPOWER | B21: EQ | C21: 25.6 | D21: 25.85 | E21: 25.25 | F21: 25.5 | G21: 25.4 | H21: 25.05 | I21: 14516075 | J21: 369989651.1 | K21: 2018-04-05 | L21: 15380 | M21: INE814H01011
A22: ADANITRANS | B22: EQ | C22: 186 | D22: 188.2 | E22: 178.85 | F22: 183.4 | G22: 183.9 | H22: 182.8 | I22: 3855330 | J22: 706055473 | K22: 2018-04-05 | L22: 36627 | M22: INE931S01010
A23: ADFFOODS | B23: EQ | C23: 224 | D23: 230.7 | E23: 213.9 | F23: 214.95 | G23: 215 | H23: 220.65 | I23: 658238 | J23: 145824171.7 | K23: 2018-04-05 | L23: 8657 | M23: INE982B01019
A24: ADHUNIK | B24: EQ | C24: 4.05 | D24: 4.05 | E24: 4.05 | F24: 4.05 | G24: 4.05 | H24: 3.9 | I24: 14208 | J24: 57542.4 | K24: 2018-04-05 | L24: 24 | M24: INE400H01019
A25: ADLABS | B25: EQ | C25: 53.3 | D25: 53.3 | E25: 52.1 | F25: 52.7 | G25: 52.8 | H25: 51.55 | I25: 82836 | J25: 4368368.05 | K25: 2018-04-05 | L25: 1121 | M25: INE172N01012
A26: ADORWELD | B26: EQ | C26: 396 | D26: 418 | E26: 396 | F26: 406.55 | G26: 407 | H26: 389.25 | I26: 26116 | J26: 10615715.5 | K26: 2018-04-05 | L26: 1245 | M26: INE045A01017
A27: ADSL | B27: EQ | C27: 22.1 | D27: 22.1 | E27: 21.6 | F27: 21.7 | G27: 21.7 | H27: 21.7 | I27: 14959 | J27: 325990.8 | K27: 2018-04-05 | L27: 106 | M27: INE102I01027
A28: ADVANIHOTR | B28: EQ | C28: 56.3 | D28: 58.85 | E28: 56.3 | F28: 58 | G28: 58.75 | H28: 56 | I28: 27602 | J28: 1593054.45 | K28: 2018-04-05 | L28: 155 | M28: INE199C01026
A29: ADVENZYMES | B29: EQ | C29: 237 | D29: 239.5 | E29: 234 | F29: 235.05 | G29: 235.95 | H29: 233.75 | I29: 90142 | J29: 21299060.65 | K29: 2018-04-05 | L29: 2202 | M29: INE837H01020
A30: AEGISCHEM | B30: EQ | C30: 258.9 | D30: 271.95 | E30: 258.9 | F30: 271.3 | G30: 271 | H30: 256.6 | I30: 210047 | J30: 56185232.15 | K30: 2018-04-05 | L30: 5178 | M30: INE208C01025
A31: AFL | B31: EQ | C31: 52.2 | D31: 53.2 | E31: 52.05 | F31: 52.35 | G31: 52.15 | H31: 52.2 | I31: 2757 | J31: 144045.15 | K31: 2018-04-05 | L31: 19 | M31: INE020G01017
A32: AGCNET | B32: EQ | C32: 105.6 | D32: 109.75 | E32: 105.6 | F32: 107.1 | G32: 107.05 | H32: 108.15 | I32: 1671 | J32: 179879.8 | K32: 2018-04-05 | L32: 31 | M32: INE676A01019
A33: AGLSL | B33: EQ | C33: 106.35 | D33: 106.4 | E33: 103.45 | F33: 103.9 | G33: 103.9 | H33: 101.5 | I33: 1908 | J33: 200444.05 | K33: 2018-04-05 | L33: 38 | M33: INE517U01013
A34: AGRITECH | B34: EQ | C34: 139.2 | D34: 145 | E34: 131.2 | F34: 137.4 | G34: 137 | H34: 134.2 | I34: 140160 | J34: 19402883.05 | K34: 2018-04-05 | L34: 2283 | M34: INE449G01018
A35: AHLUCONT | B35: EQ | C35: 392.5 | D35: 398 | E35: 391.25 | F35: 396.45 | G35: 396 | H35: 390 | I35: 10246 | J35: 4045211.75 | K35: 2018-04-05 | L35: 291 | M35: INE758C01029
A36: AHLWEST | B36: EQ | C36: 267 | D36: 268.1 | E36: 265.3 | F36: 266.65 | G36: 266.25 | H36: 270.1 | I36: 161 | J36: 42888.05 | K36: 2018-04-05 | L36: 38 | M36: INE915K01010
A37: AIAENG | B37: EQ | C37: 1446 | D37: 1459.9 | E37: 1429.6 | F37: 1450 | G37: 1434.05 | H37: 1439.85 | I37: 14770 | J37: 21393244.35 | K37: 2018-04-05 | L37: 3669 | M37: INE212H01026
A38: AIFL | B38: EQ | C38: 471.5 | D38: 472.3 | E38: 462.15 | F38: 467.65 | G38: 464.1 | H38: 467.2 | I38: 105169 | J38: 49246576.45 | K38: 2018-04-05 | L38: 1759 | M38: INE428O01016
A39: AJANTPHARM | B39: EQ | C39: 1385.6 | D39: 1408.3 | E39: 1383.6 | F39: 1395.4 | G39: 1398 | H39: 1379.85 | I39: 163826 | J39: 228881752.6 | K39: 2018-04-05 | L39: 7930 | M39: INE031B01049
A40: AJMERA | B40: EQ | C40: 263 | D40: 271.25 | E40: 262.9 | F40: 265.25 | G40: 265.6 | H40: 259.1 | I40: 167544 | J40: 44728879.3 | K40: 2018-04-05 | L40: 3497 | M40: INE298G01027
A41: AKSHARCHEM | B41: EQ | C41: 604.95 | D41: 604.95 | E41: 597.5 | F41: 601.9 | G41: 601.95 | H41: 597.2 | I41: 3352 | J41: 2012657.65 | K41: 2018-04-05 | L41: 254 | M41: INE542B01011
A42: AKSHOPTFBR | B42: EQ | C42: 37.2 | D42: 37.6 | E42: 36.3 | F42: 37.6 | G42: 37.6 | H42: 35.85 | I42: 1527987 | J42: 56852090.6 | K42: 2018-04-05 | L42: 3266 | M42: INE523B01011
A43: AKZOINDIA | B43: EQ | C43: 1969.9 | D43: 1975 | E43: 1891.4 | F43: 1937.35 | G43: 1940 | H43: 1938.9 | I43: 42418 | J43: 82184070.8 | K43: 2018-04-05 | L43: 2440 | M43: INE133A01011
A44: ALANKIT | B44: EQ | C44: 47.4 | D44: 49 | E44: 46.6 | F44: 47.85 | G44: 47.85 | H44: 46.95 | I44: 212965 | J44: 10171460.85 | K44: 2018-04-05 | L44: 1076 | M44: INE914E01040
A45: ALBK | B45: EQ | C45: 49.85 | D45: 52.3 | E45: 49.85 | F45: 51.7 | G45: 52.2 | H45: 49.2 | I45: 4674461 | J45: 238087736.1 | K45: 2018-04-05 | L45: 13006 | M45: INE428A01015
A46: ALEMBICLTD | B46: EQ | C46: 55.55 | D46: 56.3 | E46: 54.75 | F46: 55.15 | G46: 55.15 | H46: 55.05 | I46: 159930 | J46: 8839924.55 | K46: 2018-04-05 | L46: 1177 | M46: INE426A01027
A47: ALICON | B47: EQ | C47: 600 | D47: 620 | E47: 592 | F47: 610.35 | G47: 609 | H47: 603.15 | I47: 5383 | J47: 3276919 | K47: 2018-04-05 | L47: 189 | M47: INE062D01024
A48: ALKALI | B48: EQ | C48: 76.35 | D48: 85.75 | E48: 76.35 | F48: 79.05 | G48: 79.25 | H48: 74.35 | I48: 234144 | J48: 19072559.85 | K48: 2018-04-05 | L48: 3536 | M48: INE773I01017
A49: ALKEM | B49: EQ | C49: 1913.95 | D49: 1913.95 | E49: 1850.1 | F49: 1854.1 | G49: 1850.5 | H49: 1892.6 | I49: 50574 | J49: 94451522.25 | K49: 2018-04-05 | L49: 9814 | M49: INE540L01014
A50: ALKYLAMINE | B50: EQ | C50: 620.95 | D50: 627.65 | E50: 615.5 | F50: 622.95 | G50: 621.05 | H50: 612.55 | I50: 688 | J50: 428476.75 | K50: 2018-04-05 | L50: 50 | M50: INE150B01021
A51: ALLCARGO | B51: EQ | C51: 152.5 | D51: 152.5 | E51: 150.95 | F51: 151.25 | G51: 151 | H51: 150.7 | I51: 189434 | J51: 28716341.35 | K51: 2018-04-05 | L51: 1843 | M51: INE418H01029
A52: ALLSEC | B52: EQ | C52: 337.55 | D52: 350.25 | E52: 333.95 | F52: 347.2 | G52: 345 | H52: 335.85 | I52: 11079 | J52: 3772586.25 | K52: 2018-04-05 | L52: 330 | M52: INE835G01018
A53: ALMONDZ | B53: EQ | C53: 24.6 | D53: 25.25 | E53: 24.6 | F53: 25.25 | G53: 25.25 | H53: 24.05 | I53: 8772 | J53: 219557.75 | K53: 2018-04-05 | L53: 45 | M53: INE326B01027
A54: ALOKTEXT | B54: EQ | C54: 3.5 | D54: 3.5 | E54: 3.5 | F54: 3.5 | G54: 3.5 | H54: 3.35 | I54: 713664 | J54: 2497824 | K54: 2018-04-05 | L54: 315 | M54: INE270A01011
A55: ALPA | B55: EQ | C55: 40.25 | D55: 41.9 | E55: 40.1 | F55: 40.4 | G55: 40.4 | H55: 39.95 | I55: 49260 | J55: 2022849.75 | K55: 2018-04-05 | L55: 429 | M55: INE385I01010
A56: ALPHAGEO | B56: EQ | C56: 779.9 | D56: 784.7 | E56: 762 | F56: 776.3 | G56: 772 | H56: 773.1 | I56: 10883 | J56: 8445765.55 | K56: 2018-04-05 | L56: 1183 | M56: INE137C01018
A57: AMARAJABAT | B57: EQ | C57: 803 | D57: 809.4 | E57: 801 | F57: 803.5 | G57: 803.2 | H57: 798.45 | I57: 216748 | J57: 174521484.2 | K57: 2018-04-05 | L57: 6808 | M57: INE885A01032
A58: AMBER | B58: EQ | C58: 1086 | D58: 1149 | E58: 1086 | F58: 1116.1 | G58: 1113.05 | H58: 1079.9 | I58: 79521 | J58: 88916846.8 | K58: 2018-04-05 | L58: 4963 | M58: INE371P01015
A59: AMBIKCO | B59: EQ | C59: 1319.85 | D59: 1330 | E59: 1300.15 | F59: 1306.65 | G59: 1310 | H59: 1301.5 | I59: 2313 | J59: 3038865.35 | K59: 2018-04-05 | L59: 233 | M59: INE540G01014
A60: AMBUJACEM | B60: EQ | C60: 238 | D60: 239.85 | E60: 235.55 | F60: 238 | G60: 238 | H60: 236.6 | I60: 2110899 | J60: 501627807.4 | K60: 2018-04-05 | L60: 22653 | M60: INE079A01024
A61: AMJLAND | B61: EQ | C61: 23.75 | D61: 24.9 | E61: 23.75 | F61: 24.4 | G61: 24.75 | H61: 23.75 | I61: 14503 | J61: 354844.75 | K61: 2018-04-05 | L61: 63 | M61: INE606A01024
A62: AMRUTANJAN | B62: EQ | C62: 558.8 | D62: 559 | E62: 552.15 | F62: 553.55 | G62: 553.95 | H62: 551.65 | I62: 2569 | J62: 1426542.1 | K62: 2018-04-05 | L62: 199 | M62: INE098F01023
A63: ANANTRAJ | B63: EQ | C63: 49.85 | D63: 50.75 | E63: 49.6 | F63: 50 | G63: 49.95 | H63: 49 | I63: 956202 | J63: 47955785.15 | K63: 2018-04-05 | L63: 3442 | M63: INE242C01024
A64: ANDHRABANK | B64: EQ | C64: 43 | D64: 45 | E64: 42.85 | F64: 44.2 | G64: 44.8 | H64: 42.35 | I64: 5663060 | J64: 246795052.6 | K64: 2018-04-05 | L64: 11048 | M64: INE434A01013
A65: ANDHRACEMT | B65: EQ | C65: 11.4 | D65: 11.75 | E65: 11.2 | F65: 11.6 | G65: 11.65 | H65: 10.8 | I65: 341985 | J65: 3948258.5 | K65: 2018-04-05 | L65: 614 | M65: INE666E01012
A66: ANDHRSUGAR | B66: EQ | C66: 435.95 | D66: 456.3 | E66: 435.95 | F66: 450.75 | G66: 455 | H66: 432.75 | I66: 15928 | J66: 7116522.65 | K66: 2018-04-05 | L66: 718 | M66: INE715B01013
A67: ANIKINDS | B67: EQ | C67: 33.45 | D67: 35 | E67: 33.3 | F67: 33.95 | G67: 34.35 | H67: 33.1 | I67: 8621 | J67: 293587.55 | K67: 2018-04-05 | L67: 110 | M67: INE087B01017
A68: ANSALAPI | B68: EQ | C68: 21.2 | D68: 21.45 | E68: 20.75 | F68: 20.9 | G68: 21 | H68: 20.45 | I68: 308816 | J68: 6561903.35 | K68: 2018-04-05 | L68: 562 | M68: INE436A01026
A69: ANSALHSG | B69: EQ | C69: 21 | D69: 21.5 | E69: 21 | F69: 21.2 | G69: 21.2 | H69: 20.6 | I69: 34847 | J69: 740247.15 | K69: 2018-04-05 | L69: 205 | M69: INE880B01015
A70: APARINDS | B70: EQ | C70: 769.85 | D70: 774.75 | E70: 760 | F70: 772.85 | G70: 774.75 | H70: 760.4 | I70: 5040 | J70: 3870570.5 | K70: 2018-04-05 | L70: 395 | M70: INE372A01015
A71: APCL | B71: EQ | C71: 186.4 | D71: 223.2 | E71: 183.45 | F71: 197.55 | G71: 198.95 | H71: 186 | I71: 24781 | J71: 5080422.85 | K71: 2018-04-05 | L71: 444 | M71: INE071F01012
A72: APCOTEXIND | B72: EQ | C72: 522.65 | D72: 523.05 | E72: 510.6 | F72: 513.4 | G72: 513.1 | H72: 518.3 | I72: 3007 | J72: 1550021.75 | K72: 2018-04-05 | L72: 139 | M72: INE116A01024
A73: APEX | B73: EQ | C73: 659.95 | D73: 659.95 | E73: 642.65 | F73: 652.3 | G73: 651 | H73: 641.25 | I73: 129480 | J73: 84332312.7 | K73: 2018-04-05 | L73: 5758 | M73: INE346W01013
A74: APLAPOLLO | B74: EQ | C74: 2060 | D74: 2149.9 | E74: 2060 | F74: 2116.85 | G74: 2120 | H74: 2045.65 | I74: 92610 | J74: 194937744.7 | K74: 2018-04-05 | L74: 2203 | M74: INE702C01019
A75: APLLTD | B75: EQ | C75: 553 | D75: 555.9 | E75: 547.3 | F75: 550.55 | G75: 550 | H75: 549.8 | I75: 208710 | J75: 114799215.2 | K75: 2018-04-05 | L75: 610 | M75: INE901L01018
A76: APOLLO | B76: EQ | C76: 258 | D76: 262.5 | E76: 255.6 | F76: 257.5 | G76: 256.7 | H76: 253.6 | I76: 87461 | J76: 22625517.55 | K76: 2018-04-05 | L76: 1971 | M76: INE713T01010
A77: APOLLOHOSP | B77: EQ | C77: 1075 | D77: 1091.6 | E77: 1075 | F77: 1083.7 | G77: 1082.6 | H77: 1066.95 | I77: 231441 | J77: 250664818.6 | K77: 2018-04-05 | L77: 16523 | M77: INE437A01024
A78: APOLLOTYRE | B78: EQ | C78: 284.35 | D78: 295.35 | E78: 284.35 | F78: 292.5 | G78: 293 | H78: 282.15 | I78: 4642680 | J78: 1358272110 | K78: 2018-04-05 | L78: 38722 | M78: INE438A01022
A79: APOLSINHOT | B79: EQ | C79: 1352 | D79: 1415 | E79: 1351.5 | F79: 1375.3 | G79: 1375.3 | H79: 1400 | I79: 65 | J79: 89623.95 | K79: 2018-04-05 | L79: 35 | M79: INE451F01016
A80: APTECHT | B80: EQ | C80: 265 | D80: 269.2 | E80: 261 | F80: 265.65 | G80: 265.5 | H80: 259.55 | I80: 745440 | J80: 197797982.6 | K80: 2018-04-05 | L80: 12915 | M80: INE266F01018
A81: ARCHIDPLY | B81: EQ | C81: 80.1 | D81: 89 | E81: 80.1 | F81: 84.9 | G81: 85 | H81: 79.3 | I81: 200592 | J81: 17236408.4 | K81: 2018-04-05 | L81: 1939 | M81: INE877I01016
A82: ARCHIES | B82: EQ | C82: 34.25 | D82: 34.75 | E82: 33.55 | F82: 33.9 | G82: 33.9 | H82: 33.75 | I82: 95120 | J82: 3251914.15 | K82: 2018-04-05 | L82: 777 | M82: INE731A01020
A83: ARCOTECH | B83: EQ | C83: 36 | D83: 36.55 | E83: 35.4 | F83: 36.35 | G83: 36.4 | H83: 35.05 | I83: 260629 | J83: 9390455 | K83: 2018-04-05 | L83: 1485 | M83: INE574I01035
A84: ARENTERP | B84: EQ | C84: 16.3 | D84: 16.3 | E84: 16.3 | F84: 16.3 | G84: 16.3 | H84: 16.3 | I84: 100 | J84: 1630 | K84: 2018-04-05 | L84: 1 | M84: INE610C01014
A85: ARIES | B85: EQ | C85: 194.1 | D85: 198.1 | E85: 192.5 | F85: 196.85 | G85: 198 | H85: 188.7 | I85: 46702 | J85: 9192553.9 | K85: 2018-04-05 | L85: 764 | M85: INE298I01015
A86: ARIHANTSUP | B86: EQ | C86: 121.3 | D86: 129.85 | E86: 121.3 | F86: 124.05 | G86: 124 | H86: 124.15 | I86: 90537 | J86: 11327329.45 | K86: 2018-04-05 | L86: 5541 | M86: INE643K01018
A87: ARMANFIN | B87: EQ | C87: 330 | D87: 337.95 | E87: 330 | F87: 335.7 | G87: 334.55 | H87: 328.3 | I87: 836 | J87: 280431.55 | K87: 2018-04-05 | L87: 29 | M87: INE109C01017
A88: AROGRANITE | B88: EQ | C88: 62.2 | D88: 62.25 | E88: 60.55 | F88: 61.4 | G88: 61.8 | H88: 59.95 | I88: 25704 | J88: 1572822.3 | K88: 2018-04-05 | L88: 318 | M88: INE210C01013
A89: ARROWGREEN | B89: EQ | C89: 400 | D89: 400 | E89: 380 | F89: 388.4 | G89: 388.9 | H89: 386 | I89: 55006 | J89: 21376728.5 | K89: 2018-04-05 | L89: 2393 | M89: INE570D01018
A90: ARROWTEX | B90: EQ | C90: 37 | D90: 37.4 | E90: 35.25 | F90: 37.3 | G90: 37.4 | H90: 36.65 | I90: 6895 | J90: 256417.9 | K90: 2018-04-05 | L90: 72 | M90: INE933J01015
A91: ARSHIYA | B91: EQ | C91: 77.05 | D91: 83 | E91: 77.05 | F91: 80.95 | G91: 80.45 | H91: 76.75 | I91: 81066 | J91: 6537979.9 | K91: 2018-04-05 | L91: 1121 | M91: INE968D01022
A92: ARVIND | B92: EQ | C92: 403.2 | D92: 411.1 | E92: 403.2 | F92: 409.6 | G92: 409.5 | H92: 399.85 | I92: 807042 | J92: 328709885.1 | K92: 2018-04-05 | L92: 11924 | M92: INE034A01011
A93: ARVSMART | B93: EQ | C93: 187.3 | D93: 194.55 | E93: 187.3 | F93: 192.95 | G93: 193 | H93: 190 | I93: 9753 | J93: 1883692.9 | K93: 2018-04-05 | L93: 315 | M93: INE034S01021
A94: ASAHIINDIA | B94: EQ | C94: 349.8 | D94: 351.95 | E94: 342.05 | F94: 345.45 | G94: 346 | H94: 347.3 | I94: 28592 | J94: 9914688.15 | K94: 2018-04-05 | L94: 782 | M94: INE439A01020
A95: ASAHISONG | B95: EQ | C95: 347 | D95: 351 | E95: 343 | F95: 346.2 | G95: 343.6 | H95: 341.15 | I95: 2601 | J95: 901229.25 | K95: 2018-04-05 | L95: 109 | M95: INE228I01012
A96: ASAL | B96: EQ | C96: 83.25 | D96: 83.25 | E96: 80.3 | F96: 81.25 | G96: 80.5 | H96: 79.65 | I96: 11374 | J96: 930907 | K96: 2018-04-05 | L96: 531 | M96: INE900C01027
A97: ASHAPURMIN | B97: EQ | C97: 71.1 | D97: 72.8 | E97: 70.55 | F97: 72.15 | G97: 72.3 | H97: 69.3 | I97: 118979 | J97: 8558275.75 | K97: 2018-04-05 | L97: 1084 | M97: INE348A01023
A98: ASHIANA | B98: EQ | C98: 170 | D98: 170 | E98: 162.15 | F98: 164.65 | G98: 163.6 | H98: 163.45 | I98: 48351 | J98: 8038687.65 | K98: 2018-04-05 | L98: 1047 | M98: INE365D01021
A99: ASHIMASYN | B99: EQ | C99: 28.25 | D99: 30.35 | E99: 27.7 | F99: 29.3 | G99: 29.25 | H99: 27.45 | I99: 657382 | J99: 19327250.15 | K99: 2018-04-05 | L99: 2244 | M99: INE440A01010
A100: ASHOKA | B100: EQ | C100: 264 | D100: 264.95 | E100: 260 | F100: 262.15 | G100: 262.7 | H100: 260 | I100: 347340 | J100: 91181889.95 | K100: 2018-04-05 | L100: 22559 | M100: INE442H01029
A101: ASHOKLEY | B101: EQ | C101: 147.35 | D101: 148.65 | E101: 146 | F101: 147 | G101: 147.15 | H101: 145.85 | I101: 11604724 | J101: 1705229969 | K101: 2018-04-05 | L101: 60166 | M101: INE208A01029
A102: ASIANPAINT | B102: EQ | C102: 1151.8 | D102: 1156.8 | E102: 1137.55 | F102: 1142.9 | G102: 1146.4 | H102: 1136 | I102: 549137 | J102: 628273769.1 | K102: 2018-04-05 | L102: 18095 | M102: INE021A01026
A103: ASIANTILES | B103: EQ | C103: 503.5 | D103: 511.05 | E103: 493.55 | F103: 498.4 | G103: 498.5 | H103: 495.65 | I103: 29532 | J103: 14779128.65 | K103: 2018-04-05 | L103: 1056 | M103: INE022I01019
A104: ASPINWALL | B104: EQ | C104: 404.95 | D104: 409 | E104: 387 | F104: 394.05 | G104: 394 | H104: 396.6 | I104: 1104 | J104: 440225.15 | K104: 2018-04-05 | L104: 26 | M104: INE991I01015
A105: ASSAMCO | B105: EQ | C105: 4.7 | D105: 4.8 | E105: 4.7 | F105: 4.75 | G105: 4.75 | H105: 4.7 | I105: 184508 | J105: 877204.55 | K105: 2018-04-05 | L105: 171 | M105: INE442A01024
A106: ASTEC | B106: EQ | C106: 613.05 | D106: 629 | E106: 610 | F106: 618.05 | G106: 618 | H106: 605.8 | I106: 27442 | J106: 17016091 | K106: 2018-04-05 | L106: 1416 | M106: INE563J01010
A107: ASTERDM | B107: EQ | C107: 170.05 | D107: 174.4 | E107: 170.05 | F107: 173.95 | G107: 174.25 | H107: 167.85 | I107: 291817 | J107: 50456695.1 | K107: 2018-04-05 | L107: 5053 | M107: INE914M01019
A108: ASTRAL | B108: EQ | C108: 917 | D108: 920 | E108: 901.1 | F108: 913.85 | G108: 915 | H108: 904.8 | I108: 57420 | J108: 52475793.75 | K108: 2018-04-05 | L108: 1185 | M108: INE006I01046
A109: ASTRAMICRO | B109: EQ | C109: 76.7 | D109: 79.4 | E109: 76.7 | F109: 78.75 | G109: 78.7 | H109: 75.8 | I109: 303895 | J109: 23733244.55 | K109: 2018-04-05 | L109: 2545 | M109: INE386C01029
A110: ASTRAZEN | B110: EQ | C110: 956 | D110: 965 | E110: 949.75 | F110: 957.3 | G110: 962.3 | H110: 949.05 | I110: 1449 | J110: 1385805.15 | K110: 2018-04-05 | L110: 153 | M110: INE203A01020
A111: ASTRON | B111: EQ | C111: 117 | D111: 124.9 | E111: 117 | F111: 123.85 | G111: 123.55 | H111: 116 | I111: 422540 | J111: 51526725.9 | K111: 2018-04-05 | L111: 4457 | M111: INE646X01014
A112: ATFL | B112: EQ | C112: 645 | D112: 655 | E112: 645 | F112: 649.95 | G112: 648.15 | H112: 640 | I112: 62321 | J112: 40507482.9 | K112: 2018-04-05 | L112: 868 | M112: INE209A01019
A113: ATLANTA | B113: EQ | C113: 81 | D113: 82.6 | E113: 81 | F113: 81.85 | G113: 82.2 | H113: 79.75 | I113: 64728 | J113: 5296742.95 | K113: 2018-04-05 | L113: 999 | M113: INE285H01022
A114: ATUL | B114: EQ | C114: 2741.8 | D114: 2816.55 | E114: 2727.45 | F114: 2796.4 | G114: 2800 | H114: 2702.9 | I114: 6437 | J114: 17839784.95 | K114: 2018-04-05 | L114: 660 | M114: INE100A01010
A115: ATULAUTO | B115: EQ | C115: 444 | D115: 450 | E115: 444 | F115: 449.35 | G115: 448.8 | H115: 442.6 | I115: 67404 | J115: 30236603.15 | K115: 2018-04-05 | L115: 534 | M115: INE951D01028
A116: AUBANK | B116: EQ | C116: 638 | D116: 656.45 | E116: 638 | F116: 652.85 | G116: 652.5 | H116: 635.9 | I116: 203016 | J116: 131676916.7 | K116: 2018-04-05 | L116: 8173 | M116: INE949L01017
A117: AURIONPRO | B117: EQ | C117: 217.95 | D117: 245.6 | E117: 217.95 | F117: 232.95 | G117: 234.45 | H117: 217.05 | I117: 119776 | J117: 27807129.8 | K117: 2018-04-05 | L117: 3112 | M117: INE132H01018
A118: AUROPHARMA | B118: EQ | C118: 595 | D118: 600.95 | E118: 589.75 | F118: 599.15 | G118: 600.05 | H118: 590.45 | I118: 1482861 | J118: 883739208.4 | K118: 2018-04-05 | L118: 26782 | M118: INE406A01037
A119: AUSOMENT | B119: EQ | C119: 69.45 | D119: 72.5 | E119: 69.25 | F119: 70.15 | G119: 70.4 | H119: 69.4 | I119: 10090 | J119: 713039.65 | K119: 2018-04-05 | L119: 180 | M119: INE218C01016
A120: AUTOAXLES | B120: EQ | C120: 1580 | D120: 1614.95 | E120: 1575 | F120: 1580.5 | G120: 1595 | H120: 1551.35 | I120: 9173 | J120: 14608597.7 | K120: 2018-04-05 | L120: 909 | M120: INE449A01011
A121: AUTOIND | B121: EQ | C121: 73.45 | D121: 73.85 | E121: 72.1 | F121: 73.85 | G121: 73.85 | H121: 70.35 | I121: 15454 | J121: 1135742.15 | K121: 2018-04-05 | L121: 101 | M121: INE718H01014
A122: AUTOLITIND | B122: EQ | C122: 68.75 | D122: 72.05 | E122: 68.2 | F122: 71.7 | G122: 72 | H122: 66.55 | I122: 16956 | J122: 1189698.65 | K122: 2018-04-05 | L122: 244 | M122: INE448A01013
A123: AVADHSUGAR | B123: EQ | C123: 429.6 | D123: 445 | E123: 413 | F123: 441.05 | G123: 444.65 | H123: 421.05 | I123: 139985 | J123: 60153986.65 | K123: 2018-04-05 | L123: 3991 | M123: INE349W01017
A124: AVANTIFEED | B124: EQ | C124: 2300 | D124: 2334.85 | E124: 2280 | F124: 2290.35 | G124: 2294 | H124: 2262.85 | I124: 57594 | J124: 132340945 | K124: 2018-04-05 | L124: 6389 | M124: INE871C01020
A125: AVTNPL | B125: EQ | C125: 39.4 | D125: 40.15 | E125: 39.2 | F125: 39.4 | G125: 39.45 | H125: 38.95 | I125: 103808 | J125: 4124175.95 | K125: 2018-04-05 | L125: 618 | M125: INE488D01021
A126: AXISBANK | B126: EQ | C126: 498.4 | D126: 504.65 | E126: 495.2 | F126: 503.1 | G126: 502.9 | H126: 492.25 | I126: 6682587 | J126: 3337037555 | K126: 2018-04-05 | L126: 53528 | M126: INE238A01034
A127: AXISCADES | B127: EQ | C127: 151.7 | D127: 155 | E127: 151.5 | F127: 152.25 | G127: 151.7 | H127: 149.35 | I127: 47622 | J127: 7275326.75 | K127: 2018-04-05 | L127: 1084 | M127: INE555B01013
A128: AXISGOLD | B128: EQ | C128: 2687.35 | D128: 2738 | E128: 2685 | F128: 2726 | G128: 2726 | H128: 2726 | I128: 1027 | J128: 2777311.75 | K128: 2018-04-05 | L128: 46 | M128: INF846K01347
A129: AXISNIFTY | B129: EQ | C129: 1031.14 | D129: 1031.14 | E129: 1031.14 | F129: 1031.14 | G129: 1031.14 | H129: 1029 | I129: 26 | J129: 26809.64 | K129: 2018-04-05 | L129: 1 | M129: INF846K01ZL0
A130: AYMSYNTEX | B130: EQ | C130: 62.25 | D130: 62.95 | E130: 61 | F130: 61.65 | G130: 61.9 | H130: 61.55 | I130: 11306 | J130: 700196.2 | K130: 2018-04-05 | L130: 77 | M130: INE193B01039
A131: BAFNAPHARM | B131: EQ | C131: 28 | D131: 29 | E131: 28 | F131: 28.6 | G131: 28.6 | H131: 28.1 | I131: 16985 | J131: 482375.65 | K131: 2018-04-05 | L131: 92 | M131: INE878I01014
A132: BAGFILMS | B132: EQ | C132: 5.1 | D132: 5.1 | E132: 4.9 | F132: 5.1 | G132: 5.1 | H132: 4.9 | I132: 90383 | J132: 458263.85 | K132: 2018-04-05 | L132: 88 | M132: INE116D01028
A133: BAJAJ-AUTO | B133: EQ | C133: 2790 | D133: 2815.95 | E133: 2782.4 | F133: 2808.15 | G133: 2813.15 | H133: 2766 | I133: 341534 | J133: 955701315.4 | K133: 2018-04-05 | L133: 15224 | M133: INE917I01010
A134: BAJAJCORP | B134: EQ | C134: 467.9 | D134: 467.9 | E134: 460.05 | F134: 463.1 | G134: 462.75 | H134: 461.1 | I134: 9647 | J134: 4471791.15 | K134: 2018-04-05 | L134: 1011 | M134: INE933K01021
A135: BAJAJELEC | B135: EQ | C135: 620 | D135: 634.3 | E135: 612.1 | F135: 618.15 | G135: 614.3 | H135: 609 | I135: 764069 | J135: 474431724.4 | K135: 2018-04-05 | L135: 16351 | M135: INE193E01025
A136: BAJAJFINSV | B136: EQ | C136: 5333 | D136: 5500 | E136: 5315 | F136: 5443.85 | G136: 5500 | H136: 5228.55 | I136: 205387 | J136: 1107090880 | K136: 2018-04-05 | L136: 17670 | M136: INE918I01018
A137: BAJAJHIND | B137: EQ | C137: 9.5 | D137: 9.7 | E137: 9.35 | F137: 9.5 | G137: 9.7 | H137: 9.35 | I137: 5138095 | J137: 48759109.55 | K137: 2018-04-05 | L137: 3600 | M137: INE306A01021
A138: BAJAJHLDNG | B138: EQ | C138: 2634 | D138: 2636 | E138: 2612.1 | F138: 2624.5 | G138: 2624.8 | H138: 2617.7 | I138: 30267 | J138: 79520915.55 | K138: 2018-04-05 | L138: 972 | M138: INE118A01012
A139: BAJFINANCE | B139: EQ | C139: 1866 | D139: 1922.1 | E139: 1866 | F139: 1915.6 | G139: 1914 | H139: 1850.2 | I139: 1385959 | J139: 2644986246 | K139: 2018-04-05 | L139: 45034 | M139: INE296A01024
A140: BALAJITELE | B140: EQ | C140: 130.95 | D140: 134.65 | E140: 130.25 | F140: 133.55 | G140: 133.5 | H140: 128.9 | I140: 65897 | J140: 8736201.25 | K140: 2018-04-05 | L140: 1343 | M140: INE794B01026
A141: BALAMINES | B141: EQ | C141: 601.55 | D141: 615 | E141: 601.5 | F141: 604.3 | G141: 604 | H141: 589.8 | I141: 29966 | J141: 18194426.4 | K141: 2018-04-05 | L141: 1338 | M141: INE050E01027
A142: BALKRISHNA | B142: EQ | C142: 84 | D142: 85 | E142: 77.15 | F142: 84.55 | G142: 83.7 | H142: 81.15 | I142: 26913 | J142: 2260718.25 | K142: 2018-04-05 | L142: 325 | M142: INE875R01011
A143: BALKRISIND | B143: EQ | C143: 1163.8 | D143: 1204.3 | E143: 1162.2 | F143: 1177.95 | G143: 1177.9 | H143: 1151.45 | I143: 844692 | J143: 1004389741 | K143: 2018-04-05 | L143: 25105 | M143: INE787D01026
A144: BALLARPUR | B144: EQ | C144: 13.35 | D144: 14.1 | E144: 13.2 | F144: 13.95 | G144: 13.9 | H144: 13.2 | I144: 1506933 | J144: 20766089.15 | K144: 2018-04-05 | L144: 1713 | M144: INE294A01037
A145: BALMLAWRIE | B145: EQ | C145: 222.2 | D145: 224.65 | E145: 221.9 | F145: 223.85 | G145: 224.4 | H145: 218.75 | I145: 56983 | J145: 12717072.55 | K145: 2018-04-05 | L145: 1080 | M145: INE164A01016
A146: BALPHARMA | B146: EQ | C146: 81.1 | D146: 84 | E146: 81.1 | F146: 83.6 | G146: 83.2 | H146: 81.85 | I146: 13351 | J146: 1110692.25 | K146: 2018-04-05 | L146: 245 | M146: INE083D01012
A147: BALRAMCHIN | B147: EQ | C147: 80 | D147: 80.4 | E147: 75.05 | F147: 76.05 | G147: 76.3 | H147: 78.75 | I147: 5442369 | J147: 420558112.5 | K147: 2018-04-05 | L147: 26972 | M147: INE119A01028
A148: BANARBEADS | B148: EQ | C148: 63.4 | D148: 63.5 | E148: 61.5 | F148: 63.25 | G148: 62.1 | H148: 61.25 | I148: 437 | J148: 27289.1 | K148: 2018-04-05 | L148: 12 | M148: INE655B01011
A149: BANARISUG | B149: EQ | C149: 1799.75 | D149: 1810.95 | E149: 1760.4 | F149: 1802.45 | G149: 1800 | H149: 1756.2 | I149: 370 | J149: 664730.85 | K149: 2018-04-05 | L149: 38 | M149: INE459A01010
A150: BANCOINDIA | B150: EQ | C150: 223.7 | D150: 224.95 | E150: 221.05 | F150: 223.6 | G150: 223.05 | H150: 221.8 | I150: 37321 | J150: 8333258 | K150: 2018-04-05 | L150: 1439 | M150: INE213C01025
A151: BANDHANBNK | B151: EQ | C151: 490 | D151: 514.9 | E151: 487.3 | F151: 509.2 | G151: 514 | H151: 486.05 | I151: 8163440 | J151: 4122179045 | K151: 2018-04-05 | L151: 130821 | M151: INE545U01014
A152: BANG | B152: EQ | C152: 31.2 | D152: 33.5 | E152: 31.2 | F152: 32.5 | G152: 33 | H152: 32.15 | I152: 8915 | J152: 292914.75 | K152: 2018-04-05 | L152: 83 | M152: INE863I01016
A153: BANKBARODA | B153: EQ | C153: 143 | D153: 150.3 | E153: 140.8 | F153: 147.8 | G153: 148.75 | H153: 139.9 | I153: 18912455 | J153: 2722640117 | K153: 2018-04-05 | L153: 81490 | M153: INE028A01039
A154: BANKBEES | B154: EQ | C154: 2467.9 | D154: 2514 | E154: 2467.9 | F154: 2508.04 | G154: 2509.52 | H154: 2441.45 | I154: 3694 | J154: 9182003.18 | K154: 2018-04-05 | L154: 329 | M154: INF732E01078
A155: BANKINDIA | B155: EQ | C155: 105.4 | D155: 112.9 | E155: 105.15 | F155: 111.1 | G155: 111.5 | H155: 103.45 | I155: 13193553 | J155: 1433050292 | K155: 2018-04-05 | L155: 43932 | M155: INE084A01016
A156: BANSWRAS | B156: EQ | C156: 101.15 | D156: 105 | E156: 101.1 | F156: 102.7 | G156: 102.95 | H156: 101.35 | I156: 2785 | J156: 286698.5 | K156: 2018-04-05 | L156: 34 | M156: INE629D01012
A157: BARTRONICS | B157: EQ | C157: 10.5 | D157: 10.75 | E157: 10.5 | F157: 10.65 | G157: 10.65 | H157: 10.4 | I157: 41122 | J157: 438602.95 | K157: 2018-04-05 | L157: 102 | M157: INE855F01034
A158: BASF | B158: EQ | C158: 1988 | D158: 2055 | E158: 1988 | F158: 2022.4 | G158: 2020 | H158: 1963 | I158: 14445 | J158: 29151019 | K158: 2018-04-05 | L158: 1655 | M158: INE373A01013
A159: BASML | B159: EQ | C159: 248 | D159: 251 | E159: 244.15 | F159: 246.25 | G159: 244.15 | H159: 241.95 | I159: 1547 | J159: 383573.45 | K159: 2018-04-05 | L159: 39 | M159: INE186H01014
A160: BATAINDIA | B160: EQ | C160: 748 | D160: 770 | E160: 748 | F160: 767.35 | G160: 765.75 | H160: 744.55 | I160: 904857 | J160: 690201247.6 | K160: 2018-04-05 | L160: 19204 | M160: INE176A01028
A161: BAYERCROP | B161: EQ | C161: 4401.75 | D161: 4518.95 | E161: 4401.75 | F161: 4478.45 | G161: 4516 | H161: 4401.75 | I161: 7067 | J161: 31564908.2 | K161: 2018-04-05 | L161: 1179 | M161: INE462A01022
A162: BBL | B162: EQ | C162: 1578.35 | D162: 1608 | E162: 1571 | F162: 1584.1 | G162: 1582 | H162: 1558.15 | I162: 9293 | J162: 14742876.2 | K162: 2018-04-05 | L162: 829 | M162: INE464A01028
A163: BBTC | B163: EQ | C163: 1258.9 | D163: 1267.8 | E163: 1241.5 | F163: 1257.6 | G163: 1255 | H163: 1234.1 | I163: 151629 | J163: 190278766.1 | K163: 2018-04-05 | L163: 8585 | M163: INE050A01025
A164: BDL | B164: EQ | C164: 393.05 | D164: 396.3 | E164: 388 | F164: 388.9 | G164: 388.85 | H164: 392.1 | I164: 69668 | J164: 27272585.25 | K164: 2018-04-05 | L164: 3171 | M164: INE171Z01018
A165: BEARDSELL | B165: EQ | C165: 50 | D165: 52.85 | E165: 50 | F165: 52.7 | G165: 52.7 | H165: 50.7 | I165: 1374 | J165: 70111.55 | K165: 2018-04-05 | L165: 16 | M165: INE520H01022
A166: BEDMUTHA | B166: EQ | C166: 20.8 | D166: 20.8 | E166: 18.65 | F166: 19.3 | G166: 19.25 | H166: 19.1 | I166: 10216 | J166: 199704.65 | K166: 2018-04-05 | L166: 114 | M166: INE844K01012
A167: BEL | B167: EQ | C167: 145 | D167: 146.2 | E167: 143.65 | F167: 145.05 | G167: 145.4 | H167: 143.75 | I167: 3485433 | J167: 503968742.1 | K167: 2018-04-05 | L167: 16363 | M167: INE263A01024
A168: BEML | B168: EQ | C168: 1100.35 | D168: 1125 | E168: 1100.35 | F168: 1116.85 | G168: 1120.75 | H168: 1082.9 | I168: 470283 | J168: 523302025.3 | K168: 2018-04-05 | L168: 12329 | M168: INE258A01016
A169: BEPL | B169: EQ | C169: 198.4 | D169: 201.25 | E169: 196.6 | F169: 201.25 | G169: 201.25 | H169: 191.7 | I169: 1875565 | J169: 376044753.6 | K169: 2018-04-05 | L169: 7162 | M169: INE922A01025
A170: BERGEPAINT | B170: EQ | C170: 260.1 | D170: 261.65 | E170: 258.1 | F170: 260.9 | G170: 260.4 | H170: 258.6 | I170: 209701 | J170: 54572270.55 | K170: 2018-04-05 | L170: 3555 | M170: INE463A01038
A171: BFINVEST | B171: EQ | C171: 289.65 | D171: 294.4 | E171: 287.6 | F171: 290.45 | G171: 289.85 | H171: 285.25 | I171: 82738 | J171: 24072515.85 | K171: 2018-04-05 | L171: 2131 | M171: INE878K01010
A172: BFUTILITIE | B172: EQ | C172: 403.1 | D172: 407.5 | E172: 398 | F172: 404.5 | G172: 405.25 | H172: 394.85 | I172: 301893 | J172: 121699902.1 | K172: 2018-04-05 | L172: 7332 | M172: INE243D01012
A173: BGRENERGY | B173: EQ | C173: 105.8 | D173: 107.9 | E173: 105.8 | F173: 106.45 | G173: 106.7 | H173: 104.05 | I173: 41179 | J173: 4380655.65 | K173: 2018-04-05 | L173: 656 | M173: INE661I01014
A174: BHAGERIA | B174: EQ | C174: 290.9 | D174: 303 | E174: 290.15 | F174: 299.65 | G174: 302.8 | H174: 289.75 | I174: 17988 | J174: 5340565.1 | K174: 2018-04-05 | L174: 408 | M174: INE354C01027
A175: BHAGYANGR | B175: EQ | C175: 45.55 | D175: 47 | E175: 45.05 | F175: 45.25 | G175: 45.3 | H175: 44.4 | I175: 93139 | J175: 4252776.2 | K175: 2018-04-05 | L175: 661 | M175: INE458B01036
A176: BHAGYAPROP | B176: EQ | C176: 19.85 | D176: 20.2 | E176: 18.55 | F176: 20.2 | G176: 20.2 | H176: 18.5 | I176: 1862 | J176: 36719.75 | K176: 2018-04-05 | L176: 39 | M176: INE363W01018
A177: BHANDARI | B177: EQ | C177: 3 | D177: 3.15 | E177: 2.95 | F177: 3.15 | G177: 3.15 | H177: 3 | I177: 191120 | J177: 592699.45 | K177: 2018-04-05 | L177: 116 | M177: INE474E01029
A178: BHARATFIN | B178: EQ | C178: 1120 | D178: 1132.4 | E178: 1110.85 | F178: 1127.8 | G178: 1127.15 | H178: 1101.35 | I178: 380392 | J178: 426473681.2 | K178: 2018-04-05 | L178: 13875 | M178: INE180K01011
A179: BHARATFORG | B179: EQ | C179: 728 | D179: 733.25 | E179: 722.05 | F179: 726.9 | G179: 729 | H179: 716.45 | I179: 1357694 | J179: 987076239.5 | K179: 2018-04-05 | L179: 21978 | M179: INE465A01025
A180: BHARATGEAR | B180: EQ | C180: 190.95 | D180: 192 | E180: 185.15 | F180: 186.8 | G180: 185.55 | H180: 185.05 | I180: 23552 | J180: 4446374.75 | K180: 2018-04-05 | L180: 1111 | M180: INE561C01019
A181: BHARATIWIN | B181: EQ | C181: 35.05 | D181: 35.6 | E181: 35.05 | F181: 35.51 | G181: 35.59 | H181: 34.93 | I181: 318879 | J181: 11279483.79 | K181: 2018-04-05 | L181: 986 | M181: INF109KB15Y7
A182: BHARATRAS | B182: EQ | C182: 4580 | D182: 4698 | E182: 4515 | F182: 4580.6 | G182: 4598 | H182: 4528.65 | I182: 450 | J182: 2079257.65 | K182: 2018-04-05 | L182: 143 | M182: INE838B01013
A183: BHARATWIRE | B183: EQ | C183: 116.05 | D183: 123.75 | E183: 115.1 | F183: 121.25 | G183: 121 | H183: 113.1 | I183: 180748 | J183: 21773841.1 | K183: 2018-04-05 | L183: 1893 | M183: INE316L01019
A184: BHARTIARTL | B184: EQ | C184: 398.1 | D184: 400.9 | E184: 391.15 | F184: 393.9 | G184: 394 | H184: 395.05 | I184: 8784680 | J184: 3463623311 | K184: 2018-04-05 | L184: 52388 | M184: INE397D01024
A185: BHEL | B185: EQ | C185: 86.5 | D185: 87.6 | E185: 86.3 | F185: 87.2 | G185: 87.05 | H185: 85.15 | I185: 5368585 | J185: 467035235.4 | K185: 2018-04-05 | L185: 23386 | M185: INE257A01026
A186: BHUSANSTL | B186: EQ | C186: 44.55 | D186: 45.6 | E186: 44.1 | F186: 45.05 | G186: 45.15 | H186: 43.95 | I186: 2811156 | J186: 126087935.8 | K186: 2018-04-05 | L186: 14485 | M186: INE824B01021
A187: BIGBLOC | B187: EQ | C187: 175.85 | D187: 186.9 | E187: 170.45 | F187: 182.75 | G187: 185 | H187: 170.45 | I187: 181012 | J187: 32663242.65 | K187: 2018-04-05 | L187: 1968 | M187: INE412U01017
A188: BIL | B188: EQ | C188: 410.5 | D188: 414.9 | E188: 404.05 | F188: 406 | G188: 405.65 | H188: 410.15 | I188: 2833 | J188: 1161492.95 | K188: 2018-04-05 | L188: 66 | M188: INE828A01016
A189: BILENERGY | B189: EQ | C189: 0.65 | D189: 0.7 | E189: 0.6 | F189: 0.7 | G189: 0.7 | H189: 0.65 | I189: 884302 | J189: 585000.15 | K189: 2018-04-05 | L189: 194 | M189: INE607L01029
A190: BILPOWER | B190: EQ | C190: 1.5 | D190: 1.5 | E190: 1.5 | F190: 1.5 | G190: 1.5 | H190: 1.55 | I190: 100 | J190: 150 | K190: 2018-04-05 | L190: 1 | M190: INE952D01018
A191: BINANIIND | B191: EQ | C191: 100.9 | D191: 100.95 | E191: 100.9 | F191: 100.95 | G191: 100.95 | H191: 96.15 | I191: 17132 | J191: 1729461.85 | K191: 2018-04-05 | L191: 125 | M191: INE071A01013
A192: BINDALAGRO | B192: EQ | C192: 29.3 | D192: 29.85 | E192: 29 | F192: 29.45 | G192: 29.35 | H192: 28.8 | I192: 134832 | J192: 3977589.25 | K192: 2018-04-05 | L192: 248 | M192: INE143A01010
A193: BIOCON | B193: EQ | C193: 603.5 | D193: 609.9 | E193: 601.55 | F193: 607.65 | G193: 606.6 | H193: 598.3 | I193: 1016285 | J193: 615869177.5 | K193: 2018-04-05 | L193: 15170 | M193: INE376G01013
A194: BIRLACABLE | B194: EQ | C194: 68.05 | D194: 70.65 | E194: 68.05 | F194: 70.4 | G194: 70.4 | H194: 67.3 | I194: 73593 | J194: 5158593.45 | K194: 2018-04-05 | L194: 742 | M194: INE800A01015
A195: BIRLACORPN | B195: EQ | C195: 770 | D195: 798 | E195: 770 | F195: 790.35 | G195: 786 | H195: 767.05 | I195: 56728 | J195: 44740698.9 | K195: 2018-04-05 | L195: 2692 | M195: INE340A01012
A196: BIRLAMONEY | B196: EQ | C196: 92 | D196: 93.35 | E196: 81.4 | F196: 82.9 | G196: 82.4 | H196: 86.65 | I196: 2806285 | J196: 242643652 | K196: 2018-04-05 | L196: 23975 | M196: INE865C01022
A197: BKMINDST | B197: EQ | C197: 29.8 | D197: 32.25 | E197: 29.8 | F197: 31.35 | G197: 31.5 | H197: 31.15 | I197: 17438 | J197: 545677.4 | K197: 2018-04-05 | L197: 105 | M197: INE831Q01016
A198: BLBLIMITED | B198: EQ | C198: 5.25 | D198: 5.25 | E198: 5.25 | F198: 5.25 | G198: 5.25 | H198: 5 | I198: 970 | J198: 5092.5 | K198: 2018-04-05 | L198: 4 | M198: INE791A01024
A199: BLISSGVS | B199: EQ | C199: 202.5 | D199: 204.7 | E199: 201.5 | F199: 202.25 | G199: 202.3 | H199: 200.95 | I199: 185911 | J199: 37801836.15 | K199: 2018-04-05 | L199: 1980 | M199: INE416D01022
A200: BLKASHYAP | B200: EQ | C200: 45 | D200: 45.35 | E200: 44.2 | F200: 44.7 | G200: 45 | H200: 44.05 | I200: 177520 | J200: 7947341.95 | K200: 2018-04-05 | L200: 770 | M200: INE350H01032
... 1665 more rows
